Workbook

Sheet Disclaimer
B3: THE MODEL IS PROVIDED “AS IS” AND FREE OF CHARGE AND YOU ACCEPT THE ENTIRE RISK AS TO THE QUALITY, PERFORMANCE AND RESULTS OF USE OF THE MODEL. NO PARTY INVOLVED IN THE CREATION, PRODUCTION OR DELIVERY OF THIS MODEL MAKES ANY WARRANTIES OR REPRESENTATIONS, EXPRESSED OR IMPLIED, ORAL OR IN WRITING, WITH RESPECT TO THE MODEL, INCLUDING ITS FITNESS FOR A PARTICULAR PURPOSE, MERCHANTABILITY, QUALITY OR ITS NON-INFRINGEMENT. NO PARTY INVOLVED IN THE CREATION, PRODUCTION OR DELIVERY OF THIS MODEL BE LIABLE FOR ANY DAMAGES, INCLUDING INDIRECT, SPECIAL, INCIDENTAL, CONSEQUENTIAL OR PUNITIVE DAMAGES (INCLUDING LOST PROFITS AND LOST DATA) ARISING OUT OF THE USE OF, OR THE INABILITY TO USE THE MODEL. NO PARTY INVOLVED IN THE CREATION, PRODUCTION OR DELIVERY OF THIS MODEL SHALL HAVE ANY LIABILITY, AND EACH USER AGREES TO HOLD THE DEVELOPERS AND THEIR RESPECTIVE EMPLOYERS, OFFICERS AND DIRECTORS, HARMLESS FROM ANY LIABILITY, RESULTING FROM THE MODIFICATION OR REVISION OF THE MODEL BY OR ON BEHALF OF SAID USERS, INCLUDING MODIFICATIONS MADE BY THE DEVELOPERS.

Sheet Instructions
A1: Instructions for WC Tail Model Template
A3: General Notes
A5: · There are three inputs, 1) life table, 2) claimant list, and 3) loss triangle. Each input goes into one of the purple tabs.
A6: · The template is not protected, so you can edit and add cells, but there are some key cells that shouldn’t be altered or deleted. Such cells are shaded, usually in blue, so do all additional work in unshaded areas of the template.
A7: · Hyperlinks are not links to external files. They are buttons that run macros.
A8: · Do not change sheet names.
A9: · The tabs are arranged to be used in left to right order, so if you change anything in the first tab (“LifeTables”) for example, you should re-run all tabs to the right.
A12: The following is a sheet by sheet tutorial on how to use the template.
A14: LifeTables
A16: The life tables should be entered here. The existing are a blend of the 2012 IAM and 2000 annuity base tables.
A18: OpenClaims
A20: Enter the list of open claims here. The required fields are:
A21: · Claim ID - no specific format.
A22: · Gender. M or F (case sensitive), anything else is ignored.
A23: · Loss Year.
A24: · Age, as of evaluation date. Blank or zero ages are ignored.
A25: · Weighting factor. Example: the average annual paid in recent years. Set to 1 if not using weighting.
A27: Important to remember: If reusing a previously populated template, make sure to first delete all previous entries.
A29: AgingTable
A31: After the OpenClaims sheet is filled in, the Aging Table has to be built. The aging table is the projected average group age for every accident year. Just click the “Build Aging Table” link.
A33: Important to remember: If this table is empty, the projections that follow will indicate zero future loss. If it is based on a previously used claims data, the projections will be incorrect. The Aging Table does not refresh automatically – it has to be rebuilt every time the claims list or the life table is updated.
A35: LossTriangle
A37: Place the cumulative loss triangle here. The template is sensitive to how the triangle is oriented, so follow these guidelines:
A39: · Triangle dimension should be year by year (no quarterly triangles).
A40: · Make sure to input the first development month 3, 6, 9, or 12 (the unshaded cell under “Dev Months”).
A41: · Make sure the “Loss yr” row headers are entered.
A42: · The first row of data (i.e., oldest loss year) should go on the first row (usually row 7) below the blue shaded region. In other words, do not leave any blank rows between the header and the triangle.
A43: · The oldest loss year should have an entry for every development age up to and including the most recent calendar year. So if the triangle is missing its “tip”, for example, you should manually fill it in to form a full row.
A44: · There should not be any holes inside of the triangle. Zero values have to appear as “0” rather than a blank cell.
A45: · Leave the boundary of the triangle blank – the template keys on blank cells to determine the triangle dimensions, as well as diagonal elements. Inserting calculations and notes on this page is ok, but make sure the triangle is bordered by at least one blank cell.
A46: · If reusing a previously populated template, make sure to delete all previous triangle data first.
A48: Once the data is in, you have to copy it over to the next tab “CurveFit” in column format. The macros on this page will help. The three options are:
A49: 1. All Link Ratios: This will paste all loss data to the CurveFit tab, where they will be used to compute link ratios. This option will result in fitting the curve to every link ratio rather than the customary volume weighted averages.
A50: 2. 5 Yr VWA: The 5 year volume weighted average LDF’s as shown are copied by value to the “CurveFit” tab. Make sure all entries are numerical. NA’s will cause an error in the macro.
A51: 3. Other: You can input or compute custom LDF’s manually in this row (row 3) and click “Other” to copy the values to the “CurveFit” tab. NA’s will cause an error in the macro.
A53: Important to remember: Make sure that the triangle is positioned correctly and that the first row of data is full. Remember to input the correct starting development age in months. The links copy values only, not references. So if you update the triangle, you have to copy the data to the “CurveFit” tab again.
A55: CurveFit
A57: This is where the curve fitting is done. If the previous steps were followed, the data should already be filled in below the chart. If so, follow these next steps:
A59: 1 | B59: Filter the data as desired.
A60: Hidden rows are not used for fitting, and they will also not appear on the chart. Most of the time the default filters will suffice, but older or irregular triangles may require manual filters.
A61: The default filters will already be selected if one of the copy links from the “LossTriangle” page was used. Clicking on “Apply Filters” resets the filters to the default settings. The default filter settings can be modified.
A62: 2 | B62: Fitting constraints.
B63: If the “Fitting Constraints” box is empty, all three parameters will be fit. Entering a value in this box will constrain that parameter during fitting.
B64: Under “Additional Constraints”, you can also constrain a parameter called t* which is equal to the ratio b/r. This parameter represents the relative strength of the inverse power over the exponential. Note that t* = 0 is equivalent to setting b = 0 (i.e., pure exponential) whereas a very large t* is similar to r = 0 (pure inverse power). This is just an optional tuning parameter that can be used to control the fit.
A65: 3 | B65: Run solver.
B66: Most of the time, “Run Batch Solver” will suffice. The macro will try several different initial configurations and choose the solution with the lowest error. It takes a few seconds and you’ll know it’s done when the chart stops updating.
B67: For those who are familiar with Solver, you might at times want to run Solver manually. Changing the configuration in the manual Solver window does not affect the “Run Batch Solver” solution at all, so don’t worry about restoring the settings in the Solver window to previous values.
A68: 4 | B68: Visually check the curve fit.
B69: The fit should roughly cut through the middle of the data points, especially in the oldest development ages. The fit is weighted by an estimated inverse variance, which effectively gives more weight to the older ages and non-outliers.
A70: 5 | B70: Copy to Projection.
B71: If the fit looks good, the parameters should be copied over to the “Projection” tab. Click on the macro to do that.
A73: Important to remember: Make sure to visually inspect and confirm that the fit makes sense. Sometimes the fit might be too flat, which will lead to very high ultimates. In such cases, a proxy fit might be in order. Incurred data often fits to the trivial solution (A=0, curve lying on the x-axis). This means no future loss (zero bulk for incurred), and it isn’t necessarily an incorrect solution.
A75: Projection
A77: Typically, no action is required on this tab. This is the worksheet where the ultimate is calculated for a particular loss year. Thus if there’s a need to take a closer look at the projection for a loss year, it would be done on this page. Normally, however, you would just move on to the “Summary” tab and run the batch projections.
A78: Note: columns E:K may initially show invalid values (e.g., #VALUE!, #DIV/0!, #NUM!). This is ok. They will get updated to proper values once the “From Summary” section (cells B3:I3) gets filled in, which is done automatically by a macro in the “Summary” tab.
A79: If you do need to manual work on this tab:
A80: In the header section at the top, cells B3:I3 are where the inputs are entered. This section is arranged to match the entries in columns B:I of the “Summary” tab, so that all necessary entries from the Summary tab can be copied over at one time. The fit parameters should already have been copied over from the “CurveFit” tab. There are no macros on this page – once the inputs are in, the yellow highlighted cells should show the projections.
A82: Summary
A84: The only thing to do on this page is to click “Project All Accident Years”. This macro will perform two tasks:
A85: 1 | B85: Grab data from previous tabs to populate the data table (Columns B through I).
A86: 2 | B86: Run projections for each loss year by using the “Projection” worksheet and paste the results to columns J, K, M, and N.
A88: Cell I4, “Age At EOT”, refers to the age at the end of the triangle. “Years To EOT” column (I) shows the number of years from the current diagonal to the end of the triangle (i.e., number of years needed to square the triangle).
A89: Projection Using Gradual Application of Mortality: The "Loss at EOT" column (J) is the projected cumulative loss at the end of the triangle. The tail factor is computed as the ratio of the Ultimate (Column K) to EOT (Column J).
A90: Projection Using Truncation Method: The truncation method is the projection according to the original Shane-Fowle method. The truncation point can be manually adjusted by the Offset field (positive offset means truncation is done earlier). Whenever the Offset is changed, the “Project All Accident Years” macro has to be run again in order to update the Truncated Ultimate.

Sheet LifeTables
B1: Male | D1: Female
A2: Age | B2: qx | C2: ex | D2: qx | E2: ex
A3: 0 | B3: 0.0011150965 | C3: 82.88575 | D3: 0.001126108836 | E3: 85.9555 | G3: Note:
A4: 1 | B4: 0.0003760156135 | C4: 81.97716 | D4: 0.0003685183416 | E4: 85.05128 | G4: 2012 IAM from Age 0 to 100
A5: 2 | B5: 0.0002800039786 | C5: 81.00762 | D5: 0.0002430063149 | E5: 84.08226 | G5: Merged with 2000 Annuity Base table for 100+
A6: 3 | B6: 0.000223503874 | C6: 80.03003 | D6: 0.0001755023385 | E6: 83.10246 | G6: Using correction for ALB (Age Last Birthday)
A7: 4 | B7: 0.0001895003378 | C7: 79.0477 | D7: 0.000145500494 | E7: 82.11687
A8: 5 | B8: 0.000185000093 | C8: 78.06249 | D8: 0.0001345003128 | E8: 81.12867
A9: 6 | B9: 0.000180500322 | C9: 77.07675 | D9: 0.00012600026 | E9: 80.13945
A10: 7 | B10: 0.0001680007966 | C10: 76.09048 | D10: 0.0001135005185 | E10: 79.14943
A11: 8 | B11: 0.0001510006361 | C11: 75.1031 | D11: 0.0001015001838 | E11: 78.1583
A12: 9 | B12: 0.0001345006078 | C12: 74.11429 | D12: 9.6000098e-05 | E12: 77.16613
A13: 10 | B13: 0.0001245000945 | C13: 73.12413 | D13: 9.4999953e-05 | E13: 76.17344
A14: 11 | B14: 0.000134999262 | C14: 72.13311 | D14: 0.000100499784 | E14: 75.18058
A15: 12 | B15: 0.0001674984931 | C15: 71.14271 | D15: 0.0001124996062 | E15: 74.18804
A16: 13 | B16: 0.0002119977438 | C16: 70.15446 | D16: 0.00013299922 | E16: 73.19627
A17: 14 | B17: 0.0002589972857 | C17: 69.16913 | D17: 0.0001599989779 | E17: 72.20588
A18: 15 | B18: 0.0003034969681 | C18: 68.18679 | D18: 0.0001864989124 | E18: 71.21727
A19: 16 | B19: 0.0003444968307 | C19: 67.20718 | D19: 0.0002094989551 | E19: 70.23037
A20: 17 | B20: 0.0003814968144 | C20: 66.23 | D20: 0.0002269992299 | E20: 69.24488
A21: 18 | B21: 0.0004144969071 | C21: 65.25489 | D21: 0.0002394993564 | E21: 68.26037
A22: 19 | B22: 0.0004444968818 | C22: 64.28154 | D22: 0.0002489995099 | E22: 67.27648
A23: 20 | B23: 0.0004754962124 | C23: 63.30968 | D23: 0.0002564995572 | E23: 66.29299
A24: 21 | B24: 0.000508995817 | C24: 62.33932 | D24: 0.0002629996099 | E24: 65.30974
A25: 22 | B25: 0.000547494344 | C25: 61.37056 | D25: 0.0002689996009 | E25: 64.32666
A26: 23 | B26: 0.0005924933123 | C26: 60.40363 | D26: 0.000273499796 | E26: 63.3437
A27: 24 | B27: 0.0006424918355 | C27: 59.43885 | D27: 0.0002759998625 | E27: 62.36076
A28: 25 | B28: 0.0006984901289 | C28: 58.47642 | D28: 0.0002804995152 | E28: 61.3777
A29: 26 | B29: 0.0007459934456 | C29: 57.51659 | D29: 0.0002869995739 | E29: 60.39464
A30: 27 | B30: 0.0007764952232 | C30: 56.55879 | D30: 0.0002949992749 | E30: 59.41169
A31: 28 | B31: 0.0007984962508 | C31: 55.60196 | D31: 0.0003064990249 | E31: 58.42893
A32: 29 | B32: 0.0008159967667 | C32: 54.64559 | D32: 0.0003229984348 | E32: 57.44653
A33: 30 | B33: 0.0008289979392 | C33: 53.6894 | D33: 0.0003449980017 | E33: 56.46477
A34: 31 | B34: 0.0008359991657 | C34: 52.73312 | D34: 0.0003659983932 | E34: 55.48391
A35: 32 | B35: 0.0008330020959 | C35: 51.77641 | D35: 0.0003824985935 | E35: 54.50386
A36: 33 | B36: 0.0008180041417 | C36: 50.81874 | D36: 0.0003974985372 | E36: 53.52433
A37: 34 | B37: 0.0007985038396 | C37: 49.85952 | D37: 0.0004144980759 | E37: 52.54522
A38: 35 | B38: 0.000786001184 | C38: 48.89857 | D38: 0.0004354975615 | E38: 51.56659
A39: 36 | B39: 0.0007914966709 | C39: 47.93625 | D39: 0.0004614967585 | E39: 50.58863
A40: 37 | B40: 0.000818492597 | C40: 46.97343 | D40: 0.0004949954769 | E40: 49.61152
A41: 38 | B41: 0.0008629891144 | C41: 46.01109 | D41: 0.0005369940875 | E41: 48.6356
A42: 39 | B42: 0.000921985325 | C42: 45.04996 | D42: 0.0005864925779 | E42: 47.66119
A43: 40 | B43: 0.0009919823241 | C43: 44.09061 | D43: 0.000639991722 | E43: 46.68857
A44: 41 | B44: 0.001069479152 | C44: 43.1334 | D44: 0.0006949906589 | E44: 45.71783
A45: 42 | B45: 0.001148978343 | C45: 42.17851 | D45: 0.0007484907784 | E45: 44.74893
A46: 43 | B46: 0.001227976226 | C46: 41.22588 | D46: 0.0007984905148 | E46: 43.7817
A47: 44 | B47: 0.001311472404 | C47: 40.27534 | D47: 0.0008444911491 | E47: 42.81589
A48: 45 | B48: 0.001409463051 | C48: 39.32691 | D48: 0.0008914889537 | E48: 41.85123
A49: 46 | B49: 0.001539444694 | C49: 38.38101 | D49: 0.0009499848626 | E49: 40.88768
A50: 47 | B50: 0.001711422013 | C50: 37.43864 | D50: 0.001027478117 | E50: 39.92561
A51: 48 | B51: 0.00191989866 | C51: 36.50111 | D51: 0.001119974258 | E51: 38.96565
A52: 49 | B52: 0.002158371345 | C52: 35.5694 | D52: 0.001228964355 | E52: 38.00822
A53: 50 | B53: 0.002420844442 | C53: 34.64418 | D53: 0.001371447399 | E53: 37.05375
A54: 51 | B54: 0.002692326541 | C54: 33.72582 | D54: 0.001537438566 | E54: 36.10327
A55: 52 | B55: 0.00295781592 | C55: 32.81417 | D55: 0.001706931009 | E55: 35.15732
A56: 53 | B56: 0.003216301289 | C56: 31.90855 | D56: 0.001881919288 | E56: 34.21572
A57: 54 | B57: 0.003480272997 | C57: 31.00828 | D57: 0.002068904264 | E57: 33.27835
A58: 55 | B58: 0.003768722875 | C58: 30.11308 | D58: 0.002279376946 | E58: 32.34527
A59: 56 | B59: 0.004096656151 | C59: 29.22322 | D59: 0.002529336482 | E59: 31.41688
A60: 57 | B60: 0.004476062253 | C60: 28.33931 | D60: 0.002832777092 | E60: 30.49401
A61: 58 | B61: 0.004912954557 | C61: 27.46223 | D61: 0.003196204807 | E61: 29.5778
A62: 59 | B62: 0.005403334454 | C62: 26.59288 | D62: 0.003618116789 | E62: 28.66943
A63: 60 | B63: 0.005948683777 | C63: 25.73192 | D63: 0.004097510872 | E63: 27.76991
A64: 61 | B64: 0.006544534933 | C64: 24.87992 | D64: 0.004624903566 | E64: 26.88005
A65: 62 | B65: 0.007180872079 | C65: 24.03724 | D65: 0.005189784217 | E65: 26.0003
A66: 63 | B66: 0.007863661951 | C66: 23.20386 | D66: 0.005799125966 | E66: 25.13072
A67: 64 | B67: 0.008611876041 | C67: 22.37985 | D67: 0.006472409189 | E67: 24.27147
A68: 65 | B68: 0.009250891651 | C68: 21.56557 | D68: 0.007053229105 | E68: 23.42308
A69: 66 | B69: 0.00978959728 | C69: 20.7576 | D69: 0.007549010093 | E69: 22.58236
A70: 67 | B70: 0.01043422111 | C70: 19.95293 | D70: 0.008146716246 | E70: 21.74652
A71: 68 | B71: 0.01120372787 | C71: 19.15277 | D71: 0.008852885025 | E71: 20.91692
A72: 69 | B72: 0.0121190943 | C72: 18.35845 | D72: 0.009656530993 | E72: 20.09482
A73: 70 | B73: 0.01320475693 | C73: 17.5714 | D73: 0.01054464889 | E73: 19.28101
A74: 71 | B74: 0.01449164757 | C74: 16.79315 | D74: 0.01151767942 | E74: 18.47583
A75: 72 | B75: 0.01600822618 | C75: 16.02539 | D75: 0.01258859911 | E75: 17.67946
A76: 73 | B76: 0.01777544022 | C76: 15.26983 | D76: 0.01378032575 | E76: 16.8921
A77: 74 | B77: 0.0198087318 | C77: 14.52807 | D77: 0.01513672211 | E77: 16.11416
A78: 75 | B78: 0.02212299706 | C78: 13.80146 | D78: 0.01670525772 | E78: 15.34646
A79: 76 | B79: 0.02474452066 | C79: 13.09108 | D79: 0.01851888829 | E79: 14.59019
A80: 77 | B80: 0.02770962338 | C80: 12.39785 | D80: 0.02061788387 | E80: 13.84662
A81: 78 | B81: 0.03105558928 | C81: 11.72269 | D81: 0.02307040479 | E81: 13.11706
A82: 79 | B82: 0.03485851689 | C82: 11.06636 | D82: 0.02597593296 | E82: 12.40321
A83: 80 | B83: 0.03927007978 | C83: 10.42993 | D83: 0.02951258069 | E83: 11.70732
A84: 81 | B84: 0.04427405661 | C84: 9.815381 | D84: 0.03377452611 | E84: 11.03293
A85: 82 | B85: 0.04976580426 | C85: 9.223754 | D85: 0.03875025221 | E85: 10.38363
A86: 83 | B86: 0.05584340237 | C86: 8.65445 | D86: 0.04446828097 | E86: 9.761905
A87: 84 | B87: 0.0627143967 | C87: 8.107182 | D87: 0.05093149304 | E87: 9.169664
A88: 85 | B88: 0.07061364391 | C88: 7.582729 | D88: 0.05810113307 | E88: 8.608087
A89: 86 | B89: 0.07972789536 | C89: 7.082876 | D89: 0.06593266678 | E89: 8.077393
A90: 87 | B90: 0.09015777377 | C90: 6.609867 | D90: 0.07439890288 | E90: 7.576962
A91: 88 | B91: 0.1019195448 | C91: 6.165758 | D91: 0.08345686441 | E91: 7.105612
A92: 89 | B92: 0.1149542224 | C92: 5.751999 | D92: 0.09303866674 | E92: 6.661565
A93: 90 | B93: 0.1290318742 | C93: 5.369213 | D93: 0.1029985789 | E93: 6.242345
A94: 91 | B94: 0.1440309452 | C94: 5.016502 | D94: 0.113444419 | E94: 5.844299
A95: 92 | B95: 0.1600559816 | C95: 4.692345 | D95: 0.1248761509 | E95: 5.46418
A96: 93 | B96: 0.1771579375 | C96: 4.395941 | D96: 0.1379289531 | E96: 5.101198
A97: 94 | B97: 0.1953857728 | C97: 4.127088 | D97: 0.1534466186 | E97: 4.757378
A98: 95 | B98: 0.2117766351 | C98: 3.886443 | D98: 0.1715619897 | E98: 4.438442
A99: 96 | B99: 0.2277373868 | C99: 3.661961 | D99: 0.1900118482 | E99: 4.150512
A100: 97 | B100: 0.2471401743 | C100: 3.446964 | D100: 0.2077895795 | E100: 3.889578
A101: 98 | B101: 0.266805744 | C101: 3.250225 | D101: 0.2262349946 | E101: 3.647488
A102: 99 | B102: 0.2867007959 | C102: 3.06907 | D102: 0.2452843046 | E102: 3.421565
A103: 100 | B103: 0.3088246398 | C103: 2.900704 | D103: 0.2680619661 | E103: 3.20858
A104: 101 | B104: 0.3319140239 | C104: 2.74996 | D104: 0.2925297604 | E104: 3.017441
A105: 102 | B105: 0.3522873732 | C105: 2.619363 | D105: 0.3133709382 | E105: 2.851626
A106: 103 | B106: 0.3724616067 | C106: 2.500126 | D106: 0.3343226685 | E106: 2.696691
A107: 104 | B107: 0.3905789748 | C107: 2.390493 | D107: 0.3552173052 | E107: 2.548818
A108: 105 | B108: 0.4 | C108: 2.281662 | D108: 0.3755311616 | E108: 2.402078
A109: 106 | B109: 0.423308956 | C109: 2.136103 | D109: 0.3966227919 | E109: 2.245233
A110: 107 | B110: 0.465117643 | C110: 1.970037 | D110: 0.4377159939 | E110: 2.063772
A111: 108 | B111: 0.511985767 | C111: 1.813552 | D111: 0.4846076801 | E111: 1.891877
A112: 109 | B112: 0.564236693 | C112: 1.667066 | D112: 0.5377310351 | E112: 1.730481
A113: 110 | B113: 0.622150771 | C113: 1.5308 | D113: 0.597465909 | E113: 1.580209
A114: 111 | B114: 0.685949248 | C114: 1.404793 | D114: 0.6641147945 | E114: 1.44139
A115: 112 | B115: 0.755762974 | C115: 1.28894 | D115: 0.7378626617 | E115: 1.314109
A116: 113 | B116: 0.831586596 | C116: 1.183032 | D116: 0.8187125217 | E116: 1.198262
A117: 114 | B117: 0.913196141 | C117: 1.086804 | D117: 0.9063660432 | E117: 1.093634
A118: 115 | B118: 1 | C118: 1 | D118: 1 | E118: 1

Sheet OpenClaims
A4: CLAIM ID | B4: CLAIMANT GENDER | C4: LOSS YEAR | D4: AGE | E4: Weighting
A5: Ex000001 | B5: M | C5: 1988 | D5: 74.19301848 | E5: 1
A6: Ex000002 | B6: M | C6: 1988 | D6: 65.87542779 | E6: 1
A7: Ex000003 | B7: M | C7: 1988 | D7: 71.50171116 | E7: 1
A8: Ex000004 | B8: M | C8: 1989 | D8: 81.66187543 | E8: 1
A9: Ex000005 | B9: M | C9: 1990 | D9: 65.37713895 | E9: 1
A10: Ex000006 | B10: M | C10: 1985 | D10: 87.95619439 | E10: 1
A11: Ex000007 | B11: M | C11: 1985 | D11: 78.64750171 | E11: 1
A12: Ex000008 | B12: M | C12: 1985 | D12: 73.50855578 | E12: 1
A13: Ex000009 | B13: M | C13: 1985 | D13: 82.86105407 | E13: 1
A14: Ex000010 | B14: M | C14: 1985 | D14: 74.63381246 | E14: 1
A15: Ex000011 | B15: F | C15: 1986 | D15: 52.32032854 | E15: 1
A16: Ex000012 | B16: M | C16: 1986 | D16: 70.32169747 | E16: 1
A17: Ex000013 | B17: M | C17: 1987 | D17: 63.29637235 | E17: 1
A18: Ex000014 | B18: M | C18: 1990 | D18: 73.7522245 | E18: 1
A19: Ex000015 | B19: M | C19: 1991 | D19: 60.73921971 | E19: 1
A20: Ex000016 | B20: F | C20: 1994 | D20: 68.27104723 | E20: 1
A21: Ex000017 | B21: F | C21: 1992 | D21: 54.46680356 | E21: 1
A22: Ex000018 | B22: M | C22: 1993 | D22: 64.28473648 | E22: 1
A23: Ex000019 | B23: M | C23: 1985 | D23: 68.30937714 | E23: 1
A24: Ex000020 | B24: F | C24: 1988 | D24: 86.98699521 | E24: 1
A25: Ex000021 | B25: M | C25: 1988 | D25: 61.7303217 | E25: 1
A26: Ex000022 | B26: F | C26: 1985 | D26: 51.96988364 | E26: 1
A27: Ex000023 | B27: M | C27: 1987 | D27: 59.11293634 | E27: 1
A28: Ex000024 | B28: M | C28: 1990 | D28: 67.50171116 | E28: 1
A29: Ex000025 | B29: M | C29: 1990 | D29: 52.05201916 | E29: 1
A30: Ex000026 | B30: M | C30: 1991 | D30: 56.54757016 | E30: 1
A31: Ex000027 | B31: M | C31: 1992 | D31: 85.26214921 | E31: 1
A32: Ex000028 | B32: F | C32: 1994 | D32: 67.4934976 | E32: 1
A33: Ex000029 | B33: M | C33: 1990 | D33: 65.11704312 | E33: 1
A34: Ex000030 | B34: F | C34: 1993 | D34: 66.43394935 | E34: 1
A35: Ex000031 | B35: F | C35: 1993 | D35: 59.38124572 | E35: 1
A36: Ex000032 | B36: M | C36: 1993 | D36: 65.05954825 | E36: 1
A37: Ex000033 | B37: M | C37: 1994 | D37: 43.88227242 | E37: 1
A38: Ex000034 | B38: M | C38: 1989 | D38: 57.92744695 | E38: 1
A39: Ex000035 | B39: M | C39: 1987 | D39: 72.84599589 | E39: 1
A40: Ex000036 | B40: F | C40: 1987 | D40: 73.28405202 | E40: 1
A41: Ex000037 | B41: M | C41: 1985 | D41: 57.43737166 | E41: 1
A42: Ex000038 | B42: F | C42: 1988 | D42: 53.48391513 | E42: 1
A43: Ex000039 | B43: F | C43: 1988 | D43: 60 | E43: 1
A44: Ex000040 | B44: F | C44: 1989 | D44: 74.57084189 | E44: 1
A45: Ex000041 | B45: F | C45: 1989 | D45: 80.75564682 | E45: 1
A46: Ex000042 | B46: M | C46: 1989 | D46: 65.10882957 | E46: 1
A47: Ex000043 | B47: F | C47: 1989 | D47: 74.05886379 | E47: 1
A48: Ex000044 | B48: M | C48: 1989 | D48: 70.70499658 | E48: 1
A49: Ex000045 | B49: M | C49: 1990 | D49: 66.11088296 | E49: 1
A50: Ex000046 | B50: M | C50: 1990 | D50: 47.95071869 | E50: 1
A51: Ex000047 | B51: F | C51: 1990 | D51: 78.68035592 | E51: 1
A52: Ex000048 | B52: F | C52: 1990 | D52: 65.07597536 | E52: 1
A53: Ex000049 | B53: M | C53: 1990 | D53: 70.70499658 | E53: 1
A54: Ex000050 | B54: M | C54: 1991 | D54: 50.56262834 | E54: 1
A55: Ex000051 | B55: M | C55: 1990 | D55: 82.10814511 | E55: 1
A56: Ex000052 | B56: F | C56: 1991 | D56: 58.98699521 | E56: 1
A57: Ex000053 | B57: F | C57: 1991 | D57: 65.00479124 | E57: 1
A58: Ex000054 | B58: F | C58: 1991 | D58: 74.51882272 | E58: 1
A59: Ex000055 | B59: M | C59: 1991 | D59: 80.31485284 | E59: 1
A60: Ex000056 | B60: M | C60: 1992 | D60: 62.9486653 | E60: 1
A61: Ex000057 | B61: M | C61: 1991 | D61: 61.77138946 | E61: 1
A62: Ex000058 | B62: M | C62: 1985 | D62: 101.0978782 | E62: 1
A63: Ex000059 | B63: F | C63: 1992 | D63: 61.9192334 | E63: 1
A64: Ex000060 | B64: F | C64: 1992 | D64: 72.27378508 | E64: 1
A65: Ex000061 | B65: F | C65: 1992 | D65: 77.87542779 | E65: 1
A66: Ex000062 | B66: M | C66: 1992 | D66: 68.99110198 | E66: 1
A67: Ex000063 | B67: M | C67: 1991 | D67: 66.11088296 | E67: 1
A68: Ex000064 | B68: M | C68: 1993 | D68: 62.9486653 | E68: 1
A69: Ex000065 | B69: F | C69: 1991 | D69: 65.00479124 | E69: 1
A70: Ex000066 | B70: F | C70: 1993 | D70: 58.7761807 | E70: 1
A71: Ex000067 | B71: F | C71: 1992 | D71: 80.59685147 | E71: 1
A72: Ex000068 | B72: M | C72: 1993 | D72: 58.13552361 | E72: 1
A73: Ex000069 | B73: F | C73: 1993 | D73: 74.37645448 | E73: 1
A74: Ex000070 | B74: F | C74: 1993 | D74: 58.66940452 | E74: 1
A75: Ex000071 | B75: F | C75: 1993 | D75: 64.62422998 | E75: 1
A76: Ex000072 | B76: F | C76: 1994 | D76: 72.72279261 | E76: 1
A77: Ex000073 | B77: F | C77: 1994 | D77: 72.62149213 | E77: 1
A78: Ex000074 | B78: F | C78: 1994 | D78: 47.98083504 | E78: 1
A79: Ex000075 | B79: F | C79: 1985 | D79: 88.03832991 | E79: 1
A80: Ex000076 | B80: F | C80: 1985 | D80: 81.3744011 | E80: 1
A81: Ex000077 | B81: M | C81: 1985 | D81: 74.68856947 | E81: 1
A82: Ex000078 | B82: M | C82: 1985 | D82: 56.11498973 | E82: 1
A83: Ex000079 | B83: M | C83: 1985 | D83: 57.43737166 | E83: 1
A84: Ex000080 | B84: M | C84: 1985 | D84: 99.87132101 | E84: 1
A85: Ex000081 | B85: M | C85: 1985 | D85: 75.15126626 | E85: 1
A86: Ex000082 | B86: F | C86: 1985 | D86: 77.66461328 | E86: 1
A87: Ex000083 | B87: F | C87: 1986 | D87: 68.26557153 | E87: 1
A88: Ex000084 | B88: M | C88: 1987 | D88: 70.39561944 | E88: 1
A89: Ex000085 | B89: M | C89: 1987 | D89: 72.84599589 | E89: 1
A90: Ex000086 | B90: F | C90: 1987 | D90: 89.19096509 | E90: 1
A91: Ex000087 | B91: F | C91: 1985 | D91: 74.99247091 | E91: 1
A92: Ex000088 | B92: F | C92: 1990 | D92: 85.88911704 | E92: 1
A93: Ex000089 | B93: F | C93: 1992 | D93: 61.65639973 | E93: 1
A94: Ex000090 | B94: M | C94: 1994 | D94: 61.80971937 | E94: 1
A95: Ex000091 | B95: M | C95: 1985 | D95: 74.52977413 | E95: 1
A96: Ex000092 | B96: M | C96: 1988 | D96: 67.53456537 | E96: 1
A97: Ex000093 | B97: F | C97: 1993 | D97: 62.28062971 | E97: 1
A98: Ex000094 | B98: M | C98: 1985 | D98: 74.32169747 | E98: 1
A99: Ex000095 | B99: M | C99: 1985 | D99: 81.13894593 | E99: 1
A100: Ex000096 | B100: M | C100: 1985 | D100: 88.17522245 | E100: 1
A101: Ex000097 | B101: F | C101: 1985 | D101: 70.03148528 | E101: 1
A102: Ex000098 | B102: M | C102: 1987 | D102: 80.75017112 | E102: 1
A103: Ex000099 | B103: M | C103: 1994 | D103: 71.19507187 | E103: 1
A104: Ex000100 | B104: F | C104: 1985 | D104: 88.05201916 | E104: 1
A105: Ex000101 | B105: M | C105: 1985 | D105: 68.61327858 | E105: 1
A106: Ex000102 | B106: M | C106: 1985 | D106: 77.13347023 | E106: 1
A107: Ex000103 | B107: F | C107: 1985 | D107: 68.95003422 | E107: 1
A108: Ex000104 | B108: F | C108: 1985 | D108: 57.01026694 | E108: 1
A109: Ex000105 | B109: F | C109: 1985 | D109: 77.73853525 | E109: 1
A110: Ex000106 | B110: M | C110: 1985 | D110: 87.70978782 | E110: 1
A111: Ex000107 | B111: M | C111: 1985 | D111: 55.96714579 | E111: 1
A112: Ex000108 | B112: M | C112: 1986 | D112: 74.79534565 | E112: 1
A113: Ex000109 | B113: F | C113: 1986 | D113: 68.54757016 | E113: 1
A114: Ex000110 | B114: M | C114: 1986 | D114: 78.99520876 | E114: 1
A115: Ex000111 | B115: F | C115: 1987 | D115: 93.17453799 | E115: 1
A116: Ex000112 | B116: F | C116: 1987 | D116: 54.2696783 | E116: 1
A117: Ex000113 | B117: F | C117: 1988 | D117: 83.13483915 | E117: 1
A118: Ex000114 | B118: M | C118: 1988 | D118: 87.70978782 | E118: 1
A119: Ex000115 | B119: F | C119: 1988 | D119: 93.17453799 | E119: 1
A120: Ex000116 | B120: F | C120: 1987 | D120: 75.87405886 | E120: 1
A121: Ex000117 | B121: M | C121: 1989 | D121: 72.70910335 | E121: 1
A122: Ex000118 | B122: M | C122: 1989 | D122: 66.14099932 | E122: 1
A123: Ex000119 | B123: M | C123: 1989 | D123: 78.84736482 | E123: 1
A124: Ex000120 | B124: F | C124: 1989 | D124: 60.42984257 | E124: 1
A125: Ex000121 | B125: M | C125: 1989 | D125: 69.57152635 | E125: 1
A126: Ex000122 | B126: M | C126: 1990 | D126: 63.54004107 | E126: 1
A127: Ex000123 | B127: M | C127: 1989 | D127: 79.23066393 | E127: 1
A128: Ex000124 | B128: M | C128: 1990 | D128: 81.07049966 | E128: 1
A129: Ex000125 | B129: M | C129: 1991 | D129: 84.82409309 | E129: 1
A130: Ex000126 | B130: F | C130: 1990 | D130: 78.59000684 | E130: 1
A131: Ex000127 | B131: M | C131: 1993 | D131: 53.83436003 | E131: 1
A132: Ex000128 | B132: F | C132: 1993 | D132: 49.94661191 | E132: 1
A133: Ex000129 | B133: M | C133: 1991 | D133: 70.20944559 | E133: 1
A134: Ex000130 | B134: M | C134: 1991 | D134: 64.44900753 | E134: 1
A135: Ex000131 | B135: M | C135: 1993 | D135: 50.77891855 | E135: 1
A136: Ex000132 | B136: M | C136: 1994 | D136: 77.7303217 | E136: 1
A137: Ex000133 | B137: M | C137: 1994 | D137: 57.25393566 | E137: 1
A138: Ex000134 | B138: M | C138: 1988 | D138: 84.5229295 | E138: 1
A139: Ex000135 | B139: M | C139: 1991 | D139: 57.47843943 | E139: 1
A140: Ex000136 | B140: F | C140: 1992 | D140: 58.2587269 | E140: 1
A141: Ex000137 | B141: M | C141: 1985 | D141: 82.15742642 | E141: 1
A142: Ex000138 | B142: M | C142: 1985 | D142: 82.52429843 | E142: 1
A143: Ex000139 | B143: F | C143: 1987 | D143: 79.80835044 | E143: 1
A144: Ex000140 | B144: M | C144: 1988 | D144: 68.98562628 | E144: 1
A145: Ex000141 | B145: F | C145: 1991 | D145: 80.17522245 | E145: 1
A146: Ex000142 | B146: M | C146: 1992 | D146: 59.32375086 | E146: 1
A147: Ex000143 | B147: M | C147: 1994 | D147: 62.26694045 | E147: 1
A148: Ex000144 | B148: M | C148: 1985 | D148: 75.56741958 | E148: 1
A149: Ex000145 | B149: F | C149: 1985 | D149: 64.30390144 | E149: 1
A150: Ex000146 | B150: M | C150: 1985 | D150: 68.23271732 | E150: 1
A151: Ex000147 | B151: F | C151: 1985 | D151: 73.62354552 | E151: 1
A152: Ex000148 | B152: M | C152: 1985 | D152: 73.10335387 | E152: 1
A153: Ex000149 | B153: F | C153: 1985 | D153: 72.76386037 | E153: 1
A154: Ex000150 | B154: F | C154: 1985 | D154: 75.94524298 | E154: 1
A155: Ex000151 | B155: M | C155: 1985 | D155: 61.41546886 | E155: 1
A156: Ex000152 | B156: M | C156: 1985 | D156: 69.97672827 | E156: 1
A157: Ex000153 | B157: M | C157: 1985 | D157: 54.48870637 | E157: 1
A158: Ex000154 | B158: M | C158: 1985 | D158: 85.18275154 | E158: 1
A159: Ex000155 | B159: F | C159: 1988 | D159: 80.19164956 | E159: 1
A160: Ex000156 | B160: M | C160: 1988 | D160: 79.47980835 | E160: 1
A161: Ex000157 | B161: M | C161: 1985 | D161: 69.13620808 | E161: 1
A162: Ex000158 | B162: F | C162: 1985 | D162: 87.06091718 | E162: 1
A163: Ex000159 | B163: M | C163: 1985 | D163: 93.93839836 | E163: 1
A164: Ex000160 | B164: M | C164: 1985 | D164: 68.80219028 | E164: 1
A165: Ex000161 | B165: F | C165: 1991 | D165: 60.50376454 | E165: 1
A166: Ex000162 | B166: M | C166: 1985 | D166: 70.13004791 | E166: 1
A167: Ex000163 | B167: M | C167: 1985 | D167: 68.10677618 | E167: 1
A168: Ex000164 | B168: M | C168: 1985 | D168: 67.47980835 | E168: 1
A169: Ex000165 | B169: M | C169: 1985 | D169: 68.03285421 | E169: 1
A170: Ex000166 | B170: M | C170: 1985 | D170: 75.36755647 | E170: 1
A171: Ex000167 | B171: F | C171: 1985 | D171: 76.36960986 | E171: 1
A172: Ex000168 | B172: M | C172: 1985 | D172: 75.36208077 | E172: 1
A173: Ex000169 | B173: M | C173: 1985 | D173: 78.89117043 | E173: 1
A174: Ex000170 | B174: M | C174: 1987 | D174: 50.18480493 | E174: 1
A175: Ex000171 | B175: M | C175: 1988 | D175: 68.79397673 | E175: 1
A176: Ex000172 | B176: M | C176: 1988 | D176: 64.33127995 | E176: 1
A177: Ex000173 | B177: M | C177: 1986 | D177: 61.69746749 | E177: 1
A178: Ex000174 | B178: M | C178: 1989 | D178: 91.57563313 | E178: 1
A179: Ex000175 | B179: M | C179: 1989 | D179: 57.10882957 | E179: 1
A180: Ex000176 | B180: M | C180: 1989 | D180: 69.91649555 | E180: 1
A181: Ex000177 | B181: M | C181: 1993 | D181: 65.17727584 | E181: 1
A182: Ex000178 | B182: M | C182: 1994 | D182: 60.96646133 | E182: 1
A183: Ex000179 | B183: M | C183: 1985 | D183: 65.23750856 | E183: 1
A184: Ex000180 | B184: M | C184: 1985 | D184: 87.97809719 | E184: 1
A185: Ex000181 | B185: M | C185: 1989 | D185: 69.65366188 | E185: 1
A186: Ex000182 | B186: M | C186: 1993 | D186: 58.33538672 | E186: 1
A187: Ex000183 | B187: M | C187: 1987 | D187: 64.07118412 | E187: 1
A188: Ex000184 | B188: F | C188: 1985 | D188: 90.71047228 | E188: 1
A189: Ex000185 | B189: M | C189: 1985 | D189: 74.47227926 | E189: 1
A190: Ex000186 | B190: F | C190: 1985 | D190: 71.06913073 | E190: 1
A191: Ex000187 | B191: M | C191: 1985 | D191: 61.61806982 | E191: 1
A192: Ex000188 | B192: F | C192: 1986 | D192: 76.05749487 | E192: 1
A193: Ex000189 | B193: M | C193: 1989 | D193: 56.44079398 | E193: 1
A194: Ex000190 | B194: F | C194: 1989 | D194: 68.56399726 | E194: 1
A195: Ex000191 | B195: F | C195: 1989 | D195: 75.01437372 | E195: 1
A196: Ex000192 | B196: M | C196: 1989 | D196: 70.03422313 | E196: 1
A197: Ex000193 | B197: F | C197: 1990 | D197: 71.45790554 | E197: 1
A198: Ex000194 | B198: M | C198: 1990 | D198: 59.92334018 | E198: 1
A199: Ex000195 | B199: F | C199: 1991 | D199: 65.68377823 | E199: 1
A200: Ex000196 | B200: M | C200: 1991 | D200: 72.5174538 | E200: 1
A201: Ex000197 | B201: F | C201: 1992 | D201: 64.69815195 | E201: 1
A202: Ex000198 | B202: F | C202: 1985 | D202: 77.89185489 | E202: 1
A203: Ex000199 | B203: M | C203: 1993 | D203: 62.7652293 | E203: 1
... 2875 more rows

Sheet AgingTable
D2: Build Aging Table
B4: 1985 | C4: 1986 | D4: 1987 | E4: 1988 | F4: 1989 | G4: 1990 | H4: 1991 | I4: 1992 | J4: 1993 | K4: 1994 | L4: 1995 | M4: 1996 | N4: 1997 | O4: 1998 | P4: 1999 | Q4: 2000 | R4: 2001 | S4: 2002 | T4: 2003 | U4: 2004 | V4: 2005
A5: 1 | B5: 73.43378638 | C5: 71.0565569 | D5: 70.06404746 | E5: 69.36252522 | F5: 68.39435098 | G5: 67.09859522 | H5: 65.98698499 | I5: 65.91034881 | J5: 64.53726447 | K5: 63.69689886 | L5: 61.46187119 | M5: 64.11310062 | N5: 61.56364216 | O5: 61.20737664 | P5: 59.50262377 | Q5: 60.69016556 | R5: 60.5439052 | S5: 58.20387676 | T5: 57.29108546 | U5: 57.6309149 | V5: 55.7625667
A6: 2 | B6: 74.04058209 | C6: 71.59711079 | D6: 70.73118909 | E6: 69.91093204 | F6: 69.15565329 | G6: 67.96038722 | H6: 66.83430023 | I6: 66.77975228 | J6: 65.45528365 | K6: 64.62948514 | L6: 62.35625064 | M6: 65.05066466 | N6: 62.40074459 | O6: 62.14386675 | P6: 60.44181692 | Q6: 61.42916097 | R6: 61.40987307 | S6: 59.13304452 | T6: 58.01139426 | U6: 58.57091791 | V6: 56.71312329
A7: 3 | B7: 74.6631842 | C7: 72.17972017 | D7: 71.39125736 | E7: 70.52995501 | F7: 69.91133469 | G7: 68.80906304 | H7: 67.67121757 | I7: 67.63794279 | J7: 66.36462663 | K7: 65.55527547 | L7: 63.24030399 | M7: 65.98145433 | N7: 63.24066978 | O7: 63.07368738 | P7: 61.37495968 | Q7: 62.23580169 | R7: 62.2799365 | S7: 60.05507148 | T7: 58.80785289 | U7: 59.50469181 | V7: 57.65881472
A8: 4 | B8: 75.29459786 | C8: 72.79530377 | D8: 72.04410613 | E8: 71.1938015 | F8: 70.66132664 | G8: 69.64415946 | H8: 68.49741723 | I8: 68.48391997 | J8: 67.26459128 | K8: 66.47352869 | L8: 64.11345135 | M8: 66.90460662 | N8: 64.0825017 | O8: 63.99599463 | P8: 62.30140251 | Q8: 63.0851017 | R8: 63.15377969 | S8: 60.9693281 | T8: 59.65480646 | U8: 60.43150546 | V8: 58.59914408
A9: 5 | B9: 75.92965965 | C9: 73.43541306 | D9: 72.68991373 | E9: 71.88170548 | F9: 71.40573059 | G9: 70.46536775 | H9: 69.31273944 | I9: 69.31658498 | J9: 68.15453868 | K9: 67.38339734 | L9: 64.97510743 | M9: 67.81917003 | N9: 64.92479755 | O9: 64.9098828 | P9: 63.22045673 | Q9: 63.95675442 | R9: 64.03008189 | S9: 61.87511478 | T9: 60.53154782 | U9: 61.35059005 | V9: 59.53357709
A10: 6 | B10: 76.56474599 | C10: 74.08816552 | D10: 73.32940555 | E10: 72.57902176 | F10: 72.14457324 | G10: 71.27270826 | H10: 70.11775177 | I10: 70.13506025 | J10: 69.0338597 | K10: 68.28397454 | L10: 65.82477595 | M10: 68.72413013 | N10: 65.76627616 | O10: 65.81439018 | P10: 64.13142592 | Q10: 64.83583106 | R10: 64.90745586 | S10: 62.77159734 | T10: 61.42302702 | U10: 62.26111253 | V10: 60.46158026
A11: 7 | B11: 77.19706172 | C11: 74.74865254 | D11: 73.96312548 | E11: 73.27566322 | F11: 72.87712992 | G11: 72.06654738 | H11: 70.91266568 | I11: 70.93908383 | J11: 69.9019862 | K11: 69.17432682 | L11: 66.66206979 | M11: 69.61843195 | N11: 66.60564236 | O11: 66.70847519 | P11: 65.03366596 | Q11: 65.71249987 | R11: 65.78436774 | S11: 63.65780872 | T11: 62.31984213 | U11: 63.1622256 | V11: 61.38259382
A12: 8 | B12: 77.82459667 | C12: 75.41467931 | D12: 74.5910998 | E12: 73.96584606 | F12: 73.60219022 | G12: 72.84737223 | H12: 71.69705829 | I12: 71.72858876 | J12: 70.75843699 | K12: 70.05355635 | L12: 67.48667233 | M12: 70.50106079 | N12: 67.44104346 | O12: 67.59100704 | P12: 65.92655228 | Q12: 66.58095548 | R12: 66.65908824 | S12: 64.5326835 | T12: 63.21631209 | U12: 64.05304579 | V12: 62.29599401
A13: 9 | B13: 78.44565535 | C13: 76.08306724 | D13: 75.21442416 | E13: 74.64746593 | F13: 74.31831905 | G13: 73.61606215 | H13: 72.47086399 | I13: 72.50346411 | J13: 71.60278276 | K13: 70.92085841 | L13: 68.29830747 | M13: 71.37102181 | N13: 68.27090549 | O13: 68.46083231 | P13: 66.80947567 | Q13: 67.43804691 | R13: 67.52969035 | S13: 65.39516776 | T13: 64.10908339 | U13: 64.93261151 | V13: 63.20108962
A14: 10 | B14: 79.05989387 | C14: 76.75267497 | D14: 75.83450295 | E14: 75.32092363 | F14: 75.024768 | G14: 74.37327444 | H14: 73.23395485 | I14: 73.26386926 | J14: 72.4347593 | K14: 71.77545351 | L14: 69.09683241 | M14: 72.22732586 | N14: 69.09353118 | O14: 69.31682069 | P14: 67.68185336 | Q14: 68.2820733 | R14: 68.39436691 | S14: 66.24435264 | T14: 64.99660015 | U14: 65.79995841 | V14: 64.09717502
A15: 11 | B15: 79.66692726 | C15: 77.42218338 | D15: 76.45137689 | E15: 75.98721312 | F15: 75.72133647 | G15: 75.11963225 | H15: 73.9865783 | I15: 74.00994499 | J15: 73.25432024 | K15: 72.61670874 | L15: 69.88241736 | M15: 73.06905015 | N15: 69.90701029 | O15: 70.15783372 | P15: 68.54313946 | Q15: 69.1120155 | R15: 69.25129177 | S15: 67.07952836 | T15: 65.87773442 | U15: 66.6542616 | V15: 64.98355812
A16: 12 | B16: 80.2663277 | C16: 78.08840664 | D16: 77.06550583 | E16: 76.64721426 | F16: 76.40739182 | G16: 75.85623739 | H16: 74.72956921 | I16: 74.74240109 | J16: 74.06184302 | K16: 73.44417796 | L16: 70.65566227 | M16: 73.89534123 | N16: 70.71003188 | O16: 70.98280623 | P16: 69.39290766 | Q16: 69.927143 | R16: 70.09861568 | S16: 67.90025887 | T16: 66.75131729 | U16: 67.49481558 | V16: 65.85959107
A17: 13 | B17: 80.85828215 | C17: 78.74910838 | D17: 77.67738778 | E17: 77.30333195 | F17: 77.08258008 | G17: 76.58402305 | H17: 75.46392774 | I17: 75.4621023 | J17: 74.85777128 | K17: 74.25765557 | L17: 71.41726374 | M17: 74.70539466 | N17: 71.5014002 | O17: 71.79083803 | P17: 70.23088134 | Q17: 70.72711553 | R17: 70.9348936 | S17: 68.70636287 | T17: 67.61627404 | U17: 68.32097065 | V17: 66.72471135
A18: 14 | B18: 81.44275577 | C18: 79.40330525 | D18: 78.28757455 | E18: 77.95740672 | F18: 77.74660639 | G18: 77.30358488 | H18: 76.19066907 | I18: 76.16936933 | J18: 75.64232557 | K18: 75.05690087 | L18: 72.16806942 | M18: 75.49845787 | N18: 72.28010933 | O18: 72.58118071 | P18: 71.05700392 | Q18: 71.51182566 | R18: 71.75898917 | S18: 69.49780798 | T18: 68.47166227 | U18: 69.13214979 | V18: 67.57843038
A19: 15 | B19: 82.01947807 | C19: 80.04941539 | D19: 78.89606566 | E19: 78.61081203 | F19: 78.39974505 | G19: 78.01528243 | H19: 76.91091706 | I19: 76.86444691 | J19: 76.41581278 | K19: 75.84170601 | L19: 72.90870834 | M19: 76.27385289 | N19: 73.04527779 | O19: 73.35325502 | P19: 71.87127036 | Q19: 72.28133371 | R19: 72.57010644 | S19: 70.27468954 | T19: 69.3165647 | U19: 69.92792153 | V19: 68.42035817
A20: 16 | B20: 82.58849741 | C20: 80.68625262 | D20: 79.50197726 | E20: 79.2645193 | F20: 79.0420633 | G20: 78.71930265 | H20: 77.62557841 | I20: 77.54804917 | J20: 77.17867291 | K20: 76.61204662 | L20: 73.63876809 | M20: 77.03125259 | N20: 73.79630208 | O20: 74.10664141 | P20: 72.67370344 | Q20: 73.03599422 | R20: 73.36760147 | S20: 71.03728097 | T20: 70.15025501 | U20: 70.70799873 | V20: 69.250189
A21: 17 | B21: 83.15029372 | C21: 81.31384905 | D21: 80.1055837 | E21: 79.91943171 | F21: 79.67324256 | G21: 79.41560216 | H21: 78.33548529 | I21: 78.22095156 | J21: 77.93206275 | K21: 77.36772744 | L21: 74.35825903 | M21: 77.76996836 | N21: 74.53263243 | O21: 74.84113266 | P21: 73.46452387 | Q21: 73.77631703 | R21: 74.15102973 | S21: 71.78641427 | T21: 70.97222306 | U21: 71.47229502 | V21: 70.06766335
A22: 18 | B22: 83.70545166 | C22: 81.93195198 | D22: 80.70715608 | E22: 80.57757057 | F22: 80.2934623 | G22: 80.10413842 | H22: 79.0420452 | I22: 78.88312633 | J22: 78.67728589 | K22: 78.10846837 | L22: 75.06706382 | M22: 78.4890532 | N22: 75.25416328 | O22: 75.55676075 | P22: 74.2440198 | Q22: 74.50312257 | R22: 74.91998716 | S22: 72.52272007 | T22: 71.78204975 | U22: 72.22118985 | V22: 70.87264788
A23: 19 | B23: 84.25473463 | C23: 82.54021032 | D23: 81.30610048 | E23: 81.2395825 | F23: 80.90318621 | G23: 80.78477397 | H23: 79.74605087 | I23: 79.53493155 | J23: 79.41515848 | K23: 78.8343182 | L23: 75.76453347 | M23: 79.18866898 | N23: 75.96134705 | O23: 76.25351224 | P23: 75.01228387 | Q23: 75.21714218 | R23: 75.67418822 | S23: 73.24642522 | T23: 72.57959972 | U23: 72.95541745 | V23: 71.66505518
A24: 20 | B24: 84.79877787 | C24: 83.13841802 | D24: 81.90094867 | E24: 81.90469256 | F24: 81.50216645 | G24: 81.45765232 | H24: 80.44761843 | I24: 80.1770363 | J24: 80.14611313 | K24: 79.54580236 | L24: 76.45058347 | M24: 79.86915756 | N24: 76.65422341 | O24: 76.93170565 | P24: 75.76977452 | Q24: 75.91904861 | R24: 76.41364091 | S24: 73.95792781 | T24: 73.36482304 | U24: 73.67620557 | V24: 72.44482049
A25: 21 | B25: 85.33814745 | C25: 83.72664765 | D25: 82.49018901 | E25: 82.57205549 | F25: 82.08940301 | G25: 82.12273979 | H25: 81.14693366 | I25: 80.81015098 | J25: 80.87013288 | K25: 80.24361895 | L25: 77.12503743 | M25: 80.53058298 | N25: 77.33312276 | O25: 77.59175922 | P25: 76.51660033 | Q25: 76.60916335 | R25: 77.13860438 | S25: 74.65747708 | T25: 74.13721205 | U25: 74.38478939 | V25: 73.21180216
A26: 22 | B26: 85.8740691 | C26: 84.30614855 | D26: 83.07260871 | E26: 83.24036883 | F26: 82.6636603 | G26: 82.77955003 | H26: 81.84372239 | I26: 81.43464194 | J26: 81.58777294 | K26: 80.9290322 | L26: 77.78763734 | M26: 81.17377098 | N26: 77.99896102 | O26: 78.23379861 | P26: 77.25202517 | Q26: 77.28754184 | R26: 77.84954754 | S26: 75.34524611 | T26: 74.89634331 | U26: 75.08239674 | V26: 73.96579861
A27: 23 | B27: 86.40791639 | C27: 84.87876356 | D27: 83.64657761 | E27: 83.90813113 | F27: 83.22446353 | G27: 83.42741685 | H27: 82.53798719 | I27: 82.05063107 | J27: 82.2997411 | K27: 81.60350523 | L27: 78.43867869 | M27: 81.79938879 | N27: 78.65273463 | O27: 78.85844411 | P27: 77.9755513 | Q27: 77.95433782 | R27: 78.54721293 | S27: 76.02168361 | T27: 75.64144583 | U27: 75.77051559 | V27: 74.70665628
A28: 24 | B28: 86.94069291 | C28: 85.44699197 | D28: 84.21052036 | E28: 84.57387994 | F28: 83.77315959 | G28: 84.06573374 | H28: 83.22988975 | I28: 82.65757932 | J28: 83.00620164 | K28: 82.26789471 | L28: 79.07999854 | M28: 82.40840149 | N28: 79.29554809 | O28: 79.46611076 | P28: 78.68664837 | Q28: 78.60971717 | R28: 79.23258443 | S28: 76.68748993 | T28: 76.37178277 | U28: 76.45118679 | V28: 75.43440556
A29: 25 | B29: 87.47298989 | C29: 86.01364688 | D29: 84.76413094 | E29: 85.23666338 | F29: 84.31064296 | G29: 84.69431815 | H29: 83.91890204 | I29: 83.25447237 | J29: 83.70739374 | K29: 82.92337894 | L29: 79.71271624 | M29: 83.00184136 | N29: 79.92802784 | O29: 80.05696374 | P29: 79.38458276 | Q29: 79.2537735 | R29: 79.90611022 | S29: 77.34316673 | T29: 77.08747743 | U29: 77.12568026 | V29: 76.14867021
A30: 26 | B30: 88.0053609 | C30: 86.58049129 | D30: 85.30669838 | E30: 85.8949877 | F30: 84.83573859 | G30: 85.31236873 | H30: 84.60449139 | I30: 83.84112486 | J30: 84.40338849 | K30: 83.5708928 | L30: 80.33757956 | M30: 83.58029456 | N30: 80.550525 | O30: 80.63177787 | P30: 80.06880105 | Q30: 79.88624186 | R30: 80.56797809 | S30: 77.98892226 | T30: 77.78829326 | U30: 77.79410415 | V30: 76.84906333
A31: 27 | B31: 88.53824734 | C31: 87.15065741 | D31: 85.83808921 | E31: 86.54726931 | F31: 85.34790464 | G31: 85.91858902 | H31: 85.2858957 | I31: 84.41657319 | J31: 85.09338867 | K31: 84.2109184 | L31: 80.95686771 | M31: 84.14413352 | N31: 81.16361718 | O31: 81.19107366 | P31: 80.73880576 | Q31: 80.50732191 | R31: 81.21896769 | S31: 78.62486694 | T31: 78.47360281 | U31: 78.45637889 | V31: 77.53519572
A32: 28 | B32: 89.07223189 | C32: 87.72724164 | D32: 86.35847013 | E32: 87.19246882 | F32: 85.84805385 | G32: 86.51126454 | H32: 85.96272548 | I32: 84.97932446 | J32: 85.77592664 | K32: 84.84435136 | L32: 81.57289706 | M32: 84.69362078 | N32: 81.76809486 | O32: 81.73500123 | P32: 81.39398395 | Q32: 81.11646791 | R32: 81.85969008 | S32: 79.25079687 | T32: 79.14285261 | U32: 79.11235057 | V32: 78.20631416
A33: 29 | B33: 89.6077234 | C33: 88.30964214 | D33: 86.86687435 | E33: 87.82998893 | F33: 86.33668038 | G33: 87.08970388 | H33: 86.63418389 | I33: 85.52928538 | J33: 86.45062353 | K33: 85.47175686 | L33: 82.18628307 | M33: 85.22908506 | N33: 82.36470992 | O33: 82.26440487 | P33: 82.03407719 | Q33: 81.71216658 | R33: 82.4904298 | S33: 79.86690607 | T33: 79.79549014 | U33: 79.76124169 | V33: 78.86200569
A34: 30 | B34: 90.14461553 | C34: 88.89995486 | D34: 87.3637365 | E34: 88.4593527 | F34: 86.81518562 | G34: 87.65294901 | H34: 87.29946321 | I34: 86.06625244 | J34: 87.11686576 | K34: 86.09260104 | L34: 82.79792731 | M34: 85.74987322 | N34: 82.95358849 | O34: 82.78063123 | P34: 82.65914995 | Q34: 82.29314449 | R34: 83.11131529 | S34: 80.47411622 | T34: 80.43108568 | U34: 80.40169733 | V34: 79.50162645
A35: 31 | B35: 90.68338635 | C35: 89.50176681 | D35: 87.85199957 | E35: 89.07968768 | F35: 87.2856292 | G35: 88.19818552 | H35: 87.95831112 | I35: 86.58861535 | J35: 87.77369671 | K35: 86.70623903 | L35: 83.40939398 | M35: 86.25594442 | N35: 83.53492271 | O35: 83.2841147 | P35: 83.26881031 | Q35: 82.85858862 | R35: 83.72195248 | S35: 81.07248137 | T35: 81.04956586 | U35: 81.03326305 | V35: 80.12445293
A36: 32 | B36: 91.22430607 | C36: 90.11561451 | D36: 88.33483927 | E36: 89.69028144 | F36: 87.74869711 | G36: 88.72499098 | H36: 88.610494 | I36: 87.0956057 | J36: 88.42155949 | K36: 87.31209173 | L36: 84.02045826 | M36: 86.74817871 | N36: 84.10871581 | O36: 83.7754377 | P36: 83.86262026 | Q36: 83.40762816 | R36: 84.32146691 | S36: 81.66122478 | T36: 81.65074663 | U36: 81.65505526 | V36: 80.7301414
A37: 33 | B37: 91.76805983 | C37: 90.74088292 | D37: 88.8151156 | E37: 90.2910586 | F37: 88.20463359 | G37: 89.23315262 | H37: 89.25602831 | I37: 87.58738788 | J37: 89.05996192 | K37: 87.90870363 | L37: 84.63146079 | M37: 87.22846042 | N37: 84.67454952 | O37: 84.25542151 | P37: 84.44028495 | Q37: 83.93854432 | R37: 84.90885448 | S37: 82.23991021 | T37: 82.23438734 | U37: 82.26592872 | V37: 81.31850755
A38: 34 | B38: 92.3147729 | C38: 91.37795293 | D38: 89.295419 | E38: 90.88381356 | F38: 88.65259408 | G38: 89.7224986 | H38: 89.89594684 | I38: 88.06667594 | J38: 89.68880598 | K38: 88.49488308 | L38: 85.24253121 | M38: 87.69733778 | N38: 85.23155736 | O38: 84.72434524 | P38: 85.00176934 | Q38: 84.45048899 | R38: 85.48347486 | S38: 82.80802405 | T38: 82.80065254 | U38: 82.86585541 | V38: 81.88918165
A39: 35 | B39: 92.86494553 | C39: 92.02758323 | D39: 89.77901724 | E39: 91.47032619 | F39: 89.09269023 | G39: 90.19398598 | H39: 90.53147146 | I39: 88.53746029 | J39: 90.30926283 | K39: 89.0695163 | L39: 85.85211538 | M39: 88.15367918 | N39: 85.777739 | O39: 85.18345519 | P39: 85.54826976 | Q39: 84.94315127 | R39: 86.04399972 | S39: 83.36518505 | T39: 83.35059593 | U39: 83.45474669 | V39: 82.44176025
A40: 36 | B40: 93.41956932 | C40: 92.6904062 | D40: 90.27010386 | E40: 92.05210356 | F40: 89.5258931 | G40: 90.64732223 | H40: 91.16376209 | I40: 89.00258975 | J40: 90.92287618 | K40: 89.63170051 | L40: 86.45985208 | M40: 88.5983322 | N40: 86.31160408 | O40: 85.63390261 | P40: 86.08142125 | Q40: 85.41585084 | R40: 86.58897133 | S40: 83.91174879 | T40: 83.88578562 | U40: 84.03275801 | V40: 82.97617777
A41: 37 | B41: 93.98024784 | C41: 93.36807242 | D41: 90.77388595 | E41: 92.63124019 | F41: 89.95297736 | G41: 91.08105461 | H41: 91.79426615 | I41: 89.46569141 | J41: 91.53114074 | K41: 90.18064033 | L41: 87.06554008 | M41: 89.03198456 | N41: 86.8328206 | O41: 86.07609305 | P41: 86.60263067 | Q41: 85.86801352 | R41: 87.11788669 | S41: 84.44903514 | T41: 84.4084654 | U41: 84.60084525 | V41: 83.4929611
A42: 38 | B42: 94.54783862 | C42: 94.05990788 | D42: 91.2944745 | E42: 93.20852962 | F42: 90.37525397 | G42: 91.49762109 | H42: 92.42476403 | I42: 89.93119836 | J42: 92.13522569 | K42: 90.71616463 | L42: 87.66734464 | M42: 89.45433449 | N42: 87.34216738 | O42: 86.51087985 | P42: 87.11334583 | Q42: 86.30031528 | R42: 87.63061286 | S42: 84.97807873 | T42: 84.92108029 | U42: 85.16036022 | V42: 83.99304844
A43: 39 | B43: 95.12308275 | C43: 94.76428085 | D43: 91.83698374 | E43: 93.78448469 | F43: 90.79389707 | G43: 91.89973416 | H43: 93.05777293 | I43: 90.4028867 | J43: 92.7382414 | K43: 91.23933756 | L43: 88.26382733 | M43: 89.86610414 | N43: 87.84148323 | O43: 86.93955545 | P43: 87.61474788 | Q43: 86.7143752 | R43: 88.12755427 | S43: 85.49948822 | T43: 85.42517516 | U43: 85.71188436 | V43: 84.47762129
A44: 40 | B44: 95.70755217 | C44: 95.47962152 | D44: 92.40634068 | E44: 94.36014173 | F44: 91.21268838 | G44: 92.28665805 | H44: 93.69616803 | I44: 90.8870193 | J44: 93.34363388 | K44: 91.75343263 | L44: 88.85461455 | M44: 90.2688194 | N44: 88.33381137 | O44: 87.36309995 | P44: 88.10842343 | Q44: 87.11193428 | R44: 88.60905211 | S44: 86.01442356 | T44: 85.92235731 | U44: 86.25575797 | V44: 84.94834689
A45: 41 | B45: 96.30124995 | C45: 96.20505386 | D45: 93.00680404 | E45: 94.93627001 | F45: 91.63492812 | G45: 92.66161289 | H45: 94.34203345 | I45: 91.38877162 | J45: 93.95321368 | K45: 92.26183918 | L45: 89.43815752 | M45: 90.66377327 | N45: 88.82218657 | O45: 87.78356779 | P45: 88.59686529 | Q45: 87.49627374 | R45: 89.07621493 | S45: 86.52328054 | T45: 86.4149068 | U45: 86.79385049 | V45: 85.40616003
A46: 42 | B46: 96.90582728 | C46: 96.94193494 | D46: 93.64123413 | E46: 95.51292597 | F46: 92.06257723 | G46: 93.0283655 | H46: 94.99621638 | I46: 91.91233798 | J46: 94.57055028 | K46: 92.76591236 | L46: 90.01432377 | M46: 91.05359638 | N46: 89.3095807 | O46: 88.2039363 | P46: 89.08183101 | Q46: 87.87218264 | R46: 89.53004566 | S46: 87.02658503 | T46: 86.90499703 | U46: 87.32631838 | V46: 85.85250229
A47: 43 | B47: 97.52236973 | C47: 97.68998234 | D47: 94.30722777 | E47: 96.09332535 | F47: 92.49853761 | G47: 93.38929868 | H47: 95.6602209 | I47: 92.46064252 | J47: 95.19943861 | K47: 93.2698166 | L47: 90.58519502 | M47: 91.44072294 | N47: 89.80132644 | O47: 88.62647545 | P47: 89.56426442 | Q47: 88.24447075 | R47: 89.9717351 | S47: 87.52566113 | T47: 87.39433704 | U47: 87.85338956 | V47: 86.28936938
A48: 44 | B48: 98.15094395 | C48: 98.45186617 | D48: 95.00223942 | E48: 96.68105779 | F48: 92.94754662 | G48: 93.74854116 | H48: 96.33497605 | I48: 93.03456037 | J48: 95.84263439 | K48: 93.77935469 | L48: 91.1518222 | M48: 91.82491396 | N48: 90.30272138 | O48: 89.05523063 | P48: 90.04570293 | Q48: 88.6183541 | R48: 90.40397472 | S48: 88.02231026 | T48: 87.88423744 | U48: 88.3765509 | V48: 86.71761252
A49: 45 | B49: 98.79196037 | C49: 99.2286881 | D49: 95.72549496 | E49: 97.27584804 | F49: 93.41160662 | G49: 94.11175534 | H49: 97.02250796 | I49: 93.63288797 | J49: 96.50326696 | K49: 94.29937346 | L49: 91.71520172 | M49: 92.20392954 | N49: 90.81935246 | O49: 89.49409456 | P49: 90.52807446 | Q49: 89.00079529 | R49: 90.83036045 | S49: 88.51767681 | T49: 88.37606496 | U49: 88.89603199 | V49: 87.13908789
A50: 46 | B50: 99.44661907 | C50: 100.0148127 | D50: 96.47575193 | E50: 97.8783235 | F50: 93.89097555 | G50: 94.48178559 | H50: 97.72389822 | I50: 94.25551906 | J50: 97.18617711 | K50: 94.83595575 | L50: 92.27509135 | M50: 92.57790237 | N50: 91.35557738 | O50: 89.94605984 | P50: 91.0134027 | Q50: 89.39888194 | R50: 91.25363179 | S50: 89.01295251 | T50: 88.87093457 | U50: 89.41176444 | V50: 87.55639761
A51: 47 | B51: 100.1135751 | C51: 100.8047894 | D51: 97.25082825 | E51: 98.48570641 | F51: 94.391357 | G51: 94.86452128 | H51: 98.43941604 | I51: 94.9024034 | J51: 97.89199347 | K51: 95.39494171 | L51: 92.83101479 | M51: 92.95008865 | N51: 91.91641193 | O51: 90.415385 | P51: 91.50545713 | Q51: 89.81957519 | R51: 91.67592914 | S51: 89.51073338 | T51: 89.37023032 | U51: 89.92572397 | V51: 87.97253685
A52: 48 | B52: 100.7934349 | C52: 101.5974192 | D52: 98.04885098 | E52: 99.09498941 | F52: 94.91367217 | G52: 95.26926372 | H52: 99.16880445 | I52: 95.57068083 | J52: 98.62205089 | K52: 95.98143764 | L52: 93.3831344 | M52: 93.32543062 | N52: 92.50564187 | O52: 90.90677982 | P52: 92.00858572 | Q52: 90.26990003 | R52: 92.09996633 | S52: 90.01263268 | T52: 89.87448112 | U52: 90.44079107 | V52: 88.39175921
A53: 49 | B53: 101.4886409 | C53: 102.3955565 | D53: 98.86594003 | E53: 99.70488297 | F53: 95.45614261 | G53: 95.69790784 | H53: 99.91003566 | I53: 96.25847586 | J53: 99.37805067 | K53: 96.59918443 | L53: 93.93236088 | M53: 93.71112926 | N53: 93.12545131 | O53: 91.42400715 | P53: 92.52638272 | Q53: 90.75356318 | R53: 92.52721091 | S53: 90.52045076 | T53: 90.38493172 | U53: 90.95824914 | V53: 88.81926126
A54: 50 | B54: 102.2027988 | C54: 103.2032638 | D54: 99.6958075 | E54: 100.3142468 | F54: 96.01974198 | G54: 96.15569055 | H54: 100.6615513 | I54: 96.96341222 | J54: 100.1551298 | K54: 97.25114945 | L54: 94.48049261 | M54: 94.11472857 | N54: 93.77765971 | O54: 91.97131182 | P54: 93.06293864 | Q54: 91.27187441 | R54: 92.95730555 | S54: 91.03630739 | T54: 90.90303708 | U54: 91.48166941 | V54: 89.25872959
A55: 51 | B55: 102.9353591 | C55: 104.0270933 | D55: 100.5380809 | E55: 100.9305821 | F55: 96.60171732 | G55: 96.64657689 | H55: 101.4246865 | I55: 97.68360823 | J55: 100.9515424 | K55: 97.93383418 | L55: 95.02944249 | M55: 94.54192306 | N55: 94.46172017 | O55: 92.55109715 | P55: 93.6216489 | Q55: 91.82571857 | R55: 93.39080768 | S55: 91.56296091 | T55: 91.42917505 | U55: 92.01349632 | V55: 89.71426286
A56: 52 | B56: 103.6804909 | C56: 104.858987 | D56: 101.3920325 | E56: 101.5706978 | F56: 97.1975915 | G56: 97.17264146 | H56: 102.2002962 | I56: 98.42028814 | J56: 101.771853 | K56: 98.6431707 | L56: 95.58094713 | M56: 94.9970527 | N56: 95.17580775 | O56: 93.16295143 | P56: 94.2059327 | Q56: 92.4139355 | R56: 93.82849057 | S56: 92.10359046 | T56: 91.96364411 | U56: 92.55520453 | V56: 90.19036276
A57: 53 | B57: 104.4343674 | C57: 105.6937539 | D57: 102.2552228 | E57: 102.2264389 | F57: 97.81369895 | G57: 97.72646415 | H57: 102.9906355 | I57: 99.17281453 | J57: 102.6151097 | K57: 99.38055387 | L57: 96.1366891 | M57: 95.48813851 | N57: 95.91710866 | O57: 93.80715811 | P57: 94.81774105 | Q57: 93.03359173 | R57: 94.27081717 | S57: 92.66266235 | T57: 92.5066031 | U57: 93.11052195 | V57: 90.68979371
A58: 54 | B58: 105.1986165 | C58: 106.5155492 | D58: 103.1240985 | E58: 102.8937923 | F58: 98.4556324 | G58: 98.303415 | H58: 103.7950096 | I58: 99.93692132 | J58: 103.4796589 | K58: 100.1415238 | L58: 96.70092864 | M58: 96.02194293 | N58: 96.68476502 | O58: 94.48433429 | P58: 95.45811214 | Q58: 93.68276925 | R58: 94.72009893 | S58: 93.24360766 | T58: 93.05825393 | U58: 93.68291179 | V58: 91.21578348
A59: 55 | B59: 105.9712868 | C59: 107.3179835 | D59: 103.9956057 | E59: 103.5767725 | F59: 99.11571638 | G59: 98.90299899 | H59: 104.6097757 | I59: 100.7057808 | J59: 104.3620255 | K59: 100.9253104 | L59: 97.27461542 | M59: 96.603618 | N59: 97.47586686 | O59: 95.19340782 | P59: 96.12673728 | Q59: 94.35808489 | R59: 95.17677066 | S59: 93.84754662 | T59: 93.61889633 | U59: 94.27515476 | V59: 91.77055899
A60: 56 | B60: 106.7543294 | C60: 108.1032774 | D60: 104.8666901 | E60: 104.2577042 | F60: 99.79547288 | G60: 99.52660038 | H60: 105.4323256 | I60: 101.479847 | J60: 105.2575477 | K60: 101.7317759 | L60: 97.85945871 | M60: 97.23858878 | N60: 98.28820818 | O60: 95.9327077 | P60: 96.8236487 | Q60: 95.05459152 | R60: 95.64074515 | S60: 94.47719454 | T60: 94.18977953 | U60: 94.88957244 | V60: 92.35473666
A61: 57 | B61: 107.5565694 | C61: 108.8973642 | D61: 105.7346966 | E61: 104.9298352 | F61: 100.5040679 | G61: 100.1892961 | H61: 106.2599583 | I61: 102.256726 | J61: 106.1620606 | K61: 102.5599829 | L61: 98.45749025 | M61: 97.92107144 | N61: 99.11906097 | O61: 96.7006513 | P61: 97.54704084 | Q61: 95.76868062 | R61: 96.11287094 | S61: 95.13431618 | T61: 94.76782723 | U61: 95.52898035 | V61: 92.96837203
A62: 58 | B62: 108.369767 | C62: 109.7108741 | D62: 106.5994002 | E62: 105.6055243 | F62: 101.228622 | G62: 100.8851532 | H62: 107.0859599 | I62: 103.0341888 | J62: 107.0730543 | K62: 103.4004033 | L62: 99.07462557 | M62: 98.64384444 | N62: 99.96531922 | O62: 97.49210389 | P62: 98.29336734 | Q62: 96.49745006 | R62: 96.5972796 | S62: 95.81867038 | T62: 95.35138111 | U62: 96.19263534 | V62: 93.61054136
A63: 59 | B63: 109.1943406 | C63: 110.5548939 | D63: 107.4513184 | E63: 106.3033716 | F63: 101.9636553 | G63: 101.6071605 | H63: 107.9073761 | I63: 103.82145 | J63: 107.9797799 | K63: 104.250678 | L63: 99.71698739 | M63: 99.40656129 | N63: 100.8261606 | O63: 98.30163017 | P63: 99.05895513 | Q63: 97.23931842 | R63: 97.10147942 | S63: 96.530394 | T63: 95.94128311 | U63: 96.87759867 | V63: 94.27988594
A64: 60 | B64: 110.0306497 | C64: 111.4381533 | D64: 108.2776953 | E64: 107.0443497 | F64: 102.7181648 | G64: 102.3470912 | H64: 108.7374341 | I64: 104.6330969 | J64: 108.88711 | K64: 105.1106876 | L64: 100.3936256 | M64: 100.2035008 | N64: 101.6969278 | O64: 99.12626286 | P64: 99.83767412 | Q64: 97.99579065 | R64: 97.63202097 | S64: 97.27039766 | T64: 96.53406998 | U64: 97.58135271 | V64: 94.97521818
A65: 61 | B65: 110.8655675 | C65: 112.3639629 | D65: 109.0859869 | E65: 107.8604384 | F65: 103.4952468 | G65: 103.0974862 | H65: 109.5866695 | I65: 105.4500005 | J65: 109.7998384 | K65: 105.9768737 | L65: 101.1047533 | M65: 101.0348234 | N65: 102.5769215 | O65: 99.96702096 | P65: 100.6273841 | Q65: 98.76678865 | R65: 98.19495507 | S65: 98.0384647 | T65: 97.12586607 | U65: 98.30238444 | V65: 95.69572016
A66: 62 | B66: 111.6851395 | C66: 113.3284262 | D66: 109.886977 | E66: 108.754284 | F66: 104.2962781 | G66: 103.8492461 | H66: 110.4528298 | I66: 106.2471134 | J66: 110.7141738 | K66: 106.831699 | L66: 101.8410263 | M66: 101.9053084 | N66: 103.4661601 | O66: 100.8244465 | P66: 101.4304732 | Q66: 99.55024406 | R66: 98.79014419 | S66: 98.83107537 | T66: 97.71534871 | U66: 99.04020009 | V66: 96.43856111
A67: 63 | B67: 112.4757659 | C67: 114.3203285 | D67: 110.6782321 | E67: 109.7055311 | F67: 105.120329 | G67: 104.6137167 | H67: 111.3337886 | I67: 107.0124443 | J67: 111.6257868 | K67: 107.6629703 | L67: 102.5979769 | M67: 102.8079224 | N67: 104.3657602 | O67: 101.6977249 | P67: 102.2453542 | Q67: 100.3420203 | R67: 99.42287027 | S67: 99.64316826 | T67: 98.30335946 | U67: 99.78986891 | V67: 97.20168598
A68: 64 | B68: 113.2289148 | C68: 115.3203285 | D68: 111.4639914 | E68: 110.690138 | F68: 105.9573993 | G68: 105.4060395 | H68: 112.2288583 | I68: 107.7324916 | J68: 112.5294899 | K68: 108.4471173 | L68: 103.3693834 | M68: 103.7320386 | N68: 105.2696381 | O68: 102.5864069 | P68: 103.0723478 | Q68: 101.1384086 | R68: 100.0891267 | S68: 100.4725578 | T68: 98.89042623 | U68: 100.5528987 | V68: 97.98261472
A69: 65 | B69: 113.96012 | C69: 115 | D69: 112.2613802 | E69: 111.687885 | F69: 106.7993072 | G69: 106.2400619 | H69: 113.1382593 | I69: 108.4391351 | J69: 113.4182924 | K69: 109.188291 | L69: 104.1543746 | M69: 104.6728829 | N69: 106.1724805 | O69: 103.4848517 | P69: 103.9117015 | Q69: 101.938572 | R69: 100.7853037 | S69: 101.3176937 | T69: 99.48516164 | U69: 101.3315977 | V69: 98.7796961
A70: 66 | B70: 114.7494867 | C70: 115 | D70: 113.1010217 | E70: 112.687885 | F70: 107.6572982 | G70: 107.1307431 | H70: 114.0609903 | I70: 109.1745193 | J70: 114.2825577 | K70: 109.9037211 | L70: 104.9571998 | M70: 105.625998 | N70: 107.0582628 | O70: 104.3867968 | P70: 104.7539838 | Q70: 102.7420919 | R70: 101.5121786 | S70: 102.1776372 | T70: 100.0955605 | U70: 102.1247802 | V70: 99.59177949
A71: 67 | B71: 115.7494867 | C71: 115 | D71: 114.0118582 | E71: 113.687885 | F71: 108.5397645 | G71: 108.0713771 | H71: 114.992263 | I71: 109.9641317 | J71: 115.1111271 | K71: 110.6067736 | L71: 105.785842 | M71: 106.5883661 | N71: 107.9072281 | O71: 105.2883481 | P71: 105.5861262 | Q71: 103.5534479 | R71: 102.2707459 | S71: 103.0514175 | T71: 100.7248659 | U71: 102.9391552 | V71: 100.4170995
A72: 68 | B72: 115 | C72: 115 | D72: 114.9917864 | E72: 114.687885 | F72: 109.445513 | G72: 109.044132 | H72: 115.9185489 | I72: 110.8249068 | J72: 115.9007529 | K72: 111.3285098 | L72: 106.6234287 | M72: 107.5612395 | N72: 108.723362 | O72: 106.1878999 | P72: 106.4020706 | Q72: 104.3817948 | R72: 103.0667151 | S72: 103.9417457 | T72: 101.3742014 | U72: 103.7728084 | V72: 101.2530126
A73: 69 | B73: 115 | C73: 115 | D73: 115.9917864 | E73: 115.687885 | F73: 110.3746991 | G73: 110.0340088 | H73: 115 | I73: 111.7551605 | J73: 115 | K73: 112.1093136 | L73: 107.4505715 | M73: 108.5441088 | N73: 109.5180479 | O73: 107.0746789 | P73: 107.1911884 | Q73: 105.2214709 | R73: 103.8970491 | S73: 104.8457394 | T73: 102.0441644 | U73: 104.606894 | V73: 102.0981676
A74: 70 | B74: 115 | C74: 115 | D74: 115 | E74: 115 | F74: 111.3267251 | G74: 111.0314853 | H74: 115 | I74: 112.7344285 | J74: 115 | K74: 112.9737837 | L74: 108.272336 | M74: 109.5347311 | N74: 110.2913595 | O74: 107.9494778 | P74: 107.9406977 | Q74: 106.0581782 | R74: 104.7576465 | S74: 105.7526412 | T74: 102.7380468 | U74: 105.4230373 | V74: 102.9486935
A75: 71 | B75: 115 | C75: 115 | D75: 115 | E75: 115 | F75: 112.2994117 | G75: 112.0314853 | H75: 115 | I75: 113.7344285 | J75: 115 | K75: 113.9097969 | L75: 109.0965056 | M75: 110.5307624 | N75: 111.0512394 | O75: 108.8224596 | P75: 108.6731428 | Q75: 106.8825486 | R75: 105.6458369 | S75: 106.6531617 | T75: 103.4481845 | U75: 106.221502 | V75: 103.80232
A76: 72 | B76: 115 | C76: 115 | D76: 115 | E76: 115 | F76: 113.2888433 | G76: 113.0314853 | H76: 115 | I76: 114.7344285 | J76: 115 | K76: 114.8822724 | L76: 109.9193081 | M76: 111.5297741 | N76: 111.8180902 | O76: 109.698232 | P76: 109.416644 | Q76: 107.6740302 | R76: 106.5566397 | S76: 107.5363172 | T76: 104.1755315 | U76: 107.0087298 | V76: 104.6594812
A77: 73 | B77: 115 | C77: 115 | D77: 115 | E77: 115 | F77: 114.2888433 | G77: 114.0314853 | H77: 115 | I77: 115.7344285 | J77: 115 | K77: 115.8822724 | L77: 110.7459291 | M77: 112.5297741 | N77: 112.6253359 | O77: 110.5739331 | P77: 110.1802456 | Q77: 108.4002903 | R77: 107.4918834 | S77: 108.4113232 | T77: 104.9275087 | U77: 107.7974722 | V77: 105.5223901
A78: 74 | B78: 115 | C78: 115 | D78: 115 | E78: 115 | F78: 115.2888433 | G78: 115.0314853 | H78: 115 | I78: 115 | J78: 115 | K78: 115 | L78: 111.5926809 | M78: 113.5297741 | N78: 113.5065931 | O78: 111.447798 | P78: 110.9729722 | Q78: 109.0629885 | R78: 108.4490024 | S78: 109.289432 | T78: 105.7108551 | U78: 108.6176304 | V78: 106.3804224
A79: 75 | B79: 115 | C79: 115 | D79: 115 | E79: 115 | F79: 115 | G79: 115 | H79: 115 | I79: 115 | J79: 115 | K79: 115 | L79: 112.4832021 | M79: 114.5297741 | N79: 114.4681725 | O79: 112.3210877 | P79: 111.8049496 | Q79: 109.6795521 | R79: 109.4221711 | S79: 110.1727086 | T79: 106.5348715 | U79: 109.486815 | V79: 107.216592
A80: 76 | B80: 115 | C80: 115 | D80: 115 | E80: 115 | F80: 115 | G80: 115 | H80: 115 | I80: 115 | J80: 115 | K80: 115 | L80: 113.4339493 | M80: 115.5297741 | N80: 115.4681725 | O80: 113.1985898 | P80: 112.687019 | Q80: 110.2563377 | R80: 110.4069546 | S80: 111.0637219 | T80: 107.4042863 | U80: 110.4029596 | V80: 108.0143092
A81: 77 | B81: 115 | C81: 115 | D81: 115 | E81: 115 | F81: 115 | G81: 115 | H81: 115 | I81: 115 | J81: 115 | K81: 115 | L81: 114.4339493 | M81: 115 | N81: 115 | O81: 114.0852942 | P81: 113.62506 | Q81: 110.8195608 | R81: 111.3998092 | S81: 111.96374 | T81: 108.3197176 | U81: 111.3528784 | V81: 108.7420414
A82: 78 | B82: 115 | C82: 115 | D82: 115 | E82: 115 | F82: 115 | G82: 115 | H82: 115 | I82: 115 | J82: 115 | K82: 115 | L82: 115.4339493 | M82: 115 | N82: 115 | O82: 114.9756708 | P82: 114.6098563 | Q82: 111.4240355 | R82: 112.3976728 | S82: 112.8695183 | T82: 109.2681469 | U82: 112.3164893 | V82: 109.4008079
A83: 79 | B83: 115 | C83: 115 | D83: 115 | E83: 115 | F83: 115 | G83: 115 | H83: 115 | I83: 115 | J83: 115 | K83: 115 | L83: 115 | M83: 115 | N83: 115 | O83: 115.8234086 | P83: 115.6098563 | Q83: 112.1427999 | R83: 113.3976728 | S83: 113.7695987 | T83: 110.2377394 | U83: 113.2724212 | V83: 110.0122098
A84: 80 | B84: 115 | C84: 115 | D84: 115 | E84: 115 | F84: 115 | G84: 115 | H84: 115 | I84: 115 | J84: 115 | K84: 115 | L84: 115 | M84: 115 | N84: 115 | O84: 115 | P84: 115 | Q84: 113.0205339 | R84: 114.3976728 | S84: 114.6418619 | T84: 111.2202782 | U84: 114.199751 | V84: 110.5996875
A85: 81 | B85: 115 | C85: 115 | D85: 115 | E85: 115 | F85: 115 | G85: 115 | H85: 115 | I85: 115 | J85: 115 | K85: 115 | L85: 115 | M85: 115 | N85: 115 | O85: 115 | P85: 115 | Q85: 114.0205339 | R85: 115.3976728 | S85: 115.4510609 | T85: 112.2112381 | U85: 115.06719 | V85: 111.2152735
A86: 82 | B86: 115 | C86: 115 | D86: 115 | E86: 115 | F86: 115 | G86: 115 | H86: 115 | I86: 115 | J86: 115 | K86: 115 | L86: 115 | M86: 115 | N86: 115 | O86: 115 | P86: 115 | Q86: 115.0205339 | R86: 115 | S86: 115 | T86: 113.2080767 | U86: 115.7734428 | V86: 111.9250712
A87: 83 | B87: 115 | C87: 115 | D87: 115 | E87: 115 | F87: 115 | G87: 115 | H87: 115 | I87: 115 | J87: 115 | K87: 115 | L87: 115 | M87: 115 | N87: 115 | O87: 115 | P87: 115 | Q87: 115 | R87: 115 | S87: 115 | T87: 114.2080767 | U87: 115 | V87: 112.7670174
A88: 84 | B88: 115 | C88: 115 | D88: 115 | E88: 115 | F88: 115 | G88: 115 | H88: 115 | I88: 115 | J88: 115 | K88: 115 | L88: 115 | M88: 115 | N88: 115 | O88: 115 | P88: 115 | Q88: 115 | R88: 115 | S88: 115 | T88: 115.2080767 | U88: 115 | V88: 113.7186858
A89: 85 | B89: 115 | C89: 115 | D89: 115 | E89: 115 | F89: 115 | G89: 115 | H89: 115 | I89: 115 | J89: 115 | K89: 115 | L89: 115 | M89: 115 | N89: 115 | O89: 115 | P89: 115 | Q89: 115 | R89: 115 | S89: 115 | T89: 115 | U89: 115 | V89: 114.7186858
A90: 86 | B90: 115 | C90: 115 | D90: 115 | E90: 115 | F90: 115 | G90: 115 | H90: 115 | I90: 115 | J90: 115 | K90: 115 | L90: 115 | M90: 115 | N90: 115 | O90: 115 | P90: 115 | Q90: 115 | R90: 115 | S90: 115 | T90: 115 | U90: 115 | V90: 115.7186858
A91: 87 | B91: 115 | C91: 115 | D91: 115 | E91: 115 | F91: 115 | G91: 115 | H91: 115 | I91: 115 | J91: 115 | K91: 115 | L91: 115 | M91: 115 | N91: 115 | O91: 115 | P91: 115 | Q91: 115 | R91: 115 | S91: 115 | T91: 115 | U91: 115 | V91: 115
A92: 88 | B92: 115 | C92: 115 | D92: 115 | E92: 115 | F92: 115 | G92: 115 | H92: 115 | I92: 115 | J92: 115 | K92: 115 | L92: 115 | M92: 115 | N92: 115 | O92: 115 | P92: 115 | Q92: 115 | R92: 115 | S92: 115 | T92: 115 | U92: 115 | V92: 115
A93: 89 | B93: 115 | C93: 115 | D93: 115 | E93: 115 | F93: 115 | G93: 115 | H93: 115 | I93: 115 | J93: 115 | K93: 115 | L93: 115 | M93: 115 | N93: 115 | O93: 115 | P93: 115 | Q93: 115 | R93: 115 | S93: 115 | T93: 115 | U93: 115 | V93: 115
A94: 90 | B94: 115 | C94: 115 | D94: 115 | E94: 115 | F94: 115 | G94: 115 | H94: 115 | I94: 115 | J94: 115 | K94: 115 | L94: 115 | M94: 115 | N94: 115 | O94: 115 | P94: 115 | Q94: 115 | R94: 115 | S94: 115 | T94: 115 | U94: 115 | V94: 115
A95: 91 | B95: 115 | C95: 115 | D95: 115 | E95: 115 | F95: 115 | G95: 115 | H95: 115 | I95: 115 | J95: 115 | K95: 115 | L95: 115 | M95: 115 | N95: 115 | O95: 115 | P95: 115 | Q95: 115 | R95: 115 | S95: 115 | T95: 115 | U95: 115 | V95: 115
A96: 92 | B96: 115 | C96: 115 | D96: 115 | E96: 115 | F96: 115 | G96: 115 | H96: 115 | I96: 115 | J96: 115 | K96: 115 | L96: 115 | M96: 115 | N96: 115 | O96: 115 | P96: 115 | Q96: 115 | R96: 115 | S96: 115 | T96: 115 | U96: 115 | V96: 115
A97: 93 | B97: 115 | C97: 115 | D97: 115 | E97: 115 | F97: 115 | G97: 115 | H97: 115 | I97: 115 | J97: 115 | K97: 115 | L97: 115 | M97: 115 | N97: 115 | O97: 115 | P97: 115 | Q97: 115 | R97: 115 | S97: 115 | T97: 115 | U97: 115 | V97: 115
A98: 94 | B98: 115 | C98: 115 | D98: 115 | E98: 115 | F98: 115 | G98: 115 | H98: 115 | I98: 115 | J98: 115 | K98: 115 | L98: 115 | M98: 115 | N98: 115 | O98: 115 | P98: 115 | Q98: 115 | R98: 115 | S98: 115 | T98: 115 | U98: 115 | V98: 115
A99: 95 | B99: 115 | C99: 115 | D99: 115 | E99: 115 | F99: 115 | G99: 115 | H99: 115 | I99: 115 | J99: 115 | K99: 115 | L99: 115 | M99: 115 | N99: 115 | O99: 115 | P99: 115 | Q99: 115 | R99: 115 | S99: 115 | T99: 115 | U99: 115 | V99: 115
A100: 96 | B100: 115 | C100: 115 | D100: 115 | E100: 115 | F100: 115 | G100: 115 | H100: 115 | I100: 115 | J100: 115 | K100: 115 | L100: 115 | M100: 115 | N100: 115 | O100: 115 | P100: 115 | Q100: 115 | R100: 115 | S100: 115 | T100: 115 | U100: 115 | V100: 115
A101: 97 | B101: 115 | C101: 115 | D101: 115 | E101: 115 | F101: 115 | G101: 115 | H101: 115 | I101: 115 | J101: 115 | K101: 115 | L101: 115 | M101: 115 | N101: 115 | O101: 115 | P101: 115 | Q101: 115 | R101: 115 | S101: 115 | T101: 115 | U101: 115 | V101: 115
A102: 98 | B102: 115 | C102: 115 | D102: 115 | E102: 115 | F102: 115 | G102: 115 | H102: 115 | I102: 115 | J102: 115 | K102: 115 | L102: 115 | M102: 115 | N102: 115 | O102: 115 | P102: 115 | Q102: 115 | R102: 115 | S102: 115 | T102: 115 | U102: 115 | V102: 115
A103: 99 | B103: 115 | C103: 115 | D103: 115 | E103: 115 | F103: 115 | G103: 115 | H103: 115 | I103: 115 | J103: 115 | K103: 115 | L103: 115 | M103: 115 | N103: 115 | O103: 115 | P103: 115 | Q103: 115 | R103: 115 | S103: 115 | T103: 115 | U103: 115 | V103: 115
A104: 100 | B104: 115 | C104: 115 | D104: 115 | E104: 115 | F104: 115 | G104: 115 | H104: 115 | I104: 115 | J104: 115 | K104: 115 | L104: 115 | M104: 115 | N104: 115 | O104: 115 | P104: 115 | Q104: 115 | R104: 115 | S104: 115 | T104: 115 | U104: 115 | V104: 115
A105: 101 | B105: 115 | C105: 115 | D105: 115 | E105: 115 | F105: 115 | G105: 115 | H105: 115 | I105: 115 | J105: 115 | K105: 115 | L105: 115 | M105: 115 | N105: 115 | O105: 115 | P105: 115 | Q105: 115 | R105: 115 | S105: 115 | T105: 115 | U105: 115 | V105: 115
A106: 102 | B106: 115 | C106: 115 | D106: 115 | E106: 115 | F106: 115 | G106: 115 | H106: 115 | I106: 115 | J106: 115 | K106: 115 | L106: 115 | M106: 115 | N106: 115 | O106: 115 | P106: 115 | Q106: 115 | R106: 115 | S106: 115 | T106: 115 | U106: 115 | V106: 115
A107: 103 | B107: 115 | C107: 115 | D107: 115 | E107: 115 | F107: 115 | G107: 115 | H107: 115 | I107: 115 | J107: 115 | K107: 115 | L107: 115 | M107: 115 | N107: 115 | O107: 115 | P107: 115 | Q107: 115 | R107: 115 | S107: 115 | T107: 115 | U107: 115 | V107: 115
A108: 104 | B108: 115 | C108: 115 | D108: 115 | E108: 115 | F108: 115 | G108: 115 | H108: 115 | I108: 115 | J108: 115 | K108: 115 | L108: 115 | M108: 115 | N108: 115 | O108: 115 | P108: 115 | Q108: 115 | R108: 115 | S108: 115 | T108: 115 | U108: 115 | V108: 115
A109: 105 | B109: 115 | C109: 115 | D109: 115 | E109: 115 | F109: 115 | G109: 115 | H109: 115 | I109: 115 | J109: 115 | K109: 115 | L109: 115 | M109: 115 | N109: 115 | O109: 115 | P109: 115 | Q109: 115 | R109: 115 | S109: 115 | T109: 115 | U109: 115 | V109: 115
A110: 106 | B110: 115 | C110: 115 | D110: 115 | E110: 115 | F110: 115 | G110: 115 | H110: 115 | I110: 115 | J110: 115 | K110: 115 | L110: 115 | M110: 115 | N110: 115 | O110: 115 | P110: 115 | Q110: 115 | R110: 115 | S110: 115 | T110: 115 | U110: 115 | V110: 115
A111: 107 | B111: 115 | C111: 115 | D111: 115 | E111: 115 | F111: 115 | G111: 115 | H111: 115 | I111: 115 | J111: 115 | K111: 115 | L111: 115 | M111: 115 | N111: 115 | O111: 115 | P111: 115 | Q111: 115 | R111: 115 | S111: 115 | T111: 115 | U111: 115 | V111: 115
A112: 108 | B112: 115 | C112: 115 | D112: 115 | E112: 115 | F112: 115 | G112: 115 | H112: 115 | I112: 115 | J112: 115 | K112: 115 | L112: 115 | M112: 115 | N112: 115 | O112: 115 | P112: 115 | Q112: 115 | R112: 115 | S112: 115 | T112: 115 | U112: 115 | V112: 115
A113: 109 | B113: 115 | C113: 115 | D113: 115 | E113: 115 | F113: 115 | G113: 115 | H113: 115 | I113: 115 | J113: 115 | K113: 115 | L113: 115 | M113: 115 | N113: 115 | O113: 115 | P113: 115 | Q113: 115 | R113: 115 | S113: 115 | T113: 115 | U113: 115 | V113: 115
A114: 110 | B114: 115 | C114: 115 | D114: 115 | E114: 115 | F114: 115 | G114: 115 | H114: 115 | I114: 115 | J114: 115 | K114: 115 | L114: 115 | M114: 115 | N114: 115 | O114: 115 | P114: 115 | Q114: 115 | R114: 115 | S114: 115 | T114: 115 | U114: 115 | V114: 115
A115: 111 | B115: 115 | C115: 115 | D115: 115 | E115: 115 | F115: 115 | G115: 115 | H115: 115 | I115: 115 | J115: 115 | K115: 115 | L115: 115 | M115: 115 | N115: 115 | O115: 115 | P115: 115 | Q115: 115 | R115: 115 | S115: 115 | T115: 115 | U115: 115 | V115: 115
A116: 112 | B116: 115 | C116: 115 | D116: 115 | E116: 115 | F116: 115 | G116: 115 | H116: 115 | I116: 115 | J116: 115 | K116: 115 | L116: 115 | M116: 115 | N116: 115 | O116: 115 | P116: 115 | Q116: 115 | R116: 115 | S116: 115 | T116: 115 | U116: 115 | V116: 115
A117: 113 | B117: 115 | C117: 115 | D117: 115 | E117: 115 | F117: 115 | G117: 115 | H117: 115 | I117: 115 | J117: 115 | K117: 115 | L117: 115 | M117: 115 | N117: 115 | O117: 115 | P117: 115 | Q117: 115 | R117: 115 | S117: 115 | T117: 115 | U117: 115 | V117: 115
A118: 114 | B118: 115 | C118: 115 | D118: 115 | E118: 115 | F118: 115 | G118: 115 | H118: 115 | I118: 115 | J118: 115 | K118: 115 | L118: 115 | M118: 115 | N118: 115 | O118: 115 | P118: 115 | Q118: 115 | R118: 115 | S118: 115 | T118: 115 | U118: 115 | V118: 115
A119: 115 | B119: 115 | C119: 115 | D119: 115 | E119: 115 | F119: 115 | G119: 115 | H119: 115 | I119: 115 | J119: 115 | K119: 115 | L119: 115 | M119: 115 | N119: 115 | O119: 115 | P119: 115 | Q119: 115 | R119: 115 | S119: 115 | T119: 115 | U119: 115 | V119: 115
A120: 116 | B120: 115 | C120: 115 | D120: 115 | E120: 115 | F120: 115 | G120: 115 | H120: 115 | I120: 115 | J120: 115 | K120: 115 | L120: 115 | M120: 115 | N120: 115 | O120: 115 | P120: 115 | Q120: 115 | R120: 115 | S120: 115 | T120: 115 | U120: 115 | V120: 115
A121: 117 | B121: 115 | C121: 115 | D121: 115 | E121: 115 | F121: 115 | G121: 115 | H121: 115 | I121: 115 | J121: 115 | K121: 115 | L121: 115 | M121: 115 | N121: 115 | O121: 115 | P121: 115 | Q121: 115 | R121: 115 | S121: 115 | T121: 115 | U121: 115 | V121: 115
A122: 118 | B122: 115 | C122: 115 | D122: 115 | E122: 115 | F122: 115 | G122: 115 | H122: 115 | I122: 115 | J122: 115 | K122: 115 | L122: 115 | M122: 115 | N122: 115 | O122: 115 | P122: 115 | Q122: 115 | R122: 115 | S122: 115 | T122: 115 | U122: 115 | V122: 115
A123: 119 | B123: 115 | C123: 115 | D123: 115 | E123: 115 | F123: 115 | G123: 115 | H123: 115 | I123: 115 | J123: 115 | K123: 115 | L123: 115 | M123: 115 | N123: 115 | O123: 115 | P123: 115 | Q123: 115 | R123: 115 | S123: 115 | T123: 115 | U123: 115 | V123: 115
A124: 120 | B124: 115 | C124: 115 | D124: 115 | E124: 115 | F124: 115 | G124: 115 | H124: 115 | I124: 115 | J124: 115 | K124: 115 | L124: 115 | M124: 115 | N124: 115 | O124: 115 | P124: 115 | Q124: 115 | R124: 115 | S124: 115 | T124: 115 | U124: 115 | V124: 115
A125: 121 | B125: 115 | C125: 115 | D125: 115 | E125: 115 | F125: 115 | G125: 115 | H125: 115 | I125: 115 | J125: 115 | K125: 115 | L125: 115 | M125: 115 | N125: 115 | O125: 115 | P125: 115 | Q125: 115 | R125: 115 | S125: 115 | T125: 115 | U125: 115 | V125: 115
A126: 122 | B126: 115 | C126: 115 | D126: 115 | E126: 115 | F126: 115 | G126: 115 | H126: 115 | I126: 115 | J126: 115 | K126: 115 | L126: 115 | M126: 115 | N126: 115 | O126: 115 | P126: 115 | Q126: 115 | R126: 115 | S126: 115 | T126: 115 | U126: 115 | V126: 115
A127: 123 | B127: 115 | C127: 115 | D127: 115 | E127: 115 | F127: 115 | G127: 115 | H127: 115 | I127: 115 | J127: 115 | K127: 115 | L127: 115 | M127: 115 | N127: 115 | O127: 115 | P127: 115 | Q127: 115 | R127: 115 | S127: 115 | T127: 115 | U127: 115 | V127: 115
A128: 124 | B128: 115 | C128: 115 | D128: 115 | E128: 115 | F128: 115 | G128: 115 | H128: 115 | I128: 115 | J128: 115 | K128: 115 | L128: 115 | M128: 115 | N128: 115 | O128: 115 | P128: 115 | Q128: 115 | R128: 115 | S128: 115 | T128: 115 | U128: 115 | V128: 115
A129: 125 | B129: 115 | C129: 115 | D129: 115 | E129: 115 | F129: 115 | G129: 115 | H129: 115 | I129: 115 | J129: 115 | K129: 115 | L129: 115 | M129: 115 | N129: 115 | O129: 115 | P129: 115 | Q129: 115 | R129: 115 | S129: 115 | T129: 115 | U129: 115 | V129: 115
A130: 126 | B130: 115 | C130: 115 | D130: 115 | E130: 115 | F130: 115 | G130: 115 | H130: 115 | I130: 115 | J130: 115 | K130: 115 | L130: 115 | M130: 115 | N130: 115 | O130: 115 | P130: 115 | Q130: 115 | R130: 115 | S130: 115 | T130: 115 | U130: 115 | V130: 115
A131: 127 | B131: 115 | C131: 115 | D131: 115 | E131: 115 | F131: 115 | G131: 115 | H131: 115 | I131: 115 | J131: 115 | K131: 115 | L131: 115 | M131: 115 | N131: 115 | O131: 115 | P131: 115 | Q131: 115 | R131: 115 | S131: 115 | T131: 115 | U131: 115 | V131: 115
A132: 128 | B132: 115 | C132: 115 | D132: 115 | E132: 115 | F132: 115 | G132: 115 | H132: 115 | I132: 115 | J132: 115 | K132: 115 | L132: 115 | M132: 115 | N132: 115 | O132: 115 | P132: 115 | Q132: 115 | R132: 115 | S132: 115 | T132: 115 | U132: 115 | V132: 115
A133: 129 | B133: 115 | C133: 115 | D133: 115 | E133: 115 | F133: 115 | G133: 115 | H133: 115 | I133: 115 | J133: 115 | K133: 115 | L133: 115 | M133: 115 | N133: 115 | O133: 115 | P133: 115 | Q133: 115 | R133: 115 | S133: 115 | T133: 115 | U133: 115 | V133: 115
A134: 130 | B134: 115 | C134: 115 | D134: 115 | E134: 115 | F134: 115 | G134: 115 | H134: 115 | I134: 115 | J134: 115 | K134: 115 | L134: 115 | M134: 115 | N134: 115 | O134: 115 | P134: 115 | Q134: 115 | R134: 115 | S134: 115 | T134: 115 | U134: 115 | V134: 115
A135: 131 | B135: 115 | C135: 115 | D135: 115 | E135: 115 | F135: 115 | G135: 115 | H135: 115 | I135: 115 | J135: 115 | K135: 115 | L135: 115 | M135: 115 | N135: 115 | O135: 115 | P135: 115 | Q135: 115 | R135: 115 | S135: 115 | T135: 115 | U135: 115 | V135: 115
A136: 132 | B136: 115 | C136: 115 | D136: 115 | E136: 115 | F136: 115 | G136: 115 | H136: 115 | I136: 115 | J136: 115 | K136: 115 | L136: 115 | M136: 115 | N136: 115 | O136: 115 | P136: 115 | Q136: 115 | R136: 115 | S136: 115 | T136: 115 | U136: 115 | V136: 115
A137: 133 | B137: 115 | C137: 115 | D137: 115 | E137: 115 | F137: 115 | G137: 115 | H137: 115 | I137: 115 | J137: 115 | K137: 115 | L137: 115 | M137: 115 | N137: 115 | O137: 115 | P137: 115 | Q137: 115 | R137: 115 | S137: 115 | T137: 115 | U137: 115 | V137: 115
A138: 134 | B138: 115 | C138: 115 | D138: 115 | E138: 115 | F138: 115 | G138: 115 | H138: 115 | I138: 115 | J138: 115 | K138: 115 | L138: 115 | M138: 115 | N138: 115 | O138: 115 | P138: 115 | Q138: 115 | R138: 115 | S138: 115 | T138: 115 | U138: 115 | V138: 115
A139: 135 | B139: 115 | C139: 115 | D139: 115 | E139: 115 | F139: 115 | G139: 115 | H139: 115 | I139: 115 | J139: 115 | K139: 115 | L139: 115 | M139: 115 | N139: 115 | O139: 115 | P139: 115 | Q139: 115 | R139: 115 | S139: 115 | T139: 115 | U139: 115 | V139: 115
A140: 136 | B140: 115 | C140: 115 | D140: 115 | E140: 115 | F140: 115 | G140: 115 | H140: 115 | I140: 115 | J140: 115 | K140: 115 | L140: 115 | M140: 115 | N140: 115 | O140: 115 | P140: 115 | Q140: 115 | R140: 115 | S140: 115 | T140: 115 | U140: 115 | V140: 115
A141: 137 | B141: 115 | C141: 115 | D141: 115 | E141: 115 | F141: 115 | G141: 115 | H141: 115 | I141: 115 | J141: 115 | K141: 115 | L141: 115 | M141: 115 | N141: 115 | O141: 115 | P141: 115 | Q141: 115 | R141: 115 | S141: 115 | T141: 115 | U141: 115 | V141: 115
A142: 138 | B142: 115 | C142: 115 | D142: 115 | E142: 115 | F142: 115 | G142: 115 | H142: 115 | I142: 115 | J142: 115 | K142: 115 | L142: 115 | M142: 115 | N142: 115 | O142: 115 | P142: 115 | Q142: 115 | R142: 115 | S142: 115 | T142: 115 | U142: 115 | V142: 115
A143: 139 | B143: 115 | C143: 115 | D143: 115 | E143: 115 | F143: 115 | G143: 115 | H143: 115 | I143: 115 | J143: 115 | K143: 115 | L143: 115 | M143: 115 | N143: 115 | O143: 115 | P143: 115 | Q143: 115 | R143: 115 | S143: 115 | T143: 115 | U143: 115 | V143: 115
A144: 140 | B144: 115 | C144: 115 | D144: 115 | E144: 115 | F144: 115 | G144: 115 | H144: 115 | I144: 115 | J144: 115 | K144: 115 | L144: 115 | M144: 115 | N144: 115 | O144: 115 | P144: 115 | Q144: 115 | R144: 115 | S144: 115 | T144: 115 | U144: 115 | V144: 115
A145: 141 | B145: 115 | C145: 115 | D145: 115 | E145: 115 | F145: 115 | G145: 115 | H145: 115 | I145: 115 | J145: 115 | K145: 115 | L145: 115 | M145: 115 | N145: 115 | O145: 115 | P145: 115 | Q145: 115 | R145: 115 | S145: 115 | T145: 115 | U145: 115 | V145: 115
A146: 142 | B146: 115 | C146: 115 | D146: 115 | E146: 115 | F146: 115 | G146: 115 | H146: 115 | I146: 115 | J146: 115 | K146: 115 | L146: 115 | M146: 115 | N146: 115 | O146: 115 | P146: 115 | Q146: 115 | R146: 115 | S146: 115 | T146: 115 | U146: 115 | V146: 115
A147: 143 | B147: 115 | C147: 115 | D147: 115 | E147: 115 | F147: 115 | G147: 115 | H147: 115 | I147: 115 | J147: 115 | K147: 115 | L147: 115 | M147: 115 | N147: 115 | O147: 115 | P147: 115 | Q147: 115 | R147: 115 | S147: 115 | T147: 115 | U147: 115 | V147: 115
A148: 144 | B148: 115 | C148: 115 | D148: 115 | E148: 115 | F148: 115 | G148: 115 | H148: 115 | I148: 115 | J148: 115 | K148: 115 | L148: 115 | M148: 115 | N148: 115 | O148: 115 | P148: 115 | Q148: 115 | R148: 115 | S148: 115 | T148: 115 | U148: 115 | V148: 115
A149: 145 | B149: 115 | C149: 115 | D149: 115 | E149: 115 | F149: 115 | G149: 115 | H149: 115 | I149: 115 | J149: 115 | K149: 115 | L149: 115 | M149: 115 | N149: 115 | O149: 115 | P149: 115 | Q149: 115 | R149: 115 | S149: 115 | T149: 115 | U149: 115 | V149: 115
A150: 146 | B150: 115 | C150: 115 | D150: 115 | E150: 115 | F150: 115 | G150: 115 | H150: 115 | I150: 115 | J150: 115 | K150: 115 | L150: 115 | M150: 115 | N150: 115 | O150: 115 | P150: 115 | Q150: 115 | R150: 115 | S150: 115 | T150: 115 | U150: 115 | V150: 115
A151: 147 | B151: 115 | C151: 115 | D151: 115 | E151: 115 | F151: 115 | G151: 115 | H151: 115 | I151: 115 | J151: 115 | K151: 115 | L151: 115 | M151: 115 | N151: 115 | O151: 115 | P151: 115 | Q151: 115 | R151: 115 | S151: 115 | T151: 115 | U151: 115 | V151: 115
A152: 148 | B152: 115 | C152: 115 | D152: 115 | E152: 115 | F152: 115 | G152: 115 | H152: 115 | I152: 115 | J152: 115 | K152: 115 | L152: 115 | M152: 115 | N152: 115 | O152: 115 | P152: 115 | Q152: 115 | R152: 115 | S152: 115 | T152: 115 | U152: 115 | V152: 115
A153: 149 | B153: 115 | C153: 115 | D153: 115 | E153: 115 | F153: 115 | G153: 115 | H153: 115 | I153: 115 | J153: 115 | K153: 115 | L153: 115 | M153: 115 | N153: 115 | O153: 115 | P153: 115 | Q153: 115 | R153: 115 | S153: 115 | T153: 115 | U153: 115 | V153: 115
A154: 150 | B154: 115 | C154: 115 | D154: 115 | E154: 115 | F154: 115 | G154: 115 | H154: 115 | I154: 115 | J154: 115 | K154: 115 | L154: 115 | M154: 115 | N154: 115 | O154: 115 | P154: 115 | Q154: 115 | R154: 115 | S154: 115 | T154: 115 | U154: 115 | V154: 115
A155: 151 | B155: 115 | C155: 115 | D155: 115 | E155: 115 | F155: 115 | G155: 115 | H155: 115 | I155: 115 | J155: 115 | K155: 115 | L155: 115 | M155: 115 | N155: 115 | O155: 115 | P155: 115 | Q155: 115 | R155: 115 | S155: 115 | T155: 115 | U155: 115 | V155: 115
A156: 152 | B156: 115 | C156: 115 | D156: 115 | E156: 115 | F156: 115 | G156: 115 | H156: 115 | I156: 115 | J156: 115 | K156: 115 | L156: 115 | M156: 115 | N156: 115 | O156: 115 | P156: 115 | Q156: 115 | R156: 115 | S156: 115 | T156: 115 | U156: 115 | V156: 115
A157: 153 | B157: 115 | C157: 115 | D157: 115 | E157: 115 | F157: 115 | G157: 115 | H157: 115 | I157: 115 | J157: 115 | K157: 115 | L157: 115 | M157: 115 | N157: 115 | O157: 115 | P157: 115 | Q157: 115 | R157: 115 | S157: 115 | T157: 115 | U157: 115 | V157: 115
A158: 154 | B158: 115 | C158: 115 | D158: 115 | E158: 115 | F158: 115 | G158: 115 | H158: 115 | I158: 115 | J158: 115 | K158: 115 | L158: 115 | M158: 115 | N158: 115 | O158: 115 | P158: 115 | Q158: 115 | R158: 115 | S158: 115 | T158: 115 | U158: 115 | V158: 115
A159: 155 | B159: 115 | C159: 115 | D159: 115 | E159: 115 | F159: 115 | G159: 115 | H159: 115 | I159: 115 | J159: 115 | K159: 115 | L159: 115 | M159: 115 | N159: 115 | O159: 115 | P159: 115 | Q159: 115 | R159: 115 | S159: 115 | T159: 115 | U159: 115 | V159: 115
A160: 156 | B160: 115 | C160: 115 | D160: 115 | E160: 115 | F160: 115 | G160: 115 | H160: 115 | I160: 115 | J160: 115 | K160: 115 | L160: 115 | M160: 115 | N160: 115 | O160: 115 | P160: 115 | Q160: 115 | R160: 115 | S160: 115 | T160: 115 | U160: 115 | V160: 115
A161: 157 | B161: 115 | C161: 115 | D161: 115 | E161: 115 | F161: 115 | G161: 115 | H161: 115 | I161: 115 | J161: 115 | K161: 115 | L161: 115 | M161: 115 | N161: 115 | O161: 115 | P161: 115 | Q161: 115 | R161: 115 | S161: 115 | T161: 115 | U161: 115 | V161: 115
A162: 158 | B162: 115 | C162: 115 | D162: 115 | E162: 115 | F162: 115 | G162: 115 | H162: 115 | I162: 115 | J162: 115 | K162: 115 | L162: 115 | M162: 115 | N162: 115 | O162: 115 | P162: 115 | Q162: 115 | R162: 115 | S162: 115 | T162: 115 | U162: 115 | V162: 115
A163: 159 | B163: 115 | C163: 115 | D163: 115 | E163: 115 | F163: 115 | G163: 115 | H163: 115 | I163: 115 | J163: 115 | K163: 115 | L163: 115 | M163: 115 | N163: 115 | O163: 115 | P163: 115 | Q163: 115 | R163: 115 | S163: 115 | T163: 115 | U163: 115 | V163: 115
A164: 160 | B164: 115 | C164: 115 | D164: 115 | E164: 115 | F164: 115 | G164: 115 | H164: 115 | I164: 115 | J164: 115 | K164: 115 | L164: 115 | M164: 115 | N164: 115 | O164: 115 | P164: 115 | Q164: 115 | R164: 115 | S164: 115 | T164: 115 | U164: 115 | V164: 115
A165: 161 | B165: 115 | C165: 115 | D165: 115 | E165: 115 | F165: 115 | G165: 115 | H165: 115 | I165: 115 | J165: 115 | K165: 115 | L165: 115 | M165: 115 | N165: 115 | O165: 115 | P165: 115 | Q165: 115 | R165: 115 | S165: 115 | T165: 115 | U165: 115 | V165: 115
A166: 162 | B166: 115 | C166: 115 | D166: 115 | E166: 115 | F166: 115 | G166: 115 | H166: 115 | I166: 115 | J166: 115 | K166: 115 | L166: 115 | M166: 115 | N166: 115 | O166: 115 | P166: 115 | Q166: 115 | R166: 115 | S166: 115 | T166: 115 | U166: 115 | V166: 115
A167: 163 | B167: 115 | C167: 115 | D167: 115 | E167: 115 | F167: 115 | G167: 115 | H167: 115 | I167: 115 | J167: 115 | K167: 115 | L167: 115 | M167: 115 | N167: 115 | O167: 115 | P167: 115 | Q167: 115 | R167: 115 | S167: 115 | T167: 115 | U167: 115 | V167: 115
A168: 164 | B168: 115 | C168: 115 | D168: 115 | E168: 115 | F168: 115 | G168: 115 | H168: 115 | I168: 115 | J168: 115 | K168: 115 | L168: 115 | M168: 115 | N168: 115 | O168: 115 | P168: 115 | Q168: 115 | R168: 115 | S168: 115 | T168: 115 | U168: 115 | V168: 115
A169: 165 | B169: 115 | C169: 115 | D169: 115 | E169: 115 | F169: 115 | G169: 115 | H169: 115 | I169: 115 | J169: 115 | K169: 115 | L169: 115 | M169: 115 | N169: 115 | O169: 115 | P169: 115 | Q169: 115 | R169: 115 | S169: 115 | T169: 115 | U169: 115 | V169: 115
A170: 166 | B170: 115 | C170: 115 | D170: 115 | E170: 115 | F170: 115 | G170: 115 | H170: 115 | I170: 115 | J170: 115 | K170: 115 | L170: 115 | M170: 115 | N170: 115 | O170: 115 | P170: 115 | Q170: 115 | R170: 115 | S170: 115 | T170: 115 | U170: 115 | V170: 115
A171: 167 | B171: 115 | C171: 115 | D171: 115 | E171: 115 | F171: 115 | G171: 115 | H171: 115 | I171: 115 | J171: 115 | K171: 115 | L171: 115 | M171: 115 | N171: 115 | O171: 115 | P171: 115 | Q171: 115 | R171: 115 | S171: 115 | T171: 115 | U171: 115 | V171: 115
A172: 168 | B172: 115 | C172: 115 | D172: 115 | E172: 115 | F172: 115 | G172: 115 | H172: 115 | I172: 115 | J172: 115 | K172: 115 | L172: 115 | M172: 115 | N172: 115 | O172: 115 | P172: 115 | Q172: 115 | R172: 115 | S172: 115 | T172: 115 | U172: 115 | V172: 115
A173: 169 | B173: 115 | C173: 115 | D173: 115 | E173: 115 | F173: 115 | G173: 115 | H173: 115 | I173: 115 | J173: 115 | K173: 115 | L173: 115 | M173: 115 | N173: 115 | O173: 115 | P173: 115 | Q173: 115 | R173: 115 | S173: 115 | T173: 115 | U173: 115 | V173: 115
A174: 170 | B174: 115 | C174: 115 | D174: 115 | E174: 115 | F174: 115 | G174: 115 | H174: 115 | I174: 115 | J174: 115 | K174: 115 | L174: 115 | M174: 115 | N174: 115 | O174: 115 | P174: 115 | Q174: 115 | R174: 115 | S174: 115 | T174: 115 | U174: 115 | V174: 115
A175: 171 | B175: 115 | C175: 115 | D175: 115 | E175: 115 | F175: 115 | G175: 115 | H175: 115 | I175: 115 | J175: 115 | K175: 115 | L175: 115 | M175: 115 | N175: 115 | O175: 115 | P175: 115 | Q175: 115 | R175: 115 | S175: 115 | T175: 115 | U175: 115 | V175: 115
A176: 172 | B176: 115 | C176: 115 | D176: 115 | E176: 115 | F176: 115 | G176: 115 | H176: 115 | I176: 115 | J176: 115 | K176: 115 | L176: 115 | M176: 115 | N176: 115 | O176: 115 | P176: 115 | Q176: 115 | R176: 115 | S176: 115 | T176: 115 | U176: 115 | V176: 115
A177: 173 | B177: 115 | C177: 115 | D177: 115 | E177: 115 | F177: 115 | G177: 115 | H177: 115 | I177: 115 | J177: 115 | K177: 115 | L177: 115 | M177: 115 | N177: 115 | O177: 115 | P177: 115 | Q177: 115 | R177: 115 | S177: 115 | T177: 115 | U177: 115 | V177: 115
A178: 174 | B178: 115 | C178: 115 | D178: 115 | E178: 115 | F178: 115 | G178: 115 | H178: 115 | I178: 115 | J178: 115 | K178: 115 | L178: 115 | M178: 115 | N178: 115 | O178: 115 | P178: 115 | Q178: 115 | R178: 115 | S178: 115 | T178: 115 | U178: 115 | V178: 115
A179: 175 | B179: 115 | C179: 115 | D179: 115 | E179: 115 | F179: 115 | G179: 115 | H179: 115 | I179: 115 | J179: 115 | K179: 115 | L179: 115 | M179: 115 | N179: 115 | O179: 115 | P179: 115 | Q179: 115 | R179: 115 | S179: 115 | T179: 115 | U179: 115 | V179: 115
A180: 176 | B180: 115 | C180: 115 | D180: 115 | E180: 115 | F180: 115 | G180: 115 | H180: 115 | I180: 115 | J180: 115 | K180: 115 | L180: 115 | M180: 115 | N180: 115 | O180: 115 | P180: 115 | Q180: 115 | R180: 115 | S180: 115 | T180: 115 | U180: 115 | V180: 115
A181: 177 | B181: 115 | C181: 115 | D181: 115 | E181: 115 | F181: 115 | G181: 115 | H181: 115 | I181: 115 | J181: 115 | K181: 115 | L181: 115 | M181: 115 | N181: 115 | O181: 115 | P181: 115 | Q181: 115 | R181: 115 | S181: 115 | T181: 115 | U181: 115 | V181: 115
A182: 178 | B182: 115 | C182: 115 | D182: 115 | E182: 115 | F182: 115 | G182: 115 | H182: 115 | I182: 115 | J182: 115 | K182: 115 | L182: 115 | M182: 115 | N182: 115 | O182: 115 | P182: 115 | Q182: 115 | R182: 115 | S182: 115 | T182: 115 | U182: 115 | V182: 115
A183: 179 | B183: 115 | C183: 115 | D183: 115 | E183: 115 | F183: 115 | G183: 115 | H183: 115 | I183: 115 | J183: 115 | K183: 115 | L183: 115 | M183: 115 | N183: 115 | O183: 115 | P183: 115 | Q183: 115 | R183: 115 | S183: 115 | T183: 115 | U183: 115 | V183: 115
A184: 180 | B184: 115 | C184: 115 | D184: 115 | E184: 115 | F184: 115 | G184: 115 | H184: 115 | I184: 115 | J184: 115 | K184: 115 | L184: 115 | M184: 115 | N184: 115 | O184: 115 | P184: 115 | Q184: 115 | R184: 115 | S184: 115 | T184: 115 | U184: 115 | V184: 115
A185: 181 | B185: 115 | C185: 115 | D185: 115 | E185: 115 | F185: 115 | G185: 115 | H185: 115 | I185: 115 | J185: 115 | K185: 115 | L185: 115 | M185: 115 | N185: 115 | O185: 115 | P185: 115 | Q185: 115 | R185: 115 | S185: 115 | T185: 115 | U185: 115 | V185: 115
A186: 182 | B186: 115 | C186: 115 | D186: 115 | E186: 115 | F186: 115 | G186: 115 | H186: 115 | I186: 115 | J186: 115 | K186: 115 | L186: 115 | M186: 115 | N186: 115 | O186: 115 | P186: 115 | Q186: 115 | R186: 115 | S186: 115 | T186: 115 | U186: 115 | V186: 115
A187: 183 | B187: 115 | C187: 115 | D187: 115 | E187: 115 | F187: 115 | G187: 115 | H187: 115 | I187: 115 | J187: 115 | K187: 115 | L187: 115 | M187: 115 | N187: 115 | O187: 115 | P187: 115 | Q187: 115 | R187: 115 | S187: 115 | T187: 115 | U187: 115 | V187: 115
A188: 184 | B188: 115 | C188: 115 | D188: 115 | E188: 115 | F188: 115 | G188: 115 | H188: 115 | I188: 115 | J188: 115 | K188: 115 | L188: 115 | M188: 115 | N188: 115 | O188: 115 | P188: 115 | Q188: 115 | R188: 115 | S188: 115 | T188: 115 | U188: 115 | V188: 115
A189: 185 | B189: 115 | C189: 115 | D189: 115 | E189: 115 | F189: 115 | G189: 115 | H189: 115 | I189: 115 | J189: 115 | K189: 115 | L189: 115 | M189: 115 | N189: 115 | O189: 115 | P189: 115 | Q189: 115 | R189: 115 | S189: 115 | T189: 115 | U189: 115 | V189: 115
A190: 186 | B190: 115 | C190: 115 | D190: 115 | E190: 115 | F190: 115 | G190: 115 | H190: 115 | I190: 115 | J190: 115 | K190: 115 | L190: 115 | M190: 115 | N190: 115 | O190: 115 | P190: 115 | Q190: 115 | R190: 115 | S190: 115 | T190: 115 | U190: 115 | V190: 115
A191: 187 | B191: 115 | C191: 115 | D191: 115 | E191: 115 | F191: 115 | G191: 115 | H191: 115 | I191: 115 | J191: 115 | K191: 115 | L191: 115 | M191: 115 | N191: 115 | O191: 115 | P191: 115 | Q191: 115 | R191: 115 | S191: 115 | T191: 115 | U191: 115 | V191: 115
A192: 188 | B192: 115 | C192: 115 | D192: 115 | E192: 115 | F192: 115 | G192: 115 | H192: 115 | I192: 115 | J192: 115 | K192: 115 | L192: 115 | M192: 115 | N192: 115 | O192: 115 | P192: 115 | Q192: 115 | R192: 115 | S192: 115 | T192: 115 | U192: 115 | V192: 115
A193: 189 | B193: 115 | C193: 115 | D193: 115 | E193: 115 | F193: 115 | G193: 115 | H193: 115 | I193: 115 | J193: 115 | K193: 115 | L193: 115 | M193: 115 | N193: 115 | O193: 115 | P193: 115 | Q193: 115 | R193: 115 | S193: 115 | T193: 115 | U193: 115 | V193: 115
A194: 190 | B194: 115 | C194: 115 | D194: 115 | E194: 115 | F194: 115 | G194: 115 | H194: 115 | I194: 115 | J194: 115 | K194: 115 | L194: 115 | M194: 115 | N194: 115 | O194: 115 | P194: 115 | Q194: 115 | R194: 115 | S194: 115 | T194: 115 | U194: 115 | V194: 115
A195: 191 | B195: 115 | C195: 115 | D195: 115 | E195: 115 | F195: 115 | G195: 115 | H195: 115 | I195: 115 | J195: 115 | K195: 115 | L195: 115 | M195: 115 | N195: 115 | O195: 115 | P195: 115 | Q195: 115 | R195: 115 | S195: 115 | T195: 115 | U195: 115 | V195: 115
A196: 192 | B196: 115 | C196: 115 | D196: 115 | E196: 115 | F196: 115 | G196: 115 | H196: 115 | I196: 115 | J196: 115 | K196: 115 | L196: 115 | M196: 115 | N196: 115 | O196: 115 | P196: 115 | Q196: 115 | R196: 115 | S196: 115 | T196: 115 | U196: 115 | V196: 115
A197: 193 | B197: 115 | C197: 115 | D197: 115 | E197: 115 | F197: 115 | G197: 115 | H197: 115 | I197: 115 | J197: 115 | K197: 115 | L197: 115 | M197: 115 | N197: 115 | O197: 115 | P197: 115 | Q197: 115 | R197: 115 | S197: 115 | T197: 115 | U197: 115 | V197: 115
A198: 194 | B198: 115 | C198: 115 | D198: 115 | E198: 115 | F198: 115 | G198: 115 | H198: 115 | I198: 115 | J198: 115 | K198: 115 | L198: 115 | M198: 115 | N198: 115 | O198: 115 | P198: 115 | Q198: 115 | R198: 115 | S198: 115 | T198: 115 | U198: 115 | V198: 115
A199: 195 | B199: 115 | C199: 115 | D199: 115 | E199: 115 | F199: 115 | G199: 115 | H199: 115 | I199: 115 | J199: 115 | K199: 115 | L199: 115 | M199: 115 | N199: 115 | O199: 115 | P199: 115 | Q199: 115 | R199: 115 | S199: 115 | T199: 115 | U199: 115 | V199: 115
A200: 196 | B200: 115 | C200: 115 | D200: 115 | E200: 115 | F200: 115 | G200: 115 | H200: 115 | I200: 115 | J200: 115 | K200: 115 | L200: 115 | M200: 115 | N200: 115 | O200: 115 | P200: 115 | Q200: 115 | R200: 115 | S200: 115 | T200: 115 | U200: 115 | V200: 115
A201: 197 | B201: 115 | C201: 115 | D201: 115 | E201: 115 | F201: 115 | G201: 115 | H201: 115 | I201: 115 | J201: 115 | K201: 115 | L201: 115 | M201: 115 | N201: 115 | O201: 115 | P201: 115 | Q201: 115 | R201: 115 | S201: 115 | T201: 115 | U201: 115 | V201: 115
A202: 198 | B202: 115 | C202: 115 | D202: 115 | E202: 115 | F202: 115 | G202: 115 | H202: 115 | I202: 115 | J202: 115 | K202: 115 | L202: 115 | M202: 115 | N202: 115 | O202: 115 | P202: 115 | Q202: 115 | R202: 115 | S202: 115 | T202: 115 | U202: 115 | V202: 115
... 2 more rows

Sheet LossTriangle
A2: 5 Yr VWA | B2: =IFERROR(VolumeWeightedLDF(B7:C120, 5), 1) -> 1 | C2: =IFERROR(VolumeWeightedLDF(C7:D120, 5), 1) -> 1 | D2: 1 | E2: 1 | F2: 1 | G2: 1 | H2: 1 | I2: 1 | J2: 1 | K2: 1 | L2: 1 | M2: 1 | N2: 1 | O2: 1 | P2: 1 | Q2: 1 | R2: 1 | S2: 1 | T2: 1 | U2: 1 | V2: 1 | W2: 1 | X2: 1 | Y2: 1 | Z2: 1 | AA2: 1 | AB2: 1 | AC2: 1 | AD2: 1 | AE2: 1 | AF2: 1 | AG2: 1 | AH2: 1 | AI2: 1 | AJ2: 1 | AK2: 1 | AL2: 1 | AM2: 1 | AN2: 1 | AO2: 1 | AP2: 1 | AQ2: 1 | AR2: 1 | AS2: 1 | AT2: 1 | AU2: 1 | AV2: 1 | AW2: 1 | AX2: 1 | AY2: 1 | AZ2: 1 | BA2: 1 | BB2: 1 | BC2: 1 | BD2: 1 | BE2: 1 | BF2: 1 | BG2: 1 | BH2: 1 | BI2: 1 | BJ2: 1 | BK2: 1 | BL2: 1 | BM2: 1 | BN2: 1 | BO2: =IFERROR(VolumeWeightedLDF(BO7:BP120, 5), 1) -> 1 | BP2: 1 | BQ2: 1 | BR2: 1 | BS2: 1 | BT2: 1 | BU2: 1 | BV2: 1 | BW2: 1 | BX2: 1 | BY2: 1 | BZ2: 1 | CA2: 1 | CB2: 1 | CC2: 1 | CD2: 1 | CE2: 1 | CF2: 1 | CG2: 1 | CH2: 1 | CI2: 1 | CJ2: 1 | CK2: 1 | CL2: 1 | CM2: 1 | CN2: 1 | CO2: 1 | CP2: 1 | CQ2: 1 | CR2: 1 | CS2: 1 | CT2: 1 | CU2: 1 | CV2: 1 | CW2: 1 | CX2: 1 | CY2: 1 | CZ2: 1
A3: Other
B5: Dev Months | E5: All Link Ratios
A6: Loss yr | B6: 6 | C6: =IF(COUNT(C7)=1,B6+12, "") -> 18 | D6: =IF(COUNT(D7)=1,C6+12, "") -> 30 | E6: 42 | F6: 54 | G6: 66 | H6: 78 | I6: 90 | J6: 102 | K6: 114 | L6: 126 | M6: 138 | N6: 150 | O6: 162 | P6: 174 | Q6: 186 | R6: 198 | S6: 210 | T6: 222 | U6: 234 | V6: 246 | W6: 258 | X6: 270 | Y6: 282 | Z6: 294 | AA6: 306 | AB6: 318 | AC6: 330 | AD6: 342 | AE6: 354 | AF6: 366 | AG6: 378 | AH6: 390 | BP6: =IF(COUNT(BP7)=1,BO6+12, "") -> 
A7: 1985 | B7: 0 | C7: 0 | D7: 0 | E7: 0 | F7: 0 | G7: 0 | H7: 0 | I7: 0 | J7: 0 | K7: 0 | L7: 0 | M7: 0 | N7: 0 | O7: 0 | P7: 0 | Q7: 0 | R7: 0 | S7: 0 | T7: 0 | U7: 0 | V7: 0 | W7: 0 | X7: 950430.2733 | Y7: 956132.855 | Z7: 959957.3864 | AA7: 963797.2159 | AB7: 966688.6076 | AC7: 970555.362 | AD7: 974437.5835 | AE7: 977360.8962 | AF7: 979315.618 | AG7: 981274.2493 | AH7: 984218.072
A8: 1986 | B8: 0 | C8: 0 | D8: 0 | E8: 0 | F8: 0 | G8: 0 | H8: 0 | I8: 0 | J8: 0 | K8: 0 | L8: 0 | M8: 0 | N8: 0 | O8: 0 | P8: 0 | Q8: 0 | R8: 0 | S8: 0 | T8: 0 | U8: 0 | V8: 0 | W8: 1078995.22 | X8: 1083311.201 | Y8: 1088727.757 | Z8: 1094171.396 | AA8: 1099642.253 | AB8: 1105140.464 | AC8: 1110666.167 | AD8: 1116219.497 | AE8: 1122916.814 | AF8: 1127408.482 | AG8: 1133045.524
A9: 1987 | B9: 0 | C9: 0 | D9: 0 | E9: 0 | F9: 0 | G9: 0 | H9: 0 | I9: 0 | J9: 0 | K9: 0 | L9: 0 | M9: 0 | N9: 0 | O9: 0 | P9: 0 | Q9: 0 | R9: 0 | S9: 0 | T9: 0 | U9: 0 | V9: 1264880.453 | W9: 1273734.616 | X9: 1280103.289 | Y9: 1286503.805 | Z9: 1292936.324 | AA9: 1299401.006 | AB9: 1304598.61 | AC9: 1312426.202 | AD9: 1317675.906 | AE9: 1321628.934 | AF9: 1325593.821
A10: 1988 | B10: 0 | C10: 0 | D10: 0 | E10: 0 | F10: 0 | G10: 0 | H10: 0 | I10: 0 | J10: 0 | K10: 0 | L10: 0 | M10: 0 | N10: 0 | O10: 0 | P10: 0 | Q10: 0 | R10: 0 | S10: 0 | T10: 0 | U10: 1462524.162 | V10: 1472761.831 | W10: 1480125.641 | X10: 1487526.269 | Y10: 1494963.9 | Z10: 1502438.72 | AA10: 1509950.913 | AB10: 1515990.717 | AC10: 1520538.689 | AD10: 1525100.305 | AE10: 1529675.606
A11: 1989 | B11: 0 | C11: 0 | D11: 0 | E11: 0 | F11: 0 | G11: 0 | H11: 0 | I11: 0 | J11: 0 | K11: 0 | L11: 0 | M11: 0 | N11: 0 | O11: 0 | P11: 0 | Q11: 0 | R11: 0 | S11: 0 | T11: 1690643.108 | U11: 1702477.609 | V11: 1710989.997 | W11: 1719544.947 | X11: 1729862.217 | Y11: 1743701.115 | Z11: 1754163.322 | AA11: 1762934.138 | AB11: 1773511.743 | AC11: 1778832.278 | AD11: 1784168.775
A12: 1990 | B12: 0 | C12: 0 | D12: 0 | E12: 0 | F12: 0 | G12: 0 | H12: 0 | I12: 0 | J12: 0 | K12: 0 | L12: 0 | M12: 0 | N12: 0 | O12: 0 | P12: 0 | Q12: 0 | R12: 0 | S12: 1941606.539 | T12: 1951314.572 | U12: 1961071.145 | V12: 1970876.5 | W12: 1980730.883 | X12: 1990634.537 | Y12: 2000587.71 | Z12: 2010590.649 | AA12: 2018633.011 | AB12: 2024688.91 | AC12: 2028738.288
A13: 1991 | B13: 0 | C13: 0 | D13: 0 | E13: 0 | F13: 0 | G13: 0 | H13: 0 | I13: 0 | J13: 0 | K13: 0 | L13: 0 | M13: 0 | N13: 0 | O13: 0 | P13: 0 | Q13: 0 | R13: 2066027.543 | S13: 2082555.763 | T13: 2097133.654 | U13: 2109716.456 | V13: 2120265.038 | W13: 2132986.628 | X13: 2143651.561 | Y13: 2156513.471 | Z13: 2167296.038 | AA13: 2173797.926 | AB13: 2180319.32
A14: 1992 | B14: 0 | C14: 0 | D14: 0 | E14: 0 | F14: 0 | G14: 0 | H14: 0 | I14: 0 | J14: 0 | K14: 0 | L14: 0 | M14: 0 | N14: 0 | O14: 0 | P14: 0 | Q14: 1623776.729 | R14: 1651380.933 | S14: 1666243.362 | T14: 1679573.309 | U14: 1682932.455 | V14: 1693030.05 | W14: 1704881.26 | X14: 1715110.548 | Y14: 1725401.211 | Z14: 1734028.217 | AA14: 1740964.33
A15: 1993 | B15: 0 | C15: 0 | D15: 0 | E15: 0 | F15: 0 | G15: 0 | H15: 0 | I15: 0 | J15: 0 | K15: 0 | L15: 0 | M15: 0 | N15: 0 | O15: 0 | P15: 1345599.692 | Q15: 1363092.488 | R15: 1379449.598 | S15: 1394623.544 | T15: 1411359.026 | U15: 1425472.617 | V15: 1439727.343 | W15: 1457004.071 | X15: 1471574.112 | Y15: 1483346.704 | Z15: 1490763.438
A16: 1994 | B16: 0 | C16: 0 | D16: 0 | E16: 0 | F16: 0 | G16: 0 | H16: 0 | I16: 0 | J16: 0 | K16: 0 | L16: 0 | M16: 0 | N16: 0 | O16: 1296090.382 | P16: 1316827.828 | Q16: 1333946.59 | R16: 1351287.895 | S16: 1368854.638 | T16: 1382543.184 | U16: 1396368.616 | V16: 1411728.671 | W16: 1427257.686 | X16: 1437248.49 | Y16: 1448746.478
A17: 1995 | B17: 0 | C17: 0 | D17: 0 | E17: 0 | F17: 0 | G17: 0 | H17: 0 | I17: 0 | J17: 0 | K17: 0 | L17: 0 | M17: 0 | N17: 1368157.971 | O17: 1398257.446 | P17: 1424824.337 | Q17: 1450471.176 | R17: 1472228.243 | S17: 1492839.439 | T17: 1513739.191 | U17: 1536445.279 | V17: 1554882.622 | W17: 1570431.448 | X17: 1590847.057
A18: 1996 | B18: 0 | C18: 0 | D18: 0 | E18: 0 | F18: 0 | G18: 0 | H18: 0 | I18: 0 | J18: 0 | K18: 0 | L18: 0 | M18: 1445846.5 | N18: 1480546.816 | O18: 1513118.846 | P18: 1543381.223 | Q18: 1566531.942 | R18: 1588463.389 | S18: 1610701.876 | T18: 1631641.001 | U18: 1652852.334 | V18: 1669380.857 | W18: 1681066.523
A19: 1997 | B19: 0 | C19: 0 | D19: 0 | E19: 0 | F19: 0 | G19: 0 | H19: 0 | I19: 0 | J19: 0 | K19: 0 | L19: 1688380.986 | M19: 1732278.891 | N19: 1773853.585 | O19: 1811104.51 | P19: 1841893.287 | Q19: 1871363.579 | R19: 1893819.942 | S19: 1920333.421 | T19: 1947218.089 | U19: 1962795.834 | V19: 1974572.609
A20: 1998 | B20: 0 | C20: 0 | D20: 0 | E20: 0 | F20: 0 | G20: 0 | H20: 0 | I20: 0 | J20: 0 | K20: 2127106.044 | L20: 2199427.65 | M20: 2267609.907 | N20: 2322032.545 | O20: 2368473.196 | P20: 2411105.713 | Q20: 2452094.51 | R20: 2491328.023 | S20: 2531189.271 | T20: 2561563.542 | U20: 2584617.614
A21: 1999 | B21: 0 | C21: 0 | D21: 0 | E21: 0 | F21: 0 | G21: 0 | H21: 0 | I21: 0 | J21: 2403023.603 | K21: 2477517.334 | L21: 2559275.407 | M21: 2630935.118 | N21: 2701970.366 | O21: 2750605.833 | P21: 2794615.526 | Q21: 2842123.99 | R21: 2890440.098 | S21: 2930906.259 | T21: 2963146.228
A22: 2000 | B22: 0 | C22: 0 | D22: 0 | E22: 0 | F22: 0 | G22: 0 | H22: 0 | I22: 2791335.723 | J22: 2902989.152 | K22: 3001690.783 | L22: 3085738.125 | M22: 3159795.84 | N22: 3229311.349 | O22: 3290668.264 | P22: 3359772.298 | Q22: 3410168.882 | R22: 3451090.909 | S22: 3485601.818
A23: 2001 | B23: 0 | C23: 0 | D23: 0 | E23: 0 | F23: 0 | G23: 0 | H23: 3974040.534 | I23: 4172742.561 | J23: 4347997.748 | K23: 4504525.667 | L23: 4648670.489 | M23: 4764887.251 | N23: 4869714.77 | O23: 4991457.64 | P23: 5081303.877 | Q23: 5157523.435 | R23: 5224571.24
A24: 2002 | B24: 0 | C24: 0 | D24: 0 | E24: 0 | F24: 0 | G24: 3979737.58 | H24: 4234440.785 | I24: 4441928.383 | J24: 4619605.519 | K24: 4762813.29 | L24: 4886646.435 | M24: 5003925.95 | N24: 5104004.469 | O24: 5206084.558 | P24: 5278969.742 | Q24: 5342317.379
A25: 2003 | B25: 0 | C25: 0 | D25: 0 | E25: 0 | F25: 3321496.319 | G25: 3627073.98 | H25: 3862833.789 | I25: 4067563.98 | J25: 4242469.231 | K25: 4373985.777 | L25: 4500831.365 | M25: 4640357.137 | N25: 4747085.351 | O25: 4827785.802 | P25: 4900202.589
A26: 2004 | B26: 0 | C26: 0 | D26: 0 | E26: 2233468.593 | F26: 2568488.882 | G26: 2845885.682 | H26: 3070710.651 | I26: 3267236.132 | J26: 3410994.522 | K26: 3540612.314 | L26: 3671614.97 | M26: 3778091.804 | N26: 3853653.64 | O26: 3915312.098
A27: 2005 | B27: 0 | C27: 0 | D27: 1567131.229 | E27: 1965182.561 | F27: 2301228.779 | G27: 2558966.402 | H27: 2773919.579 | I27: 2934806.915 | J27: 3090351.682 | K27: 3232507.859 | L27: 3348878.142 | M27: 3435948.974 | N27: 3504667.953

Sheet CurveFit
K2: y = Ax^(-b)exp(-rx) | Q2: x | R2: y | S2: x | T2: y | U2: x | V2: y
K3: Fitting Constraints | Q3: 1 | R3: =SCAT_A*Q3^(-SCAT_b)*EXP(-SCAT_r*Q3) -> 1.0058786 | S3: =Q22+1 -> 11.5 | T3: =SCAT_A*S3^(-SCAT_b)*EXP(-SCAT_r*S3) -> 0.02240674526 | U3: =S22+1 -> 31.5 | V3: =SCAT_A*U3^(-SCAT_b)*EXP(-SCAT_r*U3) -> 0.003097428421
K4: A = | M4: To contrain parameters, enter value here | Q4: 1.1 | R4: 0.8741486743 | S4: =S3+1 -> 12.5 | T4: 0.0193506781 | U4: =U3+1 -> 32.5 | V4: 0.00288429653
K5: b = | M5: Leave blank to unconstrain | Q5: 1.2 | R5: 0.7688368046 | S5: 13.5 | T5: 0.01686722997 | U5: 33.5 | V5: 0.002689509521
K6: r = | Q6: 1.3 | R6: 0.6830574526 | S6: 14.5 | T6: 0.01481988989 | U6: 34.5 | V6: 0.002511110554
Q7: 1.4 | R7: 0.6120762303 | S7: 15.5 | T7: 0.01311108961 | U7: 35.5 | V7: 0.002347394957
K8: Additional Constraints | Q8: 1.5 | R8: 0.552541018 | S8: 16.5 | T8: 0.0116694591 | U8: 36.5 | V8: 0.002196872091
K9: t* <= | M9: Default is to leave this blank | Q9: 1.6 | R9: 0.5020182572 | S9: 17.5 | T9: 0.01044173096 | U9: 37.5 | V9: 0.00205823381
Q10: 1.7 | R10: 0.45870264 | S10: 18.5 | T10: 0.009387441541 | U10: 38.5 | V10: 0.001930328242
Q11: 1.8 | R11: 0.4212294172 | S11: 19.5 | T11: 0.008475370748 | U11: 39.5 | V11: 0.001812137885
A12: Default filters shown below are applied automatically whenever data is copied over using one of the macros in the LossTriangle tab. To manually apply filters, click "Apply Filters" below. | K12: Run Batch Solver | Q12: 1.9 | R12: 0.3885496093 | S12: 20.5 | T12: 0.007681094094 | U12: 40.5 | V12: 0.001702761213
Q13: 2 | R13: 0.3598449757 | S13: 21.5 | T13: 0.006985264749 | U13: 41.5 | V13: 0.001601397173
Q14: 2.5 | R14: 0.2572627739 | S14: 22.5 | T14: 0.006372385528 | U14: 42.5 | V14: 0.001507332056
K15: Solver Metrics | Q15: =Q14+1 -> 3.5 | R15: 0.1541098269 | S15: 23.5 | T15: 0.005829916497 | U15: 43.5 | V15: 0.001419928324
K16: t* | L16: =SCAT_b/SCAT_r -> 55.33157179 | Q16: 4.5 | R16: 0.104408763 | S16: 24.5 | T16: 0.005347616717 | U16: 44.5 | V16: 0.001338615092
A17: Default Filters | K17: Error | L17: =SUBTOTAL(9,L26:L19360)/SUBTOTAL(9,K26:K19360) -> 5.637843171e-06 | Q17: 5.5 | R17: 0.07610837465 | S17: 25.5 | T17: 0.004917052065 | U17: 45.5 | V17: 0.001262879954
A18: Exclude first n loss years | B18: Incude only n recent cal years | C18: Exclude first n dev years | Q18: 6.5 | R18: 0.0582410188 | S18: 26.5 | T18: 0.004531222621 | U18: 46.5 | V18: 0.001192261977
K19: Solution | Q19: 7.5 | R19: 0.04613822026 | S19: 27.5 | T19: 0.004184277369 | U19: 47.5 | V19: 0.001126345642
K20: A | L20: 1.032499469 | M20: Copy To Projection | Q20: 8.5 | R20: 0.03751043834 | S20: 28.5 | T20: 0.003871293443 | U20: 48.5 | V20: 0.001064755611
K21: b | L21: 1.445323931 | Q21: 9.5 | R21: 0.03111658741 | S21: 29.5 | T21: 0.003588103662 | U21: =U20+1 -> 49.5 | V21: 0.001007152181
A22: 0 | B22: 5 | C22: 10 | K22: r | L22: 0.02612114358 | Q22: 10.5 | R22: 0.02623165461 | S22: 30.5 | T22: 0.003331160579 | U22: =U21+1 -> 50.5 | V22: 0.0009532273318
A23: Apply Filters | R23: *Data table for chart
A25: Loss Year | B25: Calendar Year | C25: Dev Age (Months) | D25: Cumulative Loss (t) | E25: Cumulative Loss (t+1) | F25: Dev Age (Years) | G25: LDF-1 | H25: Curve Fit | I25: Error^2 | J25: Var^-1 | K25: Weight | L25: Weight x Error
A26: 1985 | B26: 1985 | C26: 6 | D26: 0 | E26: 0 | F26: =IFERROR(C26/12, "") -> 0.5 | G26: =IFERROR(E26/D26-1, "") ->  | H26: =IFERROR(SCAT_A*F26^(-SCAT_b)*EXP(-SCAT_r*F26), "") -> 2.775259255 | I26: =IFERROR((G26-H26)^2, "") ->  | J26: =IFERROR(D26^2/(1+F26*G26^2), "") ->  | K26: =J26 ->  | L26: =IFERROR(I26*K26, "") -> 
A27: 1985 | B27: 1986 | C27: 18 | D27: 0 | E27: 0 | F27: =IFERROR(C27/12, "") -> 1.5 | G27: =IFERROR(E27/D27-1, "") ->  | H27: =IFERROR(SCAT_A*F27^(-SCAT_b)*EXP(-SCAT_r*F27), "") -> 0.552541018 | I27: =IFERROR((G27-H27)^2, "") ->  | J27: =IFERROR(D27^2/(1+F27*G27^2), "") ->  | K27: =J27 ->  | L27: =IFERROR(I27*K27, "") -> 
A28: 1985 | B28: 1987 | C28: 30 | D28: 0 | E28: 0 | F28: 2.5 | H28: 0.2572627739
A29: 1985 | B29: 1988 | C29: 42 | D29: 0 | E29: 0 | F29: 3.5 | H29: 0.1541098269
A30: 1985 | B30: 1989 | C30: 54 | D30: 0 | E30: 0 | F30: 4.5 | H30: 0.104408763
A31: 1985 | B31: 1990 | C31: 66 | D31: 0 | E31: 0 | F31: 5.5 | H31: 0.07610837465
A32: 1985 | B32: 1991 | C32: 78 | D32: 0 | E32: 0 | F32: 6.5 | H32: 0.0582410188
A33: 1985 | B33: 1992 | C33: 90 | D33: 0 | E33: 0 | F33: 7.5 | H33: 0.04613822026
A34: 1985 | B34: 1993 | C34: 102 | D34: 0 | E34: 0 | F34: 8.5 | H34: 0.03751043834
A35: 1985 | B35: 1994 | C35: 114 | D35: 0 | E35: 0 | F35: 9.5 | H35: 0.03111658741
A36: 1985 | B36: 1995 | C36: 126 | D36: 0 | E36: 0 | F36: 10.5 | H36: 0.02623165461
A37: 1985 | B37: 1996 | C37: 138 | D37: 0 | E37: 0 | F37: 11.5 | H37: 0.02240674526
A38: 1985 | B38: 1997 | C38: 150 | D38: 0 | E38: 0 | F38: 12.5 | H38: 0.0193506781
A39: 1985 | B39: 1998 | C39: 162 | D39: 0 | E39: 0 | F39: 13.5 | H39: 0.01686722997
A40: 1985 | B40: 1999 | C40: 174 | D40: 0 | E40: 0 | F40: 14.5 | H40: 0.01481988989
A41: 1985 | B41: 2000 | C41: 186 | D41: 0 | E41: 0 | F41: 15.5 | H41: 0.01311108961
A42: 1985 | B42: 2001 | C42: 198 | D42: 0 | E42: 0 | F42: 16.5 | H42: 0.0116694591
A43: 1985 | B43: 2002 | C43: 210 | D43: 0 | E43: 0 | F43: 17.5 | H43: 0.01044173096
A44: 1985 | B44: 2003 | C44: 222 | D44: 0 | E44: 0 | F44: 18.5 | H44: 0.009387441541
A45: 1985 | B45: 2004 | C45: 234 | D45: 0 | E45: 0 | F45: 19.5 | H45: 0.008475370748
A46: 1985 | B46: 2005 | C46: 246 | D46: 0 | E46: 0 | F46: 20.5 | H46: 0.007681094094
A47: 1985 | B47: 2006 | C47: 258 | D47: 0 | E47: 950430.2733 | F47: 21.5 | H47: 0.006985264749
A48: 1985 | B48: 2007 | C48: 270 | D48: 950430.2733 | E48: 956132.855 | F48: 22.5 | G48: 0.006 | H48: 0.006372385528 | I48: 1.386709818e-07 | J48: 9.025866093e+11 | K48: 9.025866093e+11 | L48: 125162.5712
A49: 1985 | B49: 2008 | C49: 282 | D49: 956132.855 | E49: 959957.3864 | F49: 23.5 | G49: 0.004 | H49: 0.005829916497 | I49: 3.348594385e-06 | J49: 9.138464301e+11 | K49: 9.138464301e+11 | L49: 3060101.024
A50: 1985 | B50: 2009 | C50: 294 | D50: 959957.3864 | E50: 963797.2159 | F50: 24.5 | G50: 0.004 | H50: 0.005347616717 | I50: 1.816070817e-06 | J50: 9.211570901e+11 | K50: 9.211570901e+11 | L50: 1672886.509
A51: 1985 | B51: 2010 | C51: 306 | D51: 963797.2159 | E51: 966688.6076 | F51: 25.5 | G51: 0.003 | H51: 0.004917052065 | I51: 3.67508862e-06 | J51: 9.286919387e+11 | K51: 9.286919387e+11 | L51: 3413025.176
A52: 1985 | B52: 2011 | C52: 318 | D52: 966688.6076 | E52: 970555.362 | F52: 26.5 | G52: 0.004 | H52: 0.004531222621 | I52: 2.821974732e-07 | J52: 9.340908096e+11 | K52: 9.340908096e+11 | L52: 263598.0662
A53: 1985 | B53: 2012 | C53: 330 | D53: 970555.362 | E53: 974437.5835 | F53: 27.5 | G53: 0.004 | H53: 0.004184277369 | I53: 3.395814879e-08 | J53: 9.415634228e+11 | K53: 9.415634228e+11 | L53: 31973.75081
A54: 1985 | B54: 2013 | C54: 342 | D54: 974437.5835 | E54: 977360.8962 | F54: 28.5 | G54: 0.003 | H54: 0.003871293443 | I54: 7.591522641e-07 | J54: 9.492851125e+11 | K54: 9.492851125e+11 | L54: 720651.9424
A55: 1985 | B55: 2014 | C55: 354 | D55: 977360.8962 | E55: 979315.618 | F55: 29.5 | G55: 0.002 | H55: 0.003588103662 | I55: 2.522073241e-06 | J55: 9.551216171e+11 | K55: 9.551216171e+11 | L55: 2408886.673
A56: 1985 | B56: 2015 | C56: 366 | D56: 979315.618 | E56: 981274.2493 | F56: 30.5 | G56: 0.002 | H56: 0.003331160579 | I56: 1.771988487e-06 | J56: 9.589420888e+11 | K56: 9.589420888e+11 | L56: 1699234.341
A57: 1985 | B57: 2016 | C57: 378 | D57: 981274.2493 | E57: 984218.072 | F57: 31.5 | G57: 0.003 | H57: 0.003097428421 | I57: 9.492297289e-09 | J57: 9.626262477e+11 | K57: 9.626262477e+11 | L57: 9137.534521
A58: 1986 | B58: 1986 | C58: 6 | D58: 0 | E58: 0 | F58: 0.5 | H58: 2.775259255
A59: 1986 | B59: 1987 | C59: 18 | D59: 0 | E59: 0 | F59: 1.5 | H59: 0.552541018
A60: 1986 | B60: 1988 | C60: 30 | D60: 0 | E60: 0 | F60: 2.5 | H60: 0.2572627739
A61: 1986 | B61: 1989 | C61: 42 | D61: 0 | E61: 0 | F61: 3.5 | H61: 0.1541098269
A62: 1986 | B62: 1990 | C62: 54 | D62: 0 | E62: 0 | F62: 4.5 | H62: 0.104408763
A63: 1986 | B63: 1991 | C63: 66 | D63: 0 | E63: 0 | F63: 5.5 | H63: 0.07610837465
A64: 1986 | B64: 1992 | C64: 78 | D64: 0 | E64: 0 | F64: 6.5 | H64: 0.0582410188
A65: 1986 | B65: 1993 | C65: 90 | D65: 0 | E65: 0 | F65: 7.5 | H65: 0.04613822026
A66: 1986 | B66: 1994 | C66: 102 | D66: 0 | E66: 0 | F66: 8.5 | H66: 0.03751043834
A67: 1986 | B67: 1995 | C67: 114 | D67: 0 | E67: 0 | F67: 9.5 | H67: 0.03111658741
A68: 1986 | B68: 1996 | C68: 126 | D68: 0 | E68: 0 | F68: 10.5 | H68: 0.02623165461
A69: 1986 | B69: 1997 | C69: 138 | D69: 0 | E69: 0 | F69: 11.5 | H69: 0.02240674526
A70: 1986 | B70: 1998 | C70: 150 | D70: 0 | E70: 0 | F70: 12.5 | H70: 0.0193506781
A71: 1986 | B71: 1999 | C71: 162 | D71: 0 | E71: 0 | F71: 13.5 | H71: 0.01686722997
A72: 1986 | B72: 2000 | C72: 174 | D72: 0 | E72: 0 | F72: 14.5 | H72: 0.01481988989
A73: 1986 | B73: 2001 | C73: 186 | D73: 0 | E73: 0 | F73: 15.5 | H73: 0.01311108961
A74: 1986 | B74: 2002 | C74: 198 | D74: 0 | E74: 0 | F74: 16.5 | H74: 0.0116694591
A75: 1986 | B75: 2003 | C75: 210 | D75: 0 | E75: 0 | F75: 17.5 | H75: 0.01044173096
A76: 1986 | B76: 2004 | C76: 222 | D76: 0 | E76: 0 | F76: 18.5 | H76: 0.009387441541
A77: 1986 | B77: 2005 | C77: 234 | D77: 0 | E77: 0 | F77: 19.5 | H77: 0.008475370748
A78: 1986 | B78: 2006 | C78: 246 | D78: 0 | E78: 1078995.22 | F78: 20.5 | H78: 0.007681094094
A79: 1986 | B79: 2007 | C79: 258 | D79: 1078995.22 | E79: 1083311.201 | F79: 21.5 | G79: 0.004 | H79: 0.006985264749 | I79: 8.911805623e-06 | J79: 1.163830328e+12 | K79: 1.163830328e+12 | L79: 10371829.66
A80: 1986 | B80: 2008 | C80: 270 | D80: 1083311.201 | E80: 1088727.757 | F80: 22.5 | G80: 0.005 | H80: 0.006372385528 | I80: 1.883442039e-06 | J80: 1.1729034e+12 | K80: 1.1729034e+12 | L80: 2209095.571
A81: 1986 | B81: 2009 | C81: 282 | D81: 1088727.757 | E81: 1094171.396 | F81: 23.5 | G81: 0.005 | H81: 0.005829916497 | I81: 6.887613914e-07 | J81: 1.184632158e+12 | K81: 1.184632158e+12 | L81: 815928.8933
A82: 1986 | B82: 2010 | C82: 294 | D82: 1094171.396 | E82: 1099642.253 | F82: 24.5 | G82: 0.005 | H82: 0.005347616717 | I82: 1.208373821e-07 | J82: 1.196478201e+12 | K82: 1.196478201e+12 | L82: 144579.2936
A83: 1986 | B83: 2011 | C83: 306 | D83: 1099642.253 | E83: 1105140.464 | F83: 25.5 | G83: 0.005 | H83: 0.004917052065 | I83: 6.880359899e-09 | J83: 1.208442702e+12 | K83: 1.208442702e+12 | L83: 8314.520708
A84: 1986 | B84: 2012 | C84: 318 | D84: 1105140.464 | E84: 1110666.167 | F84: 26.5 | G84: 0.005 | H84: 0.004531222621 | I84: 2.197522309e-07 | J84: 1.220526847e+12 | K84: 1.220526847e+12 | L84: 268213.4975
A85: 1986 | B85: 2013 | C85: 330 | D85: 1110666.167 | E85: 1116219.497 | F85: 27.5 | G85: 0.005 | H85: 0.004184277369 | I85: 6.654034105e-07 | J85: 1.23273183e+12 | K85: 1.23273183e+12 | L85: 820263.9641
A86: 1986 | B86: 2014 | C86: 342 | D86: 1116219.497 | E86: 1122916.814 | F86: 28.5 | G86: 0.006 | H86: 0.003871293443 | I86: 4.531391605e-06 | J86: 1.244668936e+12 | K86: 1.244668936e+12 | L86: 5640082.367
A87: 1986 | B87: 2015 | C87: 354 | D87: 1122916.814 | E87: 1127408.482 | F87: 29.5 | G87: 0.004 | H87: 0.003588103662 | I87: 1.696585932e-07 | J87: 1.260347288e+12 | K87: 1.260347288e+12 | L87: 213828.7479
A88: 1986 | B88: 2016 | C88: 366 | D88: 1127408.482 | E88: 1133045.524 | F88: 30.5 | G88: 0.005 | H88: 0.003331160579 | I88: 2.785025013e-06 | J88: 1.270081447e+12 | K88: 1.270081447e+12 | L88: 3537208.599
A89: 1987 | B89: 1987 | C89: 6 | D89: 0 | E89: 0 | F89: 0.5 | H89: 2.775259255
A90: 1987 | B90: 1988 | C90: 18 | D90: 0 | E90: 0 | F90: 1.5 | H90: 0.552541018
A91: 1987 | B91: 1989 | C91: 30 | D91: 0 | E91: 0 | F91: =IFERROR(C91/12, "") -> 2.5 | G91: =IFERROR(E91/D91-1, "") ->  | H91: =IFERROR(SCAT_A*F91^(-SCAT_b)*EXP(-SCAT_r*F91), "") -> 0.2572627739 | I91: =IFERROR((G91-H91)^2, "") ->  | J91: =IFERROR(D91^2/(1+F91*G91^2), "") ->  | K91: =J91 ->  | L91: =IFERROR(I91*K91, "") -> 
A92: 1987 | B92: 1990 | C92: 42 | D92: 0 | E92: 0 | F92: 3.5 | H92: 0.1541098269
A93: 1987 | B93: 1991 | C93: 54 | D93: 0 | E93: 0 | F93: 4.5 | H93: 0.104408763
A94: 1987 | B94: 1992 | C94: 66 | D94: 0 | E94: 0 | F94: 5.5 | H94: 0.07610837465
A95: 1987 | B95: 1993 | C95: 78 | D95: 0 | E95: 0 | F95: 6.5 | H95: 0.0582410188
A96: 1987 | B96: 1994 | C96: 90 | D96: 0 | E96: 0 | F96: 7.5 | H96: 0.04613822026
A97: 1987 | B97: 1995 | C97: 102 | D97: 0 | E97: 0 | F97: 8.5 | H97: 0.03751043834
A98: 1987 | B98: 1996 | C98: 114 | D98: 0 | E98: 0 | F98: 9.5 | H98: 0.03111658741
A99: 1987 | B99: 1997 | C99: 126 | D99: 0 | E99: 0 | F99: 10.5 | H99: 0.02623165461
A100: 1987 | B100: 1998 | C100: 138 | D100: 0 | E100: 0 | F100: 11.5 | H100: 0.02240674526
A101: 1987 | B101: 1999 | C101: 150 | D101: 0 | E101: 0 | F101: 12.5 | H101: 0.0193506781
A102: 1987 | B102: 2000 | C102: 162 | D102: 0 | E102: 0 | F102: 13.5 | H102: 0.01686722997
A103: 1987 | B103: 2001 | C103: 174 | D103: 0 | E103: 0 | F103: 14.5 | H103: 0.01481988989
A104: 1987 | B104: 2002 | C104: 186 | D104: 0 | E104: 0 | F104: 15.5 | H104: 0.01311108961
A105: 1987 | B105: 2003 | C105: 198 | D105: 0 | E105: 0 | F105: 16.5 | H105: 0.0116694591
A106: 1987 | B106: 2004 | C106: 210 | D106: 0 | E106: 0 | F106: 17.5 | H106: 0.01044173096
A107: 1987 | B107: 2005 | C107: 222 | D107: 0 | E107: 0 | F107: 18.5 | H107: 0.009387441541
A108: 1987 | B108: 2006 | C108: 234 | D108: 0 | E108: 1264880.453 | F108: 19.5 | H108: 0.008475370748
A109: 1987 | B109: 2007 | C109: 246 | D109: 1264880.453 | E109: 1273734.616 | F109: 20.5 | G109: 0.007 | H109: 0.007681094094 | I109: 4.638891643e-07 | J109: 1.59831705e+12 | K109: 1.59831705e+12 | L109: 741441.9606
A110: 1987 | B110: 2008 | C110: 258 | D110: 1273734.616 | E110: 1280103.289 | F110: 21.5 | G110: 0.005 | H110: 0.006985264749 | I110: 3.941276125e-06 | J110: 1.6215283e+12 | K110: 1.6215283e+12 | L110: 6390890.775
A111: 1987 | B111: 2009 | C111: 270 | D111: 1280103.289 | E111: 1286503.805 | F111: 22.5 | G111: 0.005 | H111: 0.006372385528 | I111: 1.883442039e-06 | J111: 1.6377432e+12 | K111: 1.6377432e+12 | L111: 3084594.391
A112: 1987 | B112: 2010 | C112: 282 | D112: 1286503.805 | E112: 1292936.324 | F112: 23.5 | G112: 0.005 | H112: 0.005829916497 | I112: 6.887613914e-07 | J112: 1.654120246e+12 | K112: 1.654120246e+12 | L112: 1139294.162
A113: 1987 | B113: 2011 | C113: 294 | D113: 1292936.324 | E113: 1299401.006 | F113: 24.5 | G113: 0.005 | H113: 0.005347616717 | I113: 1.208373821e-07 | J113: 1.670661059e+12 | K113: 1.670661059e+12 | L113: 201878.3088
A114: 1987 | B114: 2012 | C114: 306 | D114: 1299401.006 | E114: 1304598.61 | F114: 25.5 | G114: 0.004 | H114: 0.004917052065 | I114: 8.409844902e-07 | J114: 1.687754371e+12 | K114: 1.687754371e+12 | L114: 1419375.249
A115: 1987 | B115: 2013 | C115: 318 | D115: 1304598.61 | E115: 1312426.202 | F115: 26.5 | G115: 0.006 | H115: 0.004531222621 | I115: 2.157306989e-06 | J115: 1.700355394e+12 | K115: 1.700355394e+12 | L115: 3668188.575
A116: 1987 | B116: 2014 | C116: 330 | D116: 1312426.202 | E116: 1317675.906 | F116: 27.5 | G116: 0.004 | H116: 0.004184277369 | I116: 3.395814879e-08 | J116: 1.721704985e+12 | K116: 1.721704985e+12 | L116: 58465.91404
A117: 1987 | B117: 2015 | C117: 342 | D117: 1317675.906 | E117: 1321628.934 | F117: 28.5 | G117: 0.003 | H117: 0.003871293443 | I117: 7.591522641e-07 | J117: 1.735824556e+12 | K117: 1.735824556e+12 | L117: 1317755.141
A118: 1987 | B118: 2016 | C118: 354 | D118: 1321628.934 | E118: 1325593.821 | F118: 29.5 | G118: 0.003 | H118: 0.003588103662 | I118: 3.458659173e-07 | J118: 1.746239413e+12 | K118: 1.746239413e+12 | L118: 603964.6965
A119: 1988 | B119: 1988 | C119: 6 | D119: 0 | E119: 0 | F119: 0.5 | H119: 2.775259255
A120: 1988 | B120: 1989 | C120: 18 | D120: 0 | E120: 0 | F120: 1.5 | H120: 0.552541018
A121: 1988 | B121: 1990 | C121: 30 | D121: 0 | E121: 0 | F121: 2.5 | H121: 0.2572627739
A122: 1988 | B122: 1991 | C122: 42 | D122: 0 | E122: 0 | F122: 3.5 | H122: 0.1541098269
A123: 1988 | B123: 1992 | C123: 54 | D123: 0 | E123: 0 | F123: 4.5 | H123: 0.104408763
A124: 1988 | B124: 1993 | C124: 66 | D124: 0 | E124: 0 | F124: 5.5 | H124: 0.07610837465
A125: 1988 | B125: 1994 | C125: 78 | D125: 0 | E125: 0 | F125: 6.5 | H125: 0.0582410188
A126: 1988 | B126: 1995 | C126: 90 | D126: 0 | E126: 0 | F126: 7.5 | H126: 0.04613822026
A127: 1988 | B127: 1996 | C127: 102 | D127: 0 | E127: 0 | F127: 8.5 | H127: 0.03751043834
A128: 1988 | B128: 1997 | C128: 114 | D128: 0 | E128: 0 | F128: 9.5 | H128: 0.03111658741
A129: 1988 | B129: 1998 | C129: 126 | D129: 0 | E129: 0 | F129: 10.5 | H129: 0.02623165461
A130: 1988 | B130: 1999 | C130: 138 | D130: 0 | E130: 0 | F130: 11.5 | H130: 0.02240674526
A131: 1988 | B131: 2000 | C131: 150 | D131: 0 | E131: 0 | F131: 12.5 | H131: 0.0193506781
A132: 1988 | B132: 2001 | C132: 162 | D132: 0 | E132: 0 | F132: 13.5 | H132: 0.01686722997
A133: 1988 | B133: 2002 | C133: 174 | D133: 0 | E133: 0 | F133: 14.5 | H133: 0.01481988989
A134: 1988 | B134: 2003 | C134: 186 | D134: 0 | E134: 0 | F134: 15.5 | H134: 0.01311108961
A135: 1988 | B135: 2004 | C135: 198 | D135: 0 | E135: 0 | F135: 16.5 | H135: 0.0116694591
A136: 1988 | B136: 2005 | C136: 210 | D136: 0 | E136: 0 | F136: 17.5 | H136: 0.01044173096
A137: 1988 | B137: 2006 | C137: 222 | D137: 0 | E137: 1462524.162 | F137: 18.5 | H137: 0.009387441541
A138: 1988 | B138: 2007 | C138: 234 | D138: 1462524.162 | E138: 1472761.831 | F138: 19.5 | G138: 0.007 | H138: 0.008475370748 | I138: 2.176718843e-06 | J138: 2.136935084e+12 | K138: 2.136935084e+12 | L138: 4651506.864
A139: 1988 | B139: 2008 | C139: 246 | D139: 1472761.831 | E139: 1480125.641 | F139: 20.5 | G139: 0.005 | H139: 0.007681094094 | I139: 7.188265539e-06 | J139: 2.167916355e+12 | K139: 2.167916355e+12 | L139: 15583558.42
A140: 1988 | B140: 2009 | C140: 258 | D140: 1480125.641 | E140: 1487526.269 | F140: 21.5 | G140: 0.005 | H140: 0.006985264749 | I140: 3.941276125e-06 | J140: 2.189595005e+12 | K140: 2.189595005e+12 | L140: 8629798.514
A141: 1988 | B141: 2010 | C141: 270 | D141: 1487526.269 | E141: 1494963.9 | F141: 22.5 | G141: 0.005 | H141: 0.006372385528 | I141: 1.883442039e-06 | J141: 2.211490437e+12 | K141: 2.211490437e+12 | L141: 4165214.057
A142: 1988 | B142: 2011 | C142: 282 | D142: 1494963.9 | E142: 1502438.72 | F142: 23.5 | G142: 0.005 | H142: 0.005829916497 | I142: 6.887613914e-07 | J142: 2.23360482e+12 | K142: 2.23360482e+12 | L142: 1538420.764
A143: 1988 | B143: 2012 | C143: 294 | D143: 1502438.72 | E143: 1509950.913 | F143: 24.5 | G143: 0.005 | H143: 0.005347616717 | I143: 1.208373821e-07 | J143: 2.255940343e+12 | K143: 2.255940343e+12 | L143: 272601.9252
A144: 1988 | B144: 2013 | C144: 306 | D144: 1509950.913 | E144: 1515990.717 | F144: 25.5 | G144: 0.004 | H144: 0.004917052065 | I144: 8.409844902e-07 | J144: 2.279021919e+12 | K144: 2.279021919e+12 | L144: 1916622.087
A145: 1988 | B145: 2014 | C145: 318 | D145: 1515990.717 | E145: 1520538.689 | F145: 26.5 | G145: 0.003 | H145: 0.004531222621 | I145: 2.344642715e-06 | J145: 2.297679857e+12 | K145: 2.297679857e+12 | L145: 5387238.339
A146: 1988 | B146: 2015 | C146: 330 | D146: 1520538.689 | E146: 1525100.305 | F146: 27.5 | G146: 0.003 | H146: 0.004184277369 | I146: 1.402512887e-06 | J146: 2.311465817e+12 | K146: 2.311465817e+12 | L146: 3241860.596
A147: 1988 | B147: 2016 | C147: 342 | D147: 1525100.305 | E147: 1529675.606 | F147: 28.5 | G147: 0.003 | H147: 0.003871293443 | I147: 7.591522641e-07 | J147: 2.325334492e+12 | K147: 2.325334492e+12 | L147: 1765282.945
A148: 1989 | B148: 1989 | C148: 6 | D148: 0 | E148: 0 | F148: 0.5 | H148: 2.775259255
A149: 1989 | B149: 1990 | C149: 18 | D149: 0 | E149: 0 | F149: 1.5 | H149: 0.552541018
A150: 1989 | B150: 1991 | C150: 30 | D150: 0 | E150: 0 | F150: 2.5 | H150: 0.2572627739
A151: 1989 | B151: 1992 | C151: 42 | D151: 0 | E151: 0 | F151: 3.5 | H151: 0.1541098269
A152: 1989 | B152: 1993 | C152: 54 | D152: 0 | E152: 0 | F152: 4.5 | H152: 0.104408763
A153: 1989 | B153: 1994 | C153: 66 | D153: 0 | E153: 0 | F153: 5.5 | H153: 0.07610837465
A154: 1989 | B154: 1995 | C154: 78 | D154: 0 | E154: 0 | F154: 6.5 | H154: 0.0582410188
A155: 1989 | B155: 1996 | C155: 90 | D155: 0 | E155: 0 | F155: =IFERROR(C155/12, "") -> 7.5 | G155: =IFERROR(E155/D155-1, "") ->  | H155: =IFERROR(SCAT_A*F155^(-SCAT_b)*EXP(-SCAT_r*F155), "") -> 0.04613822026 | I155: =IFERROR((G155-H155)^2, "") ->  | J155: =IFERROR(D155^2/(1+F155*G155^2), "") ->  | K155: =J155 ->  | L155: =IFERROR(I155*K155, "") -> 
A156: 1989 | B156: 1997 | C156: 102 | D156: 0 | E156: 0 | F156: 8.5 | H156: 0.03751043834
A157: 1989 | B157: 1998 | C157: 114 | D157: 0 | E157: 0 | F157: 9.5 | H157: 0.03111658741
A158: 1989 | B158: 1999 | C158: 126 | D158: 0 | E158: 0 | F158: 10.5 | H158: 0.02623165461
A159: 1989 | B159: 2000 | C159: 138 | D159: 0 | E159: 0 | F159: 11.5 | H159: 0.02240674526
A160: 1989 | B160: 2001 | C160: 150 | D160: 0 | E160: 0 | F160: 12.5 | H160: 0.0193506781
A161: 1989 | B161: 2002 | C161: 162 | D161: 0 | E161: 0 | F161: 13.5 | H161: 0.01686722997
A162: 1989 | B162: 2003 | C162: 174 | D162: 0 | E162: 0 | F162: 14.5 | H162: 0.01481988989
A163: 1989 | B163: 2004 | C163: 186 | D163: 0 | E163: 0 | F163: 15.5 | H163: 0.01311108961
A164: 1989 | B164: 2005 | C164: 198 | D164: 0 | E164: 0 | F164: 16.5 | H164: 0.0116694591
A165: 1989 | B165: 2006 | C165: 210 | D165: 0 | E165: 1690643.108 | F165: 17.5 | H165: 0.01044173096
A166: 1989 | B166: 2007 | C166: 222 | D166: 1690643.108 | E166: 1702477.609 | F166: 18.5 | G166: 0.007 | H166: 0.009387441541 | I166: 5.699877113e-06 | J166: 2.855685438e+12 | K166: 2.855685438e+12 | L166: 16277056.07
A167: 1989 | B167: 2008 | C167: 234 | D167: 1702477.609 | E167: 1710989.997 | F167: 19.5 | G167: 0.005 | H167: 0.008475370748 | I167: 1.207820183e-05 | J167: 2.897017714e+12 | K167: 2.897017714e+12 | L167: 34990764.67
A168: 1989 | B168: 2009 | C168: 246 | D168: 1710989.997 | E168: 1719544.947 | F168: 20.5 | G168: 0.005 | H168: 0.007681094094 | I168: 7.188265539e-06 | J168: 2.925987203e+12 | K168: 2.925987203e+12 | L168: 21032772.98
A169: 1989 | B169: 2010 | C169: 258 | D169: 1719544.947 | E169: 1729862.217 | F169: 21.5 | G169: 0.006 | H169: 0.006985264749 | I169: 9.707466261e-07 | J169: 2.954548006e+12 | K169: 2.954548006e+12 | L169: 2868117.509
A170: 1989 | B170: 2011 | C170: 270 | D170: 1729862.217 | E170: 1743701.115 | F170: 22.5 | G170: 0.008 | H170: 0.006372385528 | I170: 2.649128868e-06 | J170: 2.988120397e+12 | K170: 2.988120397e+12 | L170: 7915916.005
A171: 1989 | B171: 2012 | C171: 282 | D171: 1743701.115 | E171: 1754163.322 | F171: 23.5 | G171: 0.006 | H171: 0.005829916497 | I171: 2.892839812e-08 | J171: 3.037923495e+12 | K171: 3.037923495e+12 | L171: 87882.2603
A172: 1989 | B172: 2013 | C172: 294 | D172: 1754163.322 | E172: 1762934.138 | F172: 24.5 | G172: 0.005 | H172: 0.005347616717 | I172: 1.208373821e-07 | J172: 3.075205395e+12 | K172: 3.075205395e+12 | L172: 371599.7695
A173: 1989 | B173: 2014 | C173: 306 | D173: 1762934.138 | E173: 1773511.743 | F173: 25.5 | G173: 0.006 | H173: 0.004917052065 | I173: 1.17277623e-06 | J173: 3.105086306e+12 | K173: 3.105086306e+12 | L173: 3641571.411
A174: 1989 | B174: 2015 | C174: 318 | D174: 1773511.743 | E174: 1778832.278 | F174: 26.5 | G174: 0.003 | H174: 0.004531222621 | I174: 2.344642715e-06 | J174: 3.144593917e+12 | K174: 3.144593917e+12 | L174: 7372949.22
A175: 1989 | B175: 2016 | C175: 330 | D175: 1778832.278 | E175: 1784168.775 | F175: 27.5 | G175: 0.003 | H175: 0.004184277369 | I175: 1.402512887e-06 | J175: 3.163461317e+12 | K175: 3.163461317e+12 | L175: 4436795.265
A176: 1990 | B176: 1990 | C176: 6 | D176: 0 | E176: 0 | F176: 0.5 | H176: 2.775259255
A177: 1990 | B177: 1991 | C177: 18 | D177: 0 | E177: 0 | F177: 1.5 | H177: 0.552541018
A178: 1990 | B178: 1992 | C178: 30 | D178: 0 | E178: 0 | F178: 2.5 | H178: 0.2572627739
A179: 1990 | B179: 1993 | C179: 42 | D179: 0 | E179: 0 | F179: 3.5 | H179: 0.1541098269
A180: 1990 | B180: 1994 | C180: 54 | D180: 0 | E180: 0 | F180: 4.5 | H180: 0.104408763
A181: 1990 | B181: 1995 | C181: 66 | D181: 0 | E181: 0 | F181: 5.5 | H181: 0.07610837465
A182: 1990 | B182: 1996 | C182: 78 | D182: 0 | E182: 0 | F182: 6.5 | H182: 0.0582410188
A183: 1990 | B183: 1997 | C183: 90 | D183: 0 | E183: 0 | F183: 7.5 | H183: 0.04613822026
A184: 1990 | B184: 1998 | C184: 102 | D184: 0 | E184: 0 | F184: 8.5 | H184: 0.03751043834
A185: 1990 | B185: 1999 | C185: 114 | D185: 0 | E185: 0 | F185: 9.5 | H185: 0.03111658741
A186: 1990 | B186: 2000 | C186: 126 | D186: 0 | E186: 0 | F186: 10.5 | H186: 0.02623165461
A187: 1990 | B187: 2001 | C187: 138 | D187: 0 | E187: 0 | F187: 11.5 | H187: 0.02240674526
A188: 1990 | B188: 2002 | C188: 150 | D188: 0 | E188: 0 | F188: 12.5 | H188: 0.0193506781
A189: 1990 | B189: 2003 | C189: 162 | D189: 0 | E189: 0 | F189: 13.5 | H189: 0.01686722997
A190: 1990 | B190: 2004 | C190: 174 | D190: 0 | E190: 0 | F190: 14.5 | H190: 0.01481988989
A191: 1990 | B191: 2005 | C191: 186 | D191: 0 | E191: 0 | F191: 15.5 | H191: 0.01311108961
A192: 1990 | B192: 2006 | C192: 198 | D192: 0 | E192: 1941606.539 | F192: 16.5 | H192: 0.0116694591
A193: 1990 | B193: 2007 | C193: 210 | D193: 1941606.539 | E193: 1951314.572 | F193: 17.5 | G193: 0.005 | H193: 0.01044173096 | I193: 2.96124358e-05 | J193: 3.768187371e+12 | K193: 3.768187371e+12 | L193: 111585206.6
A194: 1990 | B194: 2008 | C194: 222 | D194: 1951314.572 | E194: 1961071.145 | F194: 18.5 | G194: 0.005 | H194: 0.009387441541 | I194: 1.924964328e-05 | J194: 3.805868344e+12 | K194: 3.805868344e+12 | L194: 73261607.99
A195: 1990 | B195: 2009 | C195: 234 | D195: 1961071.145 | E195: 1970876.5 | F195: 19.5 | G195: 0.005 | H195: 0.008475370748 | I195: 1.207820183e-05 | J195: 3.84392612e+12 | K195: 3.84392612e+12 | L195: 46427715.52
A196: 1990 | B196: 2010 | C196: 246 | D196: 1970876.5 | E196: 1980730.883 | F196: 20.5 | G196: 0.005 | H196: 0.007681094094 | I196: 7.188265539e-06 | J196: 3.882364468e+12 | K196: 3.882364468e+12 | L196: 27907466.71
A197: 1990 | B197: 2011 | C197: 258 | D197: 1980730.883 | E197: 1990634.537 | F197: 21.5 | G197: 0.005 | H197: 0.006985264749 | I197: 3.941276125e-06 | J197: 3.921187192e+12 | K197: 3.921187192e+12 | L197: 15454481.46
A198: 1990 | B198: 2012 | C198: 270 | D198: 1990634.537 | E198: 2000587.71 | F198: 22.5 | G198: 0.005 | H198: 0.006372385528 | I198: 1.883442039e-06 | J198: 3.960398137e+12 | K198: 3.960398137e+12 | L198: 7459180.341
A199: 1990 | B199: 2013 | C199: 282 | D199: 2000587.71 | E199: 2010590.649 | F199: 23.5 | G199: 0.005 | H199: 0.005829916497 | I199: 6.887613914e-07 | J199: 4.000001185e+12 | K199: 4.000001185e+12 | L199: 2755046.382
A200: 1990 | B200: 2014 | C200: 294 | D200: 2010590.649 | E200: 2018633.011 | F200: 24.5 | G200: 0.004 | H200: 0.005347616717 | I200: 1.816070817e-06 | J200: 4.040890727e+12 | K200: 4.040890727e+12 | L200: 7338543.722
A201: 1990 | B201: 2015 | C201: 306 | D201: 2018633.011 | E201: 2024688.91 | F201: 25.5 | G201: 0.003 | H201: 0.004917052065 | I201: 3.67508862e-06 | J201: 4.073944263e+12 | K201: 4.073944263e+12 | L201: 14972106.2
A202: 1990 | B202: 2016 | C202: 318 | D202: 2024688.91 | E202: 2028738.288 | F202: 26.5 | G202: 0.002 | H202: 0.004531222621 | I202: 6.407087958e-06 | J202: 4.098930696e+12 | K202: 4.098930696e+12 | L202: 26262209.5
... 285 more rows

Sheet Projection
E1: From Summary
B2: Loss Year | C2: Dev Age (Yrs) | D2: Prop Male | E2: Open Claims | F2: Avg Age | G2: Life Exp | H2: Cumul Loss | I2: Proj Years | J2: EOT | K2: Ultimate
B3: 2005 | C3: 12.5 | D3: 0.7643979058 | E3: 133 | F3: 60.55167805 | G3: 30.63898864 | H3: 3504667.953 | I3: 20 | J3: =IFERROR(IF(WS_PROJYRS>0, SUM(OFFSET(J10,0,0,WS_PROJYRS,1)), 0), 0) + WS_DIAG -> 3504667.953 | K3: =IFERROR(SUM(J10:J208), 0) + WS_DIAG -> 3504667.953
C5: y = Ax^(-b)exp(-rx) | G5: Life Exp Offset | H5: Adj Life Exp | J5: Trunc EOT | K5: Trunc Ult
B6: A | C6: 1.032499469 | D6: From | G6: 0 | H6: =IF(COUNT(WS_LE)=1, ROUND(WS_LE-WS_LEOFFSET, 0), 0) -> 31 | J6: =IF(WS_PROJYRS>0, SUM(OFFSET(F10,0,0,WS_PROJYRS,1)), 0)+WS_DIAG -> 4125035.223 | K6: =IF(WS_TRUNC>0, SUM(OFFSET(F10,0,0,WS_TRUNC,1)), 0)+WS_DIAG -> 4221921.614
B7: b | C7: 1.445323931 | D7: ScatterFit
B8: r | C8: 0.02612114358
A9: Projection Yr | B9: Avg Age | C9: Dev Age | D9: Fitted LDF | E9: Cumul Loss | F9: Incr Loss | G9: Loss Decay | H9: qx | I9: Adj Decay | J9: Adj Incr Loss | K9: Adj Cumul
A10: 1 | B10: =LookupAgingTable(WS_LOSSYR, A10) ->  | C10: =WS_DEVAGE -> 12.5 | D10: =1 + WS_A*C10^-WS_b*EXP(-WS_r*C10) -> 1.019350678 | E10: =WS_DIAG -> 3504667.953 | F10: =E11-E10 -> 67817.7014 | H10: =WS_MALE*qxMale(INT(B10)) + (1-WS_MALE)*qxFemale(INT(B10)) ->  | J10: =F10 -> 67817.7014 | K10: =E10 -> 3504667.953
A11: =A10+1 -> 2 | C11: =C10+1 -> 13.5 | D11: 1.01686723 | E11: =E10*D10 -> 3572485.654 | F11: =E12-E11 -> 60257.93711 | G11: =IF(F11>0.000000000001, 1-F11/F10, 0) -> 0.111471845 | H11: =WS_MALE*qxMale(INT(B11)) + (1-WS_MALE)*qxFemale(INT(B11)) ->  | I11: =IF(H11>0.999999, 1, G11+H11-$H$10) ->  | J11: =J10*(1-I11) ->  | K11: =K10+J10 -> 3572485.654
A12: =A11+1 -> 3 | C12: =C11+1 -> 14.5 | D12: 1.01481989 | E12: =E11*D11 -> 3632743.592 | F12: =E13-E12 -> 53836.86004 | G12: =IF(F12>0.000000000001, 1-F12/F11, 0) -> 0.1065598554 | H12: =WS_MALE*qxMale(INT(B12)) + (1-WS_MALE)*qxFemale(INT(B12)) ->  | I12: =IF(H12>0.999999, 1, G12+H12-$H$10) ->  | J12: =J11*(1-I12) ->  | K12: =K11+J11 -> 
A13: =A12+1 -> 4 | C13: =C12+1 -> 15.5 | D13: 1.01311109 | E13: =E12*D12 -> 3686580.452 | F13: 48335.08665 | G13: 0.10219343 | H13: =WS_MALE*qxMale(INT(B13)) + (1-WS_MALE)*qxFemale(INT(B13)) ->  | J13: =J12*(1-I13) ->  | K13: =K12+J12 -> 
A14: 5 | C14: 16.5 | D14: 1.011669459 | E14: 3734915.538 | F14: 43584.44411 | G14: 0.09828559072 | H14: =WS_MALE*qxMale(INT(B14)) + (1-WS_MALE)*qxFemale(INT(B14)) -> 
A15: 6 | C15: 17.5 | D15: 1.010441731 | E15: 3778499.982 | F15: 39454.08023 | G15: 0.094766928 | H15: =WS_MALE*qxMale(INT(B15)) + (1-WS_MALE)*qxFemale(INT(B15)) -> 
A16: 7 | C16: 18.5 | D16: 1.009387442 | E16: 3817954.063 | F16: 35840.82057 | G16: 0.0915813939 | H16: =WS_MALE*qxMale(INT(B16)) + (1-WS_MALE)*qxFemale(INT(B16)) -> 
A17: 8 | C17: 19.5 | D17: 1.008475371 | E17: 3853794.883 | F17: 32662.34042 | G17: 0.08868324158 | H17: =WS_MALE*qxMale(INT(B17)) + (1-WS_MALE)*qxFemale(INT(B17)) -> 
A18: 9 | C18: 20.5 | D18: 1.007681094 | E18: 3886457.224 | F18: 29852.24362 | G18: 0.08603476541 | H18: =WS_MALE*qxMale(INT(B18)) + (1-WS_MALE)*qxFemale(INT(B18)) -> 
A19: 10 | C19: 21.5 | D19: 1.006985265 | E19: 3916309.467 | F19: 27356.45847 | G19: 0.08360460902 | H19: =WS_MALE*qxMale(INT(B19)) + (1-WS_MALE)*qxFemale(INT(B19)) -> 
A20: 11 | C20: 22.5 | D20: 1.006372386 | E20: 3943665.926 | F20: 25130.55967 | G20: 0.08136648234 | H20: =WS_MALE*qxMale(INT(B20)) + (1-WS_MALE)*qxFemale(INT(B20)) -> 
A21: =A20+1 -> 12 | C21: =C20+1 -> 23.5 | D21: 1.005829916 | E21: =E20*D20 -> 3968796.485 | F21: 23137.7521 | G21: 0.07929817711 | H21: =WS_MALE*qxMale(INT(B21)) + (1-WS_MALE)*qxFemale(INT(B21)) ->  | J21: =J20*(1-I21) ->  | K21: =K20+J20 -> 
A22: 13 | C22: 24.5 | D22: 1.005347617 | E22: 3991934.237 | F22: 21347.33426 | G22: 0.07738080309 | H22: =WS_MALE*qxMale(INT(B22)) + (1-WS_MALE)*qxFemale(INT(B22)) -> 
A23: 14 | C23: 25.5 | D23: 1.004917052 | E23: 4013281.572 | F23: 19733.51444 | G23: 0.07559818957 | H23: =WS_MALE*qxMale(INT(B23)) + (1-WS_MALE)*qxFemale(INT(B23)) -> 
A24: 15 | C24: 26.5 | D24: 1.004531223 | E24: 4033015.086 | F24: 18274.48919 | G24: 0.07393641183 | H24: =WS_MALE*qxMale(INT(B24)) + (1-WS_MALE)*qxFemale(INT(B24)) -> 
A25: 16 | C25: 27.5 | D25: 1.004184277 | E25: 4051289.575 | F25: 16951.71929 | G25: 0.07238341329 | H25: =WS_MALE*qxMale(INT(B25)) + (1-WS_MALE)*qxFemale(INT(B25)) -> 
A26: 17 | C26: 28.5 | D26: 1.003871293 | E26: 4068241.295 | F26: 15749.35585 | G26: 0.07092870148 | H26: =WS_MALE*qxMale(INT(B26)) + (1-WS_MALE)*qxFemale(INT(B26)) -> 
A27: 18 | C27: 29.5 | D27: 1.003588104 | E27: 4083990.65 | F27: 14653.78181 | G27: 0.06956310156 | H27: =WS_MALE*qxMale(INT(B27)) + (1-WS_MALE)*qxFemale(INT(B27)) -> 
A28: 19 | C28: 30.5 | D28: 1.003331161 | E28: 4098644.432 | F28: 13653.24276 | G28: 0.06827855507 | H28: =WS_MALE*qxMale(INT(B28)) + (1-WS_MALE)*qxFemale(INT(B28)) -> 
A29: 20 | C29: 31.5 | D29: 1.003097428 | E29: 4112297.675 | F29: 12737.5477 | G29: 0.06706795454 | H29: =WS_MALE*qxMale(INT(B29)) + (1-WS_MALE)*qxFemale(INT(B29)) -> 
A30: 21 | C30: 32.5 | D30: 1.002884297 | E30: 4125035.223 | F30: 11897.82478 | G30: 0.06592500668 | H30: =WS_MALE*qxMale(INT(B30)) + (1-WS_MALE)*qxFemale(INT(B30)) -> 
A31: 22 | C31: 33.5 | D31: 1.00268951 | E31: 4136933.047 | F31: 11126.32082 | G31: 0.06484411861 | H31: =WS_MALE*qxMale(INT(B31)) + (1-WS_MALE)*qxFemale(INT(B31)) -> 
A32: 23 | C32: 34.5 | D32: 1.002511111 | E32: 4148059.368 | F32: 10416.23566 | G32: 0.06382030259 | H32: =WS_MALE*qxMale(INT(B32)) + (1-WS_MALE)*qxFemale(INT(B32)) -> 
A33: 24 | C33: 35.5 | D33: 1.002347395 | E33: 4158475.604 | F33: 9761.584661 | G33: 0.06284909603 | H33: =WS_MALE*qxMale(INT(B33)) + (1-WS_MALE)*qxFemale(INT(B33)) -> 
A34: 25 | C34: 36.5 | D34: 1.002196872 | E34: 4168237.189 | F34: 9157.083949 | G34: 0.06192649382 | H34: =WS_MALE*qxMale(INT(B34)) + (1-WS_MALE)*qxFemale(INT(B34)) -> 
A35: 26 | C35: 37.5 | D35: 1.002058234 | E35: 4177394.273 | F35: 8598.05413 | G35: 0.0610488909 | H35: =WS_MALE*qxMale(INT(B35)) + (1-WS_MALE)*qxFemale(INT(B35)) -> 
A36: 27 | C36: 38.5 | D36: 1.001930328 | E36: 4185992.327 | F36: 8080.339211 | G36: 0.06021303328 | H36: =WS_MALE*qxMale(INT(B36)) + (1-WS_MALE)*qxFemale(INT(B36)) -> 
A37: 28 | C37: 39.5 | D37: 1.001812138 | E37: 4194072.666 | F37: 7600.237969 | G37: 0.05941597612 | H37: =WS_MALE*qxMale(INT(B37)) + (1-WS_MALE)*qxFemale(INT(B37)) -> 
A38: 29 | C38: 40.5 | D38: 1.001702761 | E38: 4201672.904 | F38: 7154.445648 | G38: 0.05865504771 | H38: =WS_MALE*qxMale(INT(B38)) + (1-WS_MALE)*qxFemale(INT(B38)) -> 
A39: 30 | C39: 41.5 | D39: 1.001601397 | E39: 4208827.35 | F39: 6740.004221 | G39: 0.05792781831 | H39: =WS_MALE*qxMale(INT(B39)) + (1-WS_MALE)*qxFemale(INT(B39)) -> 
A40: 31 | C40: 42.5 | D40: 1.001507332 | E40: 4215567.354 | F40: 6354.259805 | G40: 0.05723207326 | H40: =WS_MALE*qxMale(INT(B40)) + (1-WS_MALE)*qxFemale(INT(B40)) -> 
A41: 32 | C41: 43.5 | D41: 1.001419928 | E41: 4221921.614 | F41: 5994.826083 | G41: 0.05656578955 | H41: =WS_MALE*qxMale(INT(B41)) + (1-WS_MALE)*qxFemale(INT(B41)) -> 
A42: 33 | B42: =LookupAgingTable(WS_LOSSYR, A42) ->  | C42: 44.5 | D42: =1 + WS_A*C42^-WS_b*EXP(-WS_r*C42) -> 1.001338615 | E42: 4227916.44 | F42: 5659.552752 | G42: 0.05592711544 | H42: =WS_MALE*qxMale(INT(B42)) + (1-WS_MALE)*qxFemale(INT(B42)) -> 
A43: 34 | C43: 45.5 | D43: 1.00126288 | E43: 4233575.992 | F43: 5346.498256 | G43: 0.05531435258 | H43: =WS_MALE*qxMale(INT(B43)) + (1-WS_MALE)*qxFemale(INT(B43)) -> 
A44: 35 | C44: 46.5 | D44: 1.001192262 | E44: 4238922.491 | F44: 5053.906111 | G44: 0.05472594037 | H44: =WS_MALE*qxMale(INT(B44)) + (1-WS_MALE)*qxFemale(INT(B44)) -> 
A45: 36 | C45: 47.5 | D45: 1.001126346 | E45: 4243976.397 | F45: 4780.184321 | G45: 0.0541604422 | H45: =WS_MALE*qxMale(INT(B45)) + (1-WS_MALE)*qxFemale(INT(B45)) -> 
A46: 37 | C46: 48.5 | D46: 1.001064756 | E46: 4248756.581 | F46: 4523.887409 | G46: 0.05361653333 | H46: =WS_MALE*qxMale(INT(B46)) + (1-WS_MALE)*qxFemale(INT(B46)) -> 
A47: 38 | C47: 49.5 | D47: 1.001007152 | E47: 4253280.468 | F47: 4283.7007 | G47: 0.05309299008 | H47: =WS_MALE*qxMale(INT(B47)) + (1-WS_MALE)*qxFemale(INT(B47)) -> 
A48: 39 | C48: 50.5 | D48: 1.000953227 | E48: 4257564.169 | F48: 4058.426533 | G48: 0.05258868037 | H48: =WS_MALE*qxMale(INT(B48)) + (1-WS_MALE)*qxFemale(INT(B48)) -> 
A49: 40 | C49: 51.5 | D49: 1.000902701 | E49: 4261622.596 | F49: 3846.97214 | G49: 0.05210255526 | H49: =WS_MALE*qxMale(INT(B49)) + (1-WS_MALE)*qxFemale(INT(B49)) -> 
A50: 41 | C50: 52.5 | D50: 1.000855319 | E50: 4265469.568 | F50: 3648.33896 | G50: 0.05163364136 | H50: =WS_MALE*qxMale(INT(B50)) + (1-WS_MALE)*qxFemale(INT(B50)) -> 
A51: 42 | C51: 53.5 | D51: 1.00081085 | E51: 4269117.907 | F51: 3461.6132 | G51: 0.05118103416 | H51: =WS_MALE*qxMale(INT(B51)) + (1-WS_MALE)*qxFemale(INT(B51)) -> 
A52: 43 | C52: 54.5 | D52: 1.00076908 | E52: 4272579.52 | F52: 3285.957473 | G52: 0.05074389197 | H52: =WS_MALE*qxMale(INT(B52)) + (1-WS_MALE)*qxFemale(INT(B52)) -> 
A53: 44 | C53: 55.5 | D53: 1.000729818 | E53: 4275865.477 | F53: 3120.603392 | G53: 0.05032143056 | H53: =WS_MALE*qxMale(INT(B53)) + (1-WS_MALE)*qxFemale(INT(B53)) -> 
A54: 45 | C54: 56.5 | D54: 1.000692885 | E54: 4278986.081 | F54: 2964.84497 | G54: 0.04991291826 | H54: =WS_MALE*qxMale(INT(B54)) + (1-WS_MALE)*qxFemale(INT(B54)) -> 
A55: 46 | C55: 57.5 | D55: 1.000658119 | E55: 4281950.926 | F55: 2818.032751 | G55: 0.04951767165 | H55: =WS_MALE*qxMale(INT(B55)) + (1-WS_MALE)*qxFemale(INT(B55)) -> 
A56: 47 | C56: 58.5 | D56: 1.000625371 | E56: 4284768.959 | F56: 2679.568566 | G56: 0.04913505161 | H56: =WS_MALE*qxMale(INT(B56)) + (1-WS_MALE)*qxFemale(INT(B56)) -> 
A57: 48 | C57: 59.5 | D57: 1.000594503 | E57: 4287448.527 | F57: 2548.900853 | G57: 0.04876445973 | H57: =WS_MALE*qxMale(INT(B57)) + (1-WS_MALE)*qxFemale(INT(B57)) -> 
A58: 49 | C58: 60.5 | D58: 1.00056539 | E58: 4289997.428 | F58: 2425.520453 | G58: 0.04840533516 | H58: =WS_MALE*qxMale(INT(B58)) + (1-WS_MALE)*qxFemale(INT(B58)) -> 
A59: 50 | C59: 61.5 | D59: 1.000537915 | E59: 4292422.948 | F59: 2308.956848 | G59: 0.04805715164 | H59: =WS_MALE*qxMale(INT(B59)) + (1-WS_MALE)*qxFemale(INT(B59)) -> 
A60: 51 | C60: 62.5 | D60: 1.00051197 | E60: 4294731.905 | F60: 2198.774779 | G60: 0.04771941487 | H60: =WS_MALE*qxMale(INT(B60)) + (1-WS_MALE)*qxFemale(INT(B60)) -> 
A61: 52 | C61: 63.5 | D61: 1.000487458 | E61: 4296930.68 | F61: 2094.571192 | G61: 0.04739166012 | H61: =WS_MALE*qxMale(INT(B61)) + (1-WS_MALE)*qxFemale(INT(B61)) -> 
A62: 53 | C62: 64.5 | D62: 1.000464285 | E62: 4299025.251 | F62: 1995.972499 | G62: 0.04707345002 | H62: =WS_MALE*qxMale(INT(B62)) + (1-WS_MALE)*qxFemale(INT(B62)) -> 
A63: 54 | C63: 65.5 | D63: 1.000442368 | E63: 4301021.224 | F63: 1902.632098 | G63: 0.04676437258 | H63: =WS_MALE*qxMale(INT(B63)) + (1-WS_MALE)*qxFemale(INT(B63)) -> 
A64: 55 | C64: 66.5 | D64: 1.000421627 | E64: 4302923.856 | F64: 1814.228125 | G64: 0.04646403934 | H64: =WS_MALE*qxMale(INT(B64)) + (1-WS_MALE)*qxFemale(INT(B64)) -> 
A65: 56 | C65: 67.5 | D65: 1.00040199 | E65: 4304738.084 | F65: 1730.461432 | G65: 0.04617208372 | H65: =WS_MALE*qxMale(INT(B65)) + (1-WS_MALE)*qxFemale(INT(B65)) -> 
A66: 57 | C66: 68.5 | D66: 1.000383389 | E66: 4306468.545 | F66: 1651.053742 | G66: 0.04588815949 | H66: =WS_MALE*qxMale(INT(B66)) + (1-WS_MALE)*qxFemale(INT(B66)) -> 
A67: 58 | C67: 69.5 | D67: 1.000365762 | E67: 4308119.599 | F67: 1575.745979 | G67: 0.04561193937 | H67: =WS_MALE*qxMale(INT(B67)) + (1-WS_MALE)*qxFemale(INT(B67)) -> 
A68: 59 | C68: 70.5 | D68: 1.000349049 | E68: 4309695.345 | F68: 1504.29675 | G68: 0.04534311373 | H68: =WS_MALE*qxMale(INT(B68)) + (1-WS_MALE)*qxFemale(INT(B68)) -> 
A69: 60 | C69: 71.5 | D69: 1.000333198 | E69: 4311199.642 | F69: 1436.480962 | G69: 0.04508138942 | H69: =WS_MALE*qxMale(INT(B69)) + (1-WS_MALE)*qxFemale(INT(B69)) -> 
A70: 61 | C70: 72.5 | D70: 1.000318155 | E70: 4312636.123 | F70: 1372.088565 | G70: 0.04482648868 | H70: =WS_MALE*qxMale(INT(B70)) + (1-WS_MALE)*qxFemale(INT(B70)) -> 
A71: 62 | C71: 73.5 | D71: 1.000303876 | E71: 4314008.211 | F71: 1310.923397 | G71: 0.04457814814 | H71: =WS_MALE*qxMale(INT(B71)) + (1-WS_MALE)*qxFemale(INT(B71)) -> 
A72: 63 | C72: 74.5 | D72: 1.000290315 | E72: 4315319.135 | F72: 1252.802143 | G72: 0.04433611788 | H72: =WS_MALE*qxMale(INT(B72)) + (1-WS_MALE)*qxFemale(INT(B72)) -> 
A73: 64 | C73: 75.5 | D73: 1.000277432 | E73: 4316571.937 | F73: 1197.553367 | G73: 0.04410016058 | H73: =WS_MALE*qxMale(INT(B73)) + (1-WS_MALE)*qxFemale(INT(B73)) -> 
A74: 65 | B74: =LookupAgingTable(WS_LOSSYR, A74) ->  | C74: 76.5 | D74: =1 + WS_A*C74^-WS_b*EXP(-WS_r*C74) -> 1.000265187 | E74: 4317769.49 | F74: 1145.01664 | G74: 0.04387005077 | H74: =WS_MALE*qxMale(INT(B74)) + (1-WS_MALE)*qxFemale(INT(B74)) -> 
A75: 66 | C75: 77.5 | D75: 1.000253546 | E75: 4318914.507 | F75: 1095.041732 | G75: 0.04364557402 | H75: =WS_MALE*qxMale(INT(B75)) + (1-WS_MALE)*qxFemale(INT(B75)) -> 
A76: 67 | C76: 78.5 | D76: 1.000242474 | E76: 4320009.549 | F76: =E77-E76 -> 1047.487873 | G76: =IF(F76>0.000000000001, 1-F76/F75, 0) -> 0.04342652633 | H76: =WS_MALE*qxMale(INT(B76)) + (1-WS_MALE)*qxFemale(INT(B76)) ->  | I76: =IF(H76>0.999999, 1, G76+H76-$H$10) -> 
A77: 68 | C77: 79.5 | D77: 1.000231939 | E77: 4321057.037 | F77: 1002.22308 | G77: 0.0432127135 | H77: =WS_MALE*qxMale(INT(B77)) + (1-WS_MALE)*qxFemale(INT(B77)) -> 
A78: 69 | C78: 80.5 | D78: 1.000221914 | E78: 4322059.26 | F78: 959.1235281 | G78: 0.04300395049 | H78: =WS_MALE*qxMale(INT(B78)) + (1-WS_MALE)*qxFemale(INT(B78)) -> 
A79: 70 | C79: 81.5 | D79: 1.000212369 | E79: 4323018.383 | F79: 918.0729826 | G79: 0.04280006094 | H79: =WS_MALE*qxMale(INT(B79)) + (1-WS_MALE)*qxFemale(INT(B79)) -> 
A80: 71 | C80: 82.5 | D80: 1.000203278 | E80: 4323936.456 | F80: 878.9622688 | G80: 0.04260087664 | H80: =WS_MALE*qxMale(INT(B80)) + (1-WS_MALE)*qxFemale(INT(B80)) -> 
A81: 72 | C81: 83.5 | D81: 1.000194618 | E81: 4324815.418 | F81: 841.6887864 | G81: 0.04240623705 | H81: =WS_MALE*qxMale(INT(B81)) + (1-WS_MALE)*qxFemale(INT(B81)) -> 
A82: 73 | C82: 84.5 | D82: 1.000186366 | E82: 4325657.107 | F82: 806.156062 | G82: 0.0422159889 | H82: =WS_MALE*qxMale(INT(B82)) + (1-WS_MALE)*qxFemale(INT(B82)) -> 
A83: 74 | C83: 85.5 | D83: 1.0001785 | E83: 4326463.263 | F83: 772.2733342 | G83: 0.04202998576 | H83: =WS_MALE*qxMale(INT(B83)) + (1-WS_MALE)*qxFemale(INT(B83)) -> 
A84: 75 | C84: 86.5 | D84: 1.000171 | E84: 4327235.537 | F84: 739.955172 | G84: 0.04184808764 | H84: =WS_MALE*qxMale(INT(B84)) + (1-WS_MALE)*qxFemale(INT(B84)) -> 
A85: =A84+1 -> 76 | C85: =C84+1 -> 87.5 | D85: 1.000163846 | E85: =E84*D84 -> 4327975.492 | F85: 709.1211211 | G85: 0.04167016067 | H85: =WS_MALE*qxMale(INT(B85)) + (1-WS_MALE)*qxFemale(INT(B85)) ->  | J85: =J84*(1-I85) ->  | K85: =K84+J84 -> 
A86: 77 | C86: 88.5 | D86: 1.000157021 | E86: 4328684.613 | F86: 679.6953766 | G86: 0.04149607677 | H86: =WS_MALE*qxMale(INT(B86)) + (1-WS_MALE)*qxFemale(INT(B86)) -> 
A87: 78 | C87: 89.5 | D87: 1.000150509 | E87: 4329364.308 | F87: 651.6064803 | G87: 0.0413257133 | H87: =WS_MALE*qxMale(INT(B87)) + (1-WS_MALE)*qxFemale(INT(B87)) -> 
A88: 79 | C88: 90.5 | D88: 1.000144292 | E88: 4330015.915 | F88: 624.78704 | G88: 0.04115895281 | H88: =WS_MALE*qxMale(INT(B88)) + (1-WS_MALE)*qxFemale(INT(B88)) -> 
A89: 80 | C89: 91.5 | D89: 1.000138357 | E89: 4330640.702 | F89: 599.1734687 | G89: 0.04099568276 | H89: =WS_MALE*qxMale(INT(B89)) + (1-WS_MALE)*qxFemale(INT(B89)) -> 
A90: 81 | C90: 92.5 | D90: 1.000132689 | E90: 4331239.875 | F90: 574.7057436 | G90: 0.04083579526 | H90: =WS_MALE*qxMale(INT(B90)) + (1-WS_MALE)*qxFemale(INT(B90)) -> 
A91: 82 | C91: 93.5 | D91: 1.000127274 | E91: 4331814.581 | F91: 551.3271813 | G91: 0.0406791868 | H91: =WS_MALE*qxMale(INT(B91)) + (1-WS_MALE)*qxFemale(INT(B91)) -> 
A92: 83 | C92: 94.5 | D92: 1.000122101 | E92: 4332365.908 | F92: 528.9842293 | G92: 0.04052575811 | H92: =WS_MALE*qxMale(INT(B92)) + (1-WS_MALE)*qxFemale(INT(B92)) -> 
A93: 84 | C93: 95.5 | D93: 1.000117156 | E93: 4332894.892 | F93: 507.6262721 | G93: 0.04037541384 | H93: =WS_MALE*qxMale(INT(B93)) + (1-WS_MALE)*qxFemale(INT(B93)) -> 
A94: 85 | C94: 96.5 | D94: 1.00011243 | E94: 4333402.519 | F94: 487.2054507 | G94: 0.04022806247 | H94: =WS_MALE*qxMale(INT(B94)) + (1-WS_MALE)*qxFemale(INT(B94)) -> 
A95: 86 | C95: 97.5 | D95: 1.000107911 | E95: 4333889.724 | F95: 467.6764945 | G95: 0.04008361604 | H95: =WS_MALE*qxMale(INT(B95)) + (1-WS_MALE)*qxFemale(INT(B95)) -> 
A96: 87 | C96: 98.5 | D96: 1.00010359 | E96: 4334357.401 | F96: 448.9965647 | G96: 0.03994199 | H96: =WS_MALE*qxMale(INT(B96)) + (1-WS_MALE)*qxFemale(INT(B96)) -> 
A97: 88 | C97: 99.5 | D97: 1.000099457 | E97: 4334806.397 | F97: 431.1251081 | G97: 0.03980310308 | H97: =WS_MALE*qxMale(INT(B97)) + (1-WS_MALE)*qxFemale(INT(B97)) -> 
A98: 89 | C98: 100.5 | D98: 1.000095502 | E98: 4335237.522 | F98: 414.0237214 | G98: 0.03966687709 | H98: =WS_MALE*qxMale(INT(B98)) + (1-WS_MALE)*qxFemale(INT(B98)) -> 
A99: 90 | C99: 101.5 | D99: 1.000091718 | E99: 4335651.546 | F99: 397.6560236 | G99: 0.03953323679 | H99: =WS_MALE*qxMale(INT(B99)) + (1-WS_MALE)*qxFemale(INT(B99)) -> 
A100: 91 | C100: 102.5 | D100: 1.000088096 | E100: 4336049.202 | F100: 381.9875373 | G100: 0.03940210975 | H100: =WS_MALE*qxMale(INT(B100)) + (1-WS_MALE)*qxFemale(INT(B100)) -> 
A101: 92 | C101: 103.5 | D101: 1.000084628 | E101: 4336431.19 | F101: 366.985578 | G101: 0.03927342622 | H101: =WS_MALE*qxMale(INT(B101)) + (1-WS_MALE)*qxFemale(INT(B101)) -> 
A102: 93 | C102: 104.5 | D102: 1.000081309 | E102: 4336798.175 | F102: 352.6191499 | G102: 0.03914711903 | H102: =WS_MALE*qxMale(INT(B102)) + (1-WS_MALE)*qxFemale(INT(B102)) -> 
A103: 94 | C103: 105.5 | D103: 1.000078129 | E103: 4337150.794 | F103: 338.8588493 | G103: 0.0390231234 | H103: =WS_MALE*qxMale(INT(B103)) + (1-WS_MALE)*qxFemale(INT(B103)) -> 
A104: 95 | C104: 106.5 | D104: 1.000075084 | E104: 4337489.653 | F104: 325.6767734 | G104: 0.03890137693 | H104: =WS_MALE*qxMale(INT(B104)) + (1-WS_MALE)*qxFemale(INT(B104)) -> 
A105: 96 | C105: 107.5 | D105: 1.000072167 | E105: 4337815.33 | F105: 313.0464356 | G105: 0.03878181943 | H105: =WS_MALE*qxMale(INT(B105)) + (1-WS_MALE)*qxFemale(INT(B105)) -> 
A106: 97 | B106: =LookupAgingTable(WS_LOSSYR, A106) ->  | C106: 108.5 | D106: =1 + WS_A*C106^-WS_b*EXP(-WS_r*C106) -> 1.000069372 | E106: 4338128.376 | F106: 300.9426853 | G106: 0.03866439283 | H106: =WS_MALE*qxMale(INT(B106)) + (1-WS_MALE)*qxFemale(INT(B106)) -> 
A107: 98 | C107: 109.5 | D107: 1.000066693 | E107: 4338429.319 | F107: 289.3416333 | G107: 0.03854904108 | H107: =WS_MALE*qxMale(INT(B107)) + (1-WS_MALE)*qxFemale(INT(B107)) -> 
A108: 99 | C108: 110.5 | D108: 1.000064125 | E108: 4338718.661 | F108: 278.2205822 | G108: 0.03843571013 | H108: =WS_MALE*qxMale(INT(B108)) + (1-WS_MALE)*qxFemale(INT(B108)) -> 
A109: 100 | C109: 111.5 | D109: 1.000061664 | E109: 4338996.881 | F109: 267.5579598 | G109: 0.03832434772 | H109: =WS_MALE*qxMale(INT(B109)) + (1-WS_MALE)*qxFemale(INT(B109)) -> 
A110: 101 | C110: 112.5 | D110: 1.000059303 | E110: 4339264.439 | F110: 257.3332582 | G110: 0.03821490344 | H110: =WS_MALE*qxMale(INT(B110)) + (1-WS_MALE)*qxFemale(INT(B110)) -> 
A111: 102 | C111: 113.5 | D111: 1.00005704 | E111: 4339521.773 | F111: 247.5269752 | G111: 0.03810732852 | H111: =WS_MALE*qxMale(INT(B111)) + (1-WS_MALE)*qxFemale(INT(B111)) -> 
A112: 103 | C112: 114.5 | D112: 1.000054869 | E112: 4339769.299 | F112: 238.1205601 | G112: 0.03800157589 | H112: =WS_MALE*qxMale(INT(B112)) + (1-WS_MALE)*qxFemale(INT(B112)) -> 
A113: 104 | C113: 115.5 | D113: 1.000052787 | E113: 4340007.42 | F113: 229.0963624 | G113: 0.03789759999 | H113: =WS_MALE*qxMale(INT(B113)) + (1-WS_MALE)*qxFemale(INT(B113)) -> 
A114: 105 | C114: 116.5 | D114: 1.000050789 | E114: 4340236.516 | F114: 220.4375836 | G114: 0.03779535679 | H114: =WS_MALE*qxMale(INT(B114)) + (1-WS_MALE)*qxFemale(INT(B114)) -> 
A115: 106 | C115: 117.5 | D115: 1.000048872 | E115: 4340456.954 | F115: 212.1282322 | G115: 0.0376948037 | H115: =WS_MALE*qxMale(INT(B115)) + (1-WS_MALE)*qxFemale(INT(B115)) -> 
A116: 107 | C116: 118.5 | D116: 1.000047033 | E116: 4340669.082 | F116: 204.1530805 | G116: 0.03759589952 | H116: =WS_MALE*qxMale(INT(B116)) + (1-WS_MALE)*qxFemale(INT(B116)) -> 
A117: 108 | C117: 119.5 | D117: 1.000045267 | E117: 4340873.235 | F117: 196.4976249 | G117: 0.03749860434 | H117: =WS_MALE*qxMale(INT(B117)) + (1-WS_MALE)*qxFemale(INT(B117)) -> 
A118: 109 | C118: 120.5 | D118: 1.000043572 | E118: 4341069.733 | F118: 189.1480479 | G118: 0.03740287957 | H118: =WS_MALE*qxMale(INT(B118)) + (1-WS_MALE)*qxFemale(INT(B118)) -> 
A119: 110 | C119: 121.5 | D119: 1.000041944 | E119: 4341258.881 | F119: 182.0911824 | G119: 0.03730868778 | H119: =WS_MALE*qxMale(INT(B119)) + (1-WS_MALE)*qxFemale(INT(B119)) -> 
A120: 111 | C120: 122.5 | D120: 1.000040382 | E120: 4341440.972 | F120: 175.3144783 | G120: 0.0372159928 | H120: =WS_MALE*qxMale(INT(B120)) + (1-WS_MALE)*qxFemale(INT(B120)) -> 
A121: 112 | C121: 123.5 | D121: 1.000038881 | E121: 4341616.287 | F121: 168.8059704 | G121: 0.03712475952 | H121: =WS_MALE*qxMale(INT(B121)) + (1-WS_MALE)*qxFemale(INT(B121)) -> 
A122: 113 | C122: 124.5 | D122: 1.000037439 | E122: 4341785.093 | F122: 162.5542491 | G122: 0.03703495393 | H122: =WS_MALE*qxMale(INT(B122)) + (1-WS_MALE)*qxFemale(INT(B122)) -> 
A123: 114 | C123: 125.5 | D123: 1.000036055 | E123: 4341947.647 | F123: 156.5484315 | G123: 0.03694654308 | H123: =WS_MALE*qxMale(INT(B123)) + (1-WS_MALE)*qxFemale(INT(B123)) -> 
A124: 115 | C124: 126.5 | D124: 1.000034725 | E124: 4342104.195 | F124: 150.7781354 | G124: 0.03685949501 | H124: =WS_MALE*qxMale(INT(B124)) + (1-WS_MALE)*qxFemale(INT(B124)) -> 
A125: 116 | C125: 127.5 | D125: 1.000033447 | E125: 4342254.973 | F125: 145.2334536 | G125: 0.03677377872 | H125: =WS_MALE*qxMale(INT(B125)) + (1-WS_MALE)*qxFemale(INT(B125)) -> 
A126: 117 | C126: 128.5 | D126: 1.000032218 | E126: 4342400.207 | F126: 139.9049305 | G126: 0.03668936415 | H126: =WS_MALE*qxMale(INT(B126)) + (1-WS_MALE)*qxFemale(INT(B126)) -> 
A127: 118 | C127: 129.5 | D127: 1.000031038 | E127: 4342540.112 | F127: 134.7835396 | G127: 0.03660622216 | H127: =WS_MALE*qxMale(INT(B127)) + (1-WS_MALE)*qxFemale(INT(B127)) -> 
A128: 119 | C128: 130.5 | D128: 1.000029903 | E128: 4342674.895 | F128: 129.8606618 | G128: 0.03652432441 | H128: =WS_MALE*qxMale(INT(B128)) + (1-WS_MALE)*qxFemale(INT(B128)) -> 
A129: 120 | C129: 131.5 | D129: 1.000028813 | E129: 4342804.756 | F129: 125.1280662 | G129: 0.03644364344 | H129: =WS_MALE*qxMale(INT(B129)) + (1-WS_MALE)*qxFemale(INT(B129)) -> 
A130: 121 | C130: 132.5 | D130: 1.000027764 | E130: 4342929.884 | F130: 120.5778901 | G130: 0.03636415256 | H130: =WS_MALE*qxMale(INT(B130)) + (1-WS_MALE)*qxFemale(INT(B130)) -> 
A131: 122 | C131: 133.5 | D131: 1.000026756 | E131: 4343050.462 | F131: 116.2026218 | G131: 0.03628582587 | H131: =WS_MALE*qxMale(INT(B131)) + (1-WS_MALE)*qxFemale(INT(B131)) -> 
A132: 123 | C132: 134.5 | D132: 1.000025787 | E132: 4343166.665 | F132: 111.9950831 | G132: 0.03620863823 | H132: =WS_MALE*qxMale(INT(B132)) + (1-WS_MALE)*qxFemale(INT(B132)) -> 
A133: 124 | C133: 135.5 | D133: 1.000024854 | E133: 4343278.66 | F133: 107.9484134 | G133: 0.03613256517 | H133: =WS_MALE*qxMale(INT(B133)) + (1-WS_MALE)*qxFemale(INT(B133)) -> 
A134: 125 | C134: 136.5 | D134: 1.000023957 | E134: 4343386.608 | F134: 104.0560546 | G134: 0.03605758293 | H134: =WS_MALE*qxMale(INT(B134)) + (1-WS_MALE)*qxFemale(INT(B134)) -> 
A135: 126 | C135: 137.5 | D135: 1.000023095 | E135: 4343490.664 | F135: 100.311736 | G135: 0.03598366844 | H135: =WS_MALE*qxMale(INT(B135)) + (1-WS_MALE)*qxFemale(INT(B135)) -> 
A136: 127 | C136: 138.5 | D136: 1.000022265 | E136: 4343590.976 | F136: 96.70946139 | G136: 0.03591079927 | H136: =WS_MALE*qxMale(INT(B136)) + (1-WS_MALE)*qxFemale(INT(B136)) -> 
A137: 128 | C137: 139.5 | D137: 1.000021466 | E137: 4343687.685 | F137: 93.2434955 | G137: 0.03583895356 | H137: =WS_MALE*qxMale(INT(B137)) + (1-WS_MALE)*qxFemale(INT(B137)) -> 
A138: 129 | B138: =LookupAgingTable(WS_LOSSYR, A138) ->  | C138: 140.5 | D138: =1 + WS_A*C138^-WS_b*EXP(-WS_r*C138) -> 1.000020698 | E138: 4343780.929 | F138: 89.90835188 | G138: 0.03576811013 | H138: =WS_MALE*qxMale(INT(B138)) + (1-WS_MALE)*qxFemale(INT(B138)) -> 
A139: 130 | C139: 141.5 | D139: 1.000019959 | E139: 4343870.837 | F139: 86.69878121 | G139: 0.0356982483 | H139: =WS_MALE*qxMale(INT(B139)) + (1-WS_MALE)*qxFemale(INT(B139)) -> 
A140: 131 | C140: 142.5 | D140: 1.000019247 | E140: 4343957.536 | F140: =E141-E140 -> 83.60976016 | G140: =IF(F140>0.000000000001, 1-F140/F139, 0) -> 0.03562934803 | H140: =WS_MALE*qxMale(INT(B140)) + (1-WS_MALE)*qxFemale(INT(B140)) ->  | I140: =IF(H140>0.999999, 1, G140+H140-$H$10) -> 
A141: 132 | C141: 143.5 | D141: 1.000018563 | E141: 4344041.146 | F141: 80.6364809 | G141: 0.03556138972 | H141: =WS_MALE*qxMale(INT(B141)) + (1-WS_MALE)*qxFemale(INT(B141)) -> 
A142: 133 | C142: 144.5 | D142: 1.000017903 | E142: 4344121.782 | F142: 77.77434107 | G142: 0.03549435443 | H142: =WS_MALE*qxMale(INT(B142)) + (1-WS_MALE)*qxFemale(INT(B142)) -> 
A143: 134 | C143: 145.5 | D143: 1.000017269 | E143: 4344199.557 | F143: 75.01893432 | G143: 0.03542822359 | H143: =WS_MALE*qxMale(INT(B143)) + (1-WS_MALE)*qxFemale(INT(B143)) -> 
A144: 135 | C144: 146.5 | D144: 1.000016658 | E144: 4344274.575 | F144: 72.36604131 | G144: 0.0353629792 | H144: =WS_MALE*qxMale(INT(B144)) + (1-WS_MALE)*qxFemale(INT(B144)) -> 
A145: 136 | C145: 147.5 | D145: 1.00001607 | E145: 4344346.942 | F145: 69.81162109 | G145: 0.03529860371 | H145: =WS_MALE*qxMale(INT(B145)) + (1-WS_MALE)*qxFemale(INT(B145)) -> 
A146: 137 | C146: 148.5 | D146: 1.000015503 | E146: 4344416.753 | F146: 67.35180304 | G146: 0.03523508002 | H146: =WS_MALE*qxMale(INT(B146)) + (1-WS_MALE)*qxFemale(INT(B146)) -> 
A147: 138 | C147: 149.5 | D147: 1.000014958 | E147: 4344484.105 | F147: 64.98287905 | G147: 0.03517239153 | H147: =WS_MALE*qxMale(INT(B147)) + (1-WS_MALE)*qxFemale(INT(B147)) -> 
A148: 139 | C148: 150.5 | D148: 1.000014432 | E148: 4344549.088 | F148: 62.70129625 | G148: 0.03511052193 | H148: =WS_MALE*qxMale(INT(B148)) + (1-WS_MALE)*qxFemale(INT(B148)) -> 
A149: =A148+1 -> 140 | C149: =C148+1 -> 151.5 | D149: 1.000013926 | E149: =E148*D148 -> 4344611.789 | F149: 60.50364996 | G149: 0.03504945547 | H149: =WS_MALE*qxMale(INT(B149)) + (1-WS_MALE)*qxFemale(INT(B149)) ->  | J149: =J148*(1-I149) ->  | K149: =K148+J148 -> 
A150: 141 | C150: 152.5 | D150: 1.000013439 | E150: 4344672.293 | F150: 58.38667706 | G150: 0.03498917676 | H150: =WS_MALE*qxMale(INT(B150)) + (1-WS_MALE)*qxFemale(INT(B150)) -> 
A151: 142 | C151: 153.5 | D151: 1.000012969 | E151: 4344730.679 | F151: 56.34724965 | G151: 0.03492967076 | H151: =WS_MALE*qxMale(INT(B151)) + (1-WS_MALE)*qxFemale(INT(B151)) -> 
A152: 143 | C152: 154.5 | D152: 1.000012517 | E152: 4344787.027 | F152: 54.38236906 | G152: 0.03487092284 | H152: =WS_MALE*qxMale(INT(B152)) + (1-WS_MALE)*qxFemale(INT(B152)) -> 
A153: 144 | C153: 155.5 | D153: 1.000012081 | E153: 4344841.409 | F153: 52.48916006 | G153: 0.03481291873 | H153: =WS_MALE*qxMale(INT(B153)) + (1-WS_MALE)*qxFemale(INT(B153)) -> 
A154: 145 | C154: 156.5 | D154: 1.000011661 | E154: 4344893.898 | F154: 50.66486547 | G154: 0.03475564451 | H154: =WS_MALE*qxMale(INT(B154)) + (1-WS_MALE)*qxFemale(INT(B154)) -> 
A155: 146 | C155: 157.5 | D155: 1.000011256 | E155: 4344944.563 | F155: 48.90684092 | G155: 0.03469908662 | H155: =WS_MALE*qxMale(INT(B155)) + (1-WS_MALE)*qxFemale(INT(B155)) -> 
A156: 147 | C156: 158.5 | D156: 1.000010866 | E156: 4344993.47 | F156: 47.21254989 | G156: 0.03464323176 | H156: =WS_MALE*qxMale(INT(B156)) + (1-WS_MALE)*qxFemale(INT(B156)) -> 
A157: 148 | C157: 159.5 | D157: 1.00001049 | E157: 4345040.682 | F157: 45.57955905 | G157: 0.0345880671 | H157: =WS_MALE*qxMale(INT(B157)) + (1-WS_MALE)*qxFemale(INT(B157)) -> 
A158: 149 | C158: 160.5 | D158: 1.000010128 | E158: 4345086.262 | F158: 44.0055337 | G158: 0.03453357998 | H158: =WS_MALE*qxMale(INT(B158)) + (1-WS_MALE)*qxFemale(INT(B158)) -> 
A159: 150 | C159: 161.5 | D159: 1.000009778 | E159: 4345130.268 | F159: 42.48823355 | G159: 0.03447975807 | H159: =WS_MALE*qxMale(INT(B159)) + (1-WS_MALE)*qxFemale(INT(B159)) -> 
A160: 151 | C160: 162.5 | D160: 1.000009442 | E160: 4345172.756 | F160: 41.02550857 | G160: 0.03442658942 | H160: =WS_MALE*qxMale(INT(B160)) + (1-WS_MALE)*qxFemale(INT(B160)) -> 
A161: 152 | C161: 163.5 | D161: 1.000009117 | E161: 4345213.781 | F161: 39.61529519 | G161: 0.03437406228 | H161: =WS_MALE*qxMale(INT(B161)) + (1-WS_MALE)*qxFemale(INT(B161)) -> 
A162: 153 | C162: 164.5 | D162: 1.000008804 | E162: 4345253.397 | F162: 38.25561248 | G162: 0.03432216518 | H162: =WS_MALE*qxMale(INT(B162)) + (1-WS_MALE)*qxFemale(INT(B162)) -> 
A163: 154 | C163: 165.5 | D163: 1.000008502 | E163: 4345291.652 | F163: 36.94455871 | G163: 0.034270887 | H163: =WS_MALE*qxMale(INT(B163)) + (1-WS_MALE)*qxFemale(INT(B163)) -> 
A164: 155 | C164: 166.5 | D164: 1.000008211 | E164: 4345328.597 | F164: 35.6803079 | G164: 0.03422021674 | H164: =WS_MALE*qxMale(INT(B164)) + (1-WS_MALE)*qxFemale(INT(B164)) -> 
A165: 156 | C165: 167.5 | D165: 1.000007931 | E165: 4345364.277 | F165: 34.46110665 | G165: 0.03417014383 | H165: =WS_MALE*qxMale(INT(B165)) + (1-WS_MALE)*qxFemale(INT(B165)) -> 
A166: 157 | C166: 168.5 | D166: 1.00000766 | E166: 4345398.738 | F166: 33.28527102 | G166: 0.03412065779 | H166: =WS_MALE*qxMale(INT(B166)) + (1-WS_MALE)*qxFemale(INT(B166)) -> 
A167: 158 | C167: 169.5 | D167: 1.000007399 | E167: 4345432.023 | F167: 32.15118364 | G167: 0.03407174844 | H167: =WS_MALE*qxMale(INT(B167)) + (1-WS_MALE)*qxFemale(INT(B167)) -> 
A168: 159 | C168: 170.5 | D168: 1.000007147 | E168: 4345464.175 | F168: 31.05729087 | G168: 0.03402340589 | H168: =WS_MALE*qxMale(INT(B168)) + (1-WS_MALE)*qxFemale(INT(B168)) -> 
A169: 160 | C169: 171.5 | D169: 1.000006904 | E169: 4345495.232 | F169: 30.00210015 | G169: 0.03397562037 | H169: =WS_MALE*qxMale(INT(B169)) + (1-WS_MALE)*qxFemale(INT(B169)) -> 
A170: 161 | B170: =LookupAgingTable(WS_LOSSYR, A170) ->  | C170: 172.5 | D170: =1 + WS_A*C170^-WS_b*EXP(-WS_r*C170) -> 1.00000667 | E170: 4345525.234 | F170: 28.98417742 | G170: 0.0339283824 | H170: =WS_MALE*qxMale(INT(B170)) + (1-WS_MALE)*qxFemale(INT(B170)) -> 
A171: 162 | C171: 173.5 | D171: 1.000006444 | E171: 4345554.218 | F171: 28.00214472 | G171: 0.03388168265 | H171: =WS_MALE*qxMale(INT(B171)) + (1-WS_MALE)*qxFemale(INT(B171)) -> 
A172: 163 | C172: 174.5 | D172: 1.000006226 | E172: 4345582.22 | F172: 27.05467781 | G172: 0.03383551216 | H172: =WS_MALE*qxMale(INT(B172)) + (1-WS_MALE)*qxFemale(INT(B172)) -> 
A173: 164 | C173: 175.5 | D173: 1.000006015 | E173: 4345609.275 | F173: 26.14050398 | G173: 0.03378986192 | H173: =WS_MALE*qxMale(INT(B173)) + (1-WS_MALE)*qxFemale(INT(B173)) -> 
A174: 165 | C174: 176.5 | D174: 1.000005812 | E174: 4345635.416 | F174: 25.25839991 | G174: 0.03374472329 | H174: =WS_MALE*qxMale(INT(B174)) + (1-WS_MALE)*qxFemale(INT(B174)) -> 
A175: 166 | C175: 177.5 | D175: 1.000005616 | E175: 4345660.674 | F175: 24.40718961 | G175: 0.03370008786 | H175: =WS_MALE*qxMale(INT(B175)) + (1-WS_MALE)*qxFemale(INT(B175)) -> 
A176: 167 | C176: 178.5 | D176: 1.000005427 | E176: 4345685.081 | F176: 23.58574253 | G176: 0.03365594719 | H176: =WS_MALE*qxMale(INT(B176)) + (1-WS_MALE)*qxFemale(INT(B176)) -> 
A177: 168 | C177: 179.5 | D177: 1.000005245 | E177: 4345708.667 | F177: 22.79297163 | G177: 0.03361229328 | H177: =WS_MALE*qxMale(INT(B177)) + (1-WS_MALE)*qxFemale(INT(B177)) -> 
A178: 169 | C178: 180.5 | D178: 1.000005069 | E178: 4345731.46 | F178: 22.02783168 | G178: 0.03356911811 | H178: =WS_MALE*qxMale(INT(B178)) + (1-WS_MALE)*qxFemale(INT(B178)) -> 
A179: 170 | C179: 181.5 | D179: 1.000004899 | E179: 4345753.488 | F179: 21.28931747 | G179: 0.03352641392 | H179: =WS_MALE*qxMale(INT(B179)) + (1-WS_MALE)*qxFemale(INT(B179)) -> 
A180: 171 | C180: 182.5 | D180: 1.000004735 | E180: 4345774.777 | F180: 20.57646228 | G180: 0.03348417307 | H180: =WS_MALE*qxMale(INT(B180)) + (1-WS_MALE)*qxFemale(INT(B180)) -> 
A181: 172 | C181: 183.5 | D181: 1.000004576 | E181: 4345795.353 | F181: 19.88833624 | G181: 0.03344238817 | H181: =WS_MALE*qxMale(INT(B181)) + (1-WS_MALE)*qxFemale(INT(B181)) -> 
A182: 173 | C182: 184.5 | D182: 1.000004424 | E182: 4345815.242 | F182: 19.22404489 | G182: 0.0334010519 | H182: =WS_MALE*qxMale(INT(B182)) + (1-WS_MALE)*qxFemale(INT(B182)) -> 
A183: 174 | C183: 185.5 | D183: 1.000004276 | E183: 4345834.466 | F183: 18.58272773 | G183: 0.03336015716 | H183: =WS_MALE*qxMale(INT(B183)) + (1-WS_MALE)*qxFemale(INT(B183)) -> 
A184: 175 | C184: 186.5 | D184: 1.000004133 | E184: 4345853.049 | F184: 17.96355688 | G184: 0.0333196969 | H184: =WS_MALE*qxMale(INT(B184)) + (1-WS_MALE)*qxFemale(INT(B184)) -> 
A185: 176 | C185: 187.5 | D185: 1.000003996 | E185: 4345871.012 | F185: 17.36573574 | G185: 0.03327966425 | H185: =WS_MALE*qxMale(INT(B185)) + (1-WS_MALE)*qxFemale(INT(B185)) -> 
A186: 177 | C186: 188.5 | D186: 1.000003863 | E186: 4345888.378 | F186: 16.78849777 | G186: 0.03324005265 | H186: =WS_MALE*qxMale(INT(B186)) + (1-WS_MALE)*qxFemale(INT(B186)) -> 
A187: 178 | C187: 189.5 | D187: 1.000003735 | E187: 4345905.166 | F187: 16.23110528 | G187: 0.03320085538 | H187: =WS_MALE*qxMale(INT(B187)) + (1-WS_MALE)*qxFemale(INT(B187)) -> 
A188: 179 | C188: 190.5 | D188: 1.000003611 | E188: 4345921.397 | F188: 15.69284829 | G188: 0.03316206615 | H188: =WS_MALE*qxMale(INT(B188)) + (1-WS_MALE)*qxFemale(INT(B188)) -> 
A189: 180 | C189: 191.5 | D189: 1.000003491 | E189: 4345937.09 | F189: 15.17304343 | G189: 0.03312367854 | H189: =WS_MALE*qxMale(INT(B189)) + (1-WS_MALE)*qxFemale(INT(B189)) -> 
A190: 181 | C190: 192.5 | D190: 1.000003376 | E190: 4345952.263 | F190: 14.67103287 | G190: 0.03308568647 | H190: =WS_MALE*qxMale(INT(B190)) + (1-WS_MALE)*qxFemale(INT(B190)) -> 
A191: 182 | C191: 193.5 | D191: 1.000003264 | E191: 4345966.934 | F191: 14.18618335 | G191: 0.03304808392 | H191: =WS_MALE*qxMale(INT(B191)) + (1-WS_MALE)*qxFemale(INT(B191)) -> 
A192: 183 | C192: 194.5 | D192: 1.000003156 | E192: 4345981.121 | F192: 13.71788517 | G192: 0.03301086483 | H192: =WS_MALE*qxMale(INT(B192)) + (1-WS_MALE)*qxFemale(INT(B192)) -> 
A193: 184 | C193: 195.5 | D193: 1.000003052 | E193: 4345994.838 | F193: 13.2655513 | G193: 0.03297402361 | H193: =WS_MALE*qxMale(INT(B193)) + (1-WS_MALE)*qxFemale(INT(B193)) -> 
A194: 185 | C194: 196.5 | D194: 1.000002952 | E194: 4346008.104 | F194: 12.82861648 | G194: 0.03293755426 | H194: =WS_MALE*qxMale(INT(B194)) + (1-WS_MALE)*qxFemale(INT(B194)) -> 
A195: 186 | C195: 197.5 | D195: 1.000002855 | E195: 4346020.933 | F195: 12.40653638 | G195: 0.0329014516 | H195: =WS_MALE*qxMale(INT(B195)) + (1-WS_MALE)*qxFemale(INT(B195)) -> 
A196: 187 | C196: 198.5 | D196: 1.000002761 | E196: 4346033.339 | F196: 11.99878675 | G196: 0.03286570986 | H196: =WS_MALE*qxMale(INT(B196)) + (1-WS_MALE)*qxFemale(INT(B196)) -> 
A197: 188 | C197: 199.5 | D197: 1.00000267 | E197: 4346045.338 | F197: 11.6048627 | G197: 0.03283032383 | H197: =WS_MALE*qxMale(INT(B197)) + (1-WS_MALE)*qxFemale(INT(B197)) -> 
A198: 189 | C198: 200.5 | D198: 1.000002583 | E198: 4346056.943 | F198: 11.22427788 | G198: 0.03279528818 | H198: =WS_MALE*qxMale(INT(B198)) + (1-WS_MALE)*qxFemale(INT(B198)) -> 
A199: 190 | C199: 201.5 | D199: 1.000002498 | E199: 4346068.167 | F199: 10.85656383 | G199: 0.03276059778 | H199: =WS_MALE*qxMale(INT(B199)) + (1-WS_MALE)*qxFemale(INT(B199)) -> 
A200: 191 | C200: 202.5 | D200: 1.000002416 | E200: 4346079.024 | F200: 10.50126923 | G200: 0.03272624764 | H200: =WS_MALE*qxMale(INT(B200)) + (1-WS_MALE)*qxFemale(INT(B200)) -> 
A201: 192 | C201: 203.5 | D201: 1.000002337 | E201: 4346089.525 | F201: 10.15795929 | G201: 0.03269223284 | H201: =WS_MALE*qxMale(INT(B201)) + (1-WS_MALE)*qxFemale(INT(B201)) -> 
... 8 more rows

Sheet Summary
D1: y = Ax^(-b)exp(-rx)
C2: A | D2: =WS_A -> 1.032499469 | F2: Project All Accident Years | I2: Age At EOT | J2: Projection Using | M2: Projection Using
C3: b | D3: =WS_b -> 1.445323931 | I3: (End Of Triangle) | J3: Gradual Application of Mortality | M3: Truncation Method
C4: r | D4: =WS_r -> 0.02612114358 | I4: =C6 -> 32.5 | M4: Offset | N4: 0
B5: Loss Year | C5: Dev Age (Yrs) | D5: Proportion Male | E5: Open Claims | F5: Average Age | G5: Average Life Exp | H5: Cumulative Loss | I5: Years To EOT | J5: Loss at EOT | K5: Ultimate Loss | L5: EOT-Ult Tail Factor | M5: Loss at EOT | N5: Ultimate Loss | O5: EOT-Ult Tail Factor
B6: 1985 | C6: 32.5 | D6: 0.829004329 | E6: 462 | F6: 73.43378638 | G6: 15.54723115 | H6: 984218.072 | I6: 0 | J6: 984218.072 | K6: 1019169.875 | L6: 1.035512255 | M6: 984218.072 | N6: 1013737.528 | O6: 1.0299928
B7: 1986 | C7: 31.5 | D7: 0.7407407407 | E7: 54 | F7: 71.0565569 | G7: 17.22940037 | H7: 1133045.524 | I7: 1 | J7: 1136555.051 | K7: 1177867.273 | L7: 1.036348633 | M7: 1136555.051 | N7: 1170643.52 | O7: 1.0299928
B8: 1987 | C8: 30.5 | D8: 0.7333333333 | E8: 75 | F8: 70.06404746 | G8: 18.027296 | H8: 1325593.821 | I8: 2 | J8: 1334129.196 | K8: 1382974.401 | L8: 1.03661205 | M8: 1334129.196 | N8: 1374143.467 | O8: 1.0299928
B9: 1988 | C9: 29.5 | D9: 0.8051948052 | E9: 77 | F9: 69.36252522 | G9: 18.6967039 | H9: 1529675.606 | I9: 3 | J9: 1545043.665 | K9: 1599749.809 | L9: 1.035407507 | M9: 1545049.02 | N9: 1591389.367 | O9: 1.0299928
B10: 1989 | C10: 28.5 | D10: 0.7431192661 | E10: 109 | F10: 68.39435098 | G10: 19.60594615 | H10: 1784168.775 | I10: 4 | J10: 1809036.691 | K10: 1872331.247 | L10: 1.034987989 | M10: 1809076.332 | N10: 1863335.598 | O10: 1.0299928
B11: 1990 | C11: 27.5 | D11: 0.7714285714 | E11: 105 | F11: 67.09859522 | G11: 20.36289343 | H11: 2028738.288 | I11: 5 | J11: 2065609.119 | K11: 2135636.038 | L11: 1.033901341 | M11: 2065667.423 | N11: 2125228.831 | O11: 1.028833978
B12: 1991 | C12: 26.5 | D12: 0.7462686567 | E12: 134 | F12: 65.98698499 | G12: 22.03687851 | H12: 2180319.32 | I12: 6 | J12: 2229889.607 | K12: 2304845.878 | L12: 1.033614342 | M12: 2230067.034 | N12: 2296952.99 | O12: 1.0299928
B13: 1992 | C13: 25.5 | D13: 0.7254901961 | E13: 102 | F13: 65.91034881 | G13: 22.07547471 | H13: 1740964.33 | I13: 7 | J13: 1789207.507 | K13: 1848701.248 | L13: 1.033251448 | M13: 1789443.141 | N13: 1841039.905 | O13: 1.028833978
B14: 1993 | C14: 24.5 | D14: 0.7358490566 | E14: 106 | F14: 64.53726447 | G14: 22.87952321 | H14: 1490763.438 | I14: 8 | J14: 1540173.607 | K14: 1589371.902 | L14: 1.031943344 | M14: 1540469.187 | N14: 1584887.042 | O14: 1.028833978
B15: 1994 | C15: 23.5 | D15: 0.6923076923 | E15: 130 | F15: 63.69689886 | G15: 23.79674 | H15: 1448746.478 | I15: 9 | J15: 1505325.725 | K15: 1552998.362 | L15: 1.031669317 | M15: 1505778.962 | N15: 1549196.559 | O15: 1.028833978
B16: 1995 | C16: 22.5 | D16: 0.824742268 | E16: 97 | F16: 61.46187119 | G16: 25.23045825 | H16: 1590847.057 | I16: 10 | J16: 1663401.694 | K16: 1719142.467 | L16: 1.033510109 | M16: 1664010.154 | N16: 1711990.186 | O16: 1.028833978
B17: 1996 | C17: 21.5 | D17: 0.9 | E17: 100 | F17: 64.11310062 | G17: 22.569012 | H17: 1681066.523 | I17: 11 | J17: 1769805.872 | K17: 1821991.551 | L17: 1.029486668 | M17: 1770661.557 | N17: 1814823.075 | O17: 1.024940688
B18: 1997 | C18: 20.5 | D18: 0.8045112782 | E18: 133 | F18: 61.56364216 | G18: 25.27092286 | H18: 1974572.609 | I18: 12 | J18: 2094409.3 | K18: 2160865.377 | L18: 1.031730224 | M18: 2095785.723 | N18: 2150931.481 | O18: 1.026312689
B19: 1998 | C19: 19.5 | D19: 0.8636363636 | E19: 176 | F19: 61.20737664 | G19: 25.152665 | H19: 2584617.614 | I19: 13 | J19: 2764212.326 | K19: 2849049.8 | L19: 1.030691374 | M19: 2766529.88 | N19: 2835529.039 | O19: 1.024940688
B20: 1999 | C20: 18.5 | D20: 0.8288288288 | E20: 222 | F20: 59.50262377 | G20: 26.9483255 | H20: 2963146.228 | I20: 14 | J20: 3197911.622 | K20: 3293670.867 | L20: 1.029944306 | M20: 3201474.497 | N20: 3285713.9 | O20: 1.026312689
B21: 2000 | C21: 17.5 | D21: 0.7947598253 | E21: 229 | F21: 60.69016556 | G21: 26.15019742 | H21: 3485601.818 | I21: 15 | J21: 3800148.557 | K21: 3912757.837 | L21: 1.029632862 | M21: 3805274.67 | N21: 3894650.713 | O21: 1.023487409
B22: 2001 | C22: 16.5 | D22: 0.8095238095 | E22: 189 | F22: 60.5439052 | G22: 26.12010857 | H22: 5224571.24 | I22: 16 | J22: 5760138.735 | K22: 5918939.072 | L22: 1.027568839 | M22: 5770288.556 | N22: 5896929.055 | O22: 1.021946996
B23: 2002 | C23: 15.5 | D23: 0.7551020408 | E23: 147 | F23: 58.20387676 | G23: 27.98032878 | H23: 5342317.379 | I23: 17 | J23: 5966912.569 | K23: 6143067.608 | L23: 1.029521974 | M23: 5977693.326 | N23: 6118093.856 | O23: 1.023487409
B24: 2003 | C24: 14.5 | D24: 0.7155172414 | E24: 116 | F24: 57.29108546 | G24: 28.952285 | H24: 4900202.589 | I24: 18 | J24: 5553331.246 | K24: 5714248.895 | L24: 1.028976778 | M24: 5564254.06 | N24: 5694943.973 | O24: 1.023487409
B25: 2004 | C25: 13.5 | D25: 0.7583333333 | E25: 120 | F25: 57.6309149 | G25: 28.86002917 | H25: 3915312.098 | I25: 19 | J25: 4508014.92 | K25: 4631527.82 | L25: 1.027398512 | M25: 4520885.981 | N25: 4620105.847 | O25: 1.021946996
B26: 2005 | C26: 12.5 | D26: 0.7643979058 | E26: 191 | F26: 55.7625667 | G26: 30.63898864 | H26: 3504667.953 | I26: 20 | J26: 4112560.991 | K26: 4226888.379 | L26: 1.027799561 | M26: 4125035.223 | N26: 4221921.614 | O26: 1.023487409
